Body name,Body,Service label,Service division label,Expenditure category,Detailed expenditure type,Detailed expenditure code,Date paid,Transaction number,Net amount,Capital or revenue,Supplier name
Leeds City Council,http://statistics.data.gov.uk/doc/local-authority/00DA,Central & Corporate Functions,Commercial Services Trading Services,Supplies and services,Operational Materials,205,24/12/2010,1012-00001,1616.23 ,R,A & A ELECTRICAL DISTRIBUTORS LTD
Leeds City Council,http://statistics.data.gov.uk/doc/local-authority/00DA,Central & Corporate Functions,Commercial Services Trading Services,Supplies and services,Operational Materials,205,31/12/2010,1012-00002,1532.57 ,R,A & A ELECTRICAL DISTRIBUTORS LTD
East North East Homes Leeds,http://statistics.data.gov.uk/doc/local-authority/00DA,East - North East,Technical Services,Supplies and services,Other Materials,205,22/12/2010,1012-00003,780.80 ,R,A ANDREWS & SONS (MARBLES & TILES)
Leeds City Council,http://statistics.data.gov.uk/doc/local-authority/00DA,Environment & Neighbourhoods,Streetscene Environmental Services,Supplies and services,Other Hired And Contracted Services,265,08/12/2010,1012-00004,4160.00 ,R,A APPLEYARD
Leeds City Council,http://statistics.data.gov.uk/doc/local-authority/00DA,Central & Corporate Functions,Commercial Services Trading Services,Supplies and services,Other Hired And Contracted Services,265,08/12/2010,1012-00005,2256.00 ,R,A BUSH (ENGINEERING SERVICES) LTD
Leeds City Council,http://statistics.data.gov.uk/doc/local-authority/00DA,Central & Corporate Functions,Commercial Services Trading Services,Supplies and services,Other Hired And Contracted Services,265,16/12/2010,1012-00006,28502.50 ,R,A BUSH (ENGINEERING SERVICES) LTD
Leeds City Council,http://statistics.data.gov.uk/doc/local-authority/00DA,Central & Corporate Functions,Leeds Shared Services,Supplies and services,Office Consumables,210,02/12/2010,1012-00007,1795.00 ,R,A C Labels (2010) Ltd
Leeds City Council,http://statistics.data.gov.uk/doc/local-authority/00DA,City Development,Highways,Capital,CONSTRUCTION,3,14/12/2010,1012-00008,1441.94 ,C,A D D LOOP SERVICES LTD
Leeds City Council,http://statistics.data.gov.uk/doc/local-authority/00DA,City Development,Highways,Supplies and services,Other Hired And Contracted Services,265,14/12/2010,1012-00009,8780.28 ,R,A D D LOOP SERVICES LTD
Leeds City Council,http://statistics.data.gov.uk/doc/local-authority/00DA,City Development,Highways,Supplies and services,Other Hired And Contracted Services,265,21/12/2010,1012-00010,2760.00 ,R,A D D LOOP SERVICES LTD
Leeds City Council,http://statistics.data.gov.uk/doc/local-authority/00DA,City Development,Highways,Supplies and services,Other Hired And Contracted Services,265,23/12/2010,1012-00011,1725.00 ,R,A D D LOOP SERVICES LTD
Leeds City Council,http://statistics.data.gov.uk/doc/local-authority/00DA,Adult Social Care,Roseville Enterprises,Supplies and services,Operational Furniture And Equipment,203,09/12/2010,1012-00012,2981.20 ,R,A D G ENGINEERING LTD
Leeds City Council,http://statistics.data.gov.uk/doc/local-authority/00DA,Adult Social Care,Roseville Enterprises,Supplies and services,Operational Furniture And Equipment,203,14/12/2010,1012-00013,1170.00 ,R,A D G ENGINEERING LTD
East North East Homes Leeds,http://statistics.data.gov.uk/doc/local-authority/00DA,East - North East,Technical Services,Supplies and services,Other Hired And Contracted Services,265,02/12/2010,1012-00014,707.52 ,R,A D Simpson Ltd
East North East Homes Leeds,http://statistics.data.gov.uk/doc/local-authority/00DA,East - North East,Technical Services,Supplies and services,Other Hired And Contracted Services,265,02/12/2010,1012-00015,451.32 ,R,A D Simpson Ltd
East North East Homes Leeds,http://statistics.data.gov.uk/doc/local-authority/00DA,East - North East,Technical Services,Supplies and services,Other Hired And Contracted Services,265,02/12/2010,1012-00016,486.51 ,R,A D Simpson Ltd
East North East Homes Leeds,http://statistics.data.gov.uk/doc/local-authority/00DA,East - North East,Technical Services,Supplies and services,Other Hired And Contracted Services,265,02/12/2010,1012-00017,880.50 ,R,A D Simpson Ltd
East North East Homes Leeds,http://statistics.data.gov.uk/doc/local-authority/00DA,East - North East,Technical Services,Supplies and services,Other Hired And Contracted Services,265,02/12/2010,1012-00018,803.35 ,R,A D Simpson Ltd
East North East Homes Leeds,http://statistics.data.gov.uk/doc/local-authority/00DA,East - North East,Technical Services,Supplies and services,Other Hired And Contracted Services,265,02/12/2010,1012-00019,1231.94 ,R,A D Simpson Ltd
East North East Homes Leeds,http://statistics.data.gov.uk/doc/local-authority/00DA,East - North East,Technical Services,Supplies and services,Other Hired And Contracted Services,265,02/12/2010,1012-00020,445.30 ,R,A D Simpson Ltd
East North East Homes Leeds,http://statistics.data.gov.uk/doc/local-authority/00DA,East - North East,Technical Services,Supplies and services,Other Hired And Contracted Services,265,02/12/2010,1012-00021,678.60 ,R,A D Simpson Ltd
East North East Homes Leeds,http://statistics.data.gov.uk/doc/local-authority/00DA,East - North East,Technical Services,Supplies and services,Other Materials,205,03/12/2010,1012-00022,-468.60 ,R,A D Simpson Ltd
East North East Homes Leeds,http://statistics.data.gov.uk/doc/local-authority/00DA,East - North East,Technical Services,Supplies and services,Other Materials,205,03/12/2010,1012-00023,-592.30 ,R,A D Simpson Ltd
East North East Homes Leeds,http://statistics.data.gov.uk/doc/local-authority/00DA,East - North East,Technical Services,Supplies and services,Other Hired And Contracted Services,265,03/12/2010,1012-00024,448.50 ,R,A D Simpson Ltd
East North East Homes Leeds,http://statistics.data.gov.uk/doc/local-authority/00DA,East - North East,Technical Services,Supplies and services,Other Hired And Contracted Services,265,03/12/2010,1012-00025,426.50 ,R,A D Simpson Ltd
East North East Homes Leeds,http://statistics.data.gov.uk/doc/local-authority/00DA,East - North East,Technical Services,Supplies and services,Other Hired And Contracted Services,265,03/12/2010,1012-00026,618.50 ,R,A D Simpson Ltd
East North East Homes Leeds,http://statistics.data.gov.uk/doc/local-authority/00DA,East - North East,Technical Services,Supplies and services,Other Hired And Contracted Services,265,03/12/2010,1012-00027,437.50 ,R,A D Simpson Ltd
East North East Homes Leeds,http://statistics.data.gov.uk/doc/local-authority/00DA,East - North East,Technical Services,Supplies and services,Other Hired And Contracted Services,265,03/12/2010,1012-00028,466.95 ,R,A D Simpson Ltd
East North East Homes Leeds,http://statistics.data.gov.uk/doc/local-authority/00DA,East - North East,Technical Services,Supplies and services,Other Hired And Contracted Services,265,03/12/2010,1012-00029,1500.42 ,R,A D Simpson Ltd
East North East Homes Leeds,http://statistics.data.gov.uk/doc/local-authority/00DA,East - North East,Technical Services,Supplies and services,Other Hired And Contracted Services,265,03/12/2010,1012-00030,1020.35 ,R,A D Simpson Ltd
East North East Homes Leeds,http://statistics.data.gov.uk/doc/local-authority/00DA,East - North East,Technical Services,Supplies and services,Other Hired And Contracted Services,265,03/12/2010,1012-00031,907.48 ,R,A D Simpson Ltd
East North East Homes Leeds,http://statistics.data.gov.uk/doc/local-authority/00DA,East - North East,Technical Services,Supplies and services,Other Hired And Contracted Services,265,03/12/2010,1012-00032,477.76 ,R,A D Simpson Ltd
East North East Homes Leeds,http://statistics.data.gov.uk/doc/local-authority/00DA,East - North East,Technical Services,Supplies and services,Other Hired And Contracted Services,265,03/12/2010,1012-00033,752.00 ,R,A D Simpson Ltd
East North East Homes Leeds,http://statistics.data.gov.uk/doc/local-authority/00DA,East - North East,Technical Services,Supplies and services,Other Hired And Contracted Services,265,03/12/2010,1012-00034,2998.60 ,R,A D Simpson Ltd
East North East Homes Leeds,http://statistics.data.gov.uk/doc/local-authority/00DA,East - North East,Technical Services,Supplies and services,Other Hired And Contracted Services,265,03/12/2010,1012-00035,468.60 ,R,A D Simpson Ltd
East North East Homes Leeds,http://statistics.data.gov.uk/doc/local-authority/00DA,East - North East,Technical Services,Supplies and services,Other Hired And Contracted Services,265,03/12/2010,1012-00036,545.45 ,R,A D Simpson Ltd
East North East Homes Leeds,http://statistics.data.gov.uk/doc/local-authority/00DA,East - North East,Technical Services,Supplies and services,Other Hired And Contracted Services,265,03/12/2010,1012-00037,790.25 ,R,A D Simpson Ltd
East North East Homes Leeds,http://statistics.data.gov.uk/doc/local-authority/00DA,East - North East,Technical Services,Supplies and services,Other Hired And Contracted Services,265,03/12/2010,1012-00038,1030.60 ,R,A D Simpson Ltd
East North East Homes Leeds,http://statistics.data.gov.uk/doc/local-authority/00DA,East - North East,Technical Services,Supplies and services,Other Hired And Contracted Services,265,03/12/2010,1012-00039,453.00 ,R,A D Simpson Ltd
East North East Homes Leeds,http://statistics.data.gov.uk/doc/local-authority/00DA,East - North East,Technical Services,Supplies and services,Other Hired And Contracted Services,265,03/12/2010,1012-00040,635.00 ,R,A D Simpson Ltd
East North East Homes Leeds,http://statistics.data.gov.uk/doc/local-authority/00DA,East - North East,Technical Services,Supplies and services,Other Materials,205,24/12/2010,1012-00041,592.30 ,R,A D Simpson Ltd
East North East Homes Leeds,http://statistics.data.gov.uk/doc/local-authority/00DA,East - North East,Technical Services,Supplies and services,Other Materials,205,24/12/2010,1012-00042,468.60 ,R,A D Simpson Ltd
East North East Homes Leeds,http://statistics.data.gov.uk/doc/local-authority/00DA,East - North East,Technical Services,Supplies and services,Other Hired And Contracted Services,265,24/12/2010,1012-00043,551.50 ,R,A D Simpson Ltd
East North East Homes Leeds,http://statistics.data.gov.uk/doc/local-authority/00DA,East - North East,Technical Services,Supplies and services,Other Hired And Contracted Services,265,24/12/2010,1012-00044,1261.19 ,R,A D Simpson Ltd
East North East Homes Leeds,http://statistics.data.gov.uk/doc/local-authority/00DA,East - North East,Technical Services,Supplies and services,Other Hired And Contracted Services,265,24/12/2010,1012-00045,628.88 ,R,A D Simpson Ltd
East North East Homes Leeds,http://statistics.data.gov.uk/doc/local-authority/00DA,East - North East,Technical Services,Supplies and services,Other Hired And Contracted Services,265,24/12/2010,1012-00046,1728.02 ,R,A D Simpson Ltd
East North East Homes Leeds,http://statistics.data.gov.uk/doc/local-authority/00DA,East - North East,Technical Services,Supplies and services,Other Hired And Contracted Services,265,24/12/2010,1012-00047,452.91 ,R,A D Simpson Ltd
East North East Homes Leeds,http://statistics.data.gov.uk/doc/local-authority/00DA,East - North East,Technical Services,Employees,Temporary Staff-Basic,009,24/12/2010,1012-00048,920.00 ,R,A D Simpson Ltd
East North East Homes Leeds,http://statistics.data.gov.uk/doc/local-authority/00DA,East - North East,Technical Services,Supplies and services,Other Hired And Contracted Services,265,24/12/2010,1012-00049,1272.90 ,R,A D Simpson Ltd
East North East Homes Leeds,http://statistics.data.gov.uk/doc/local-authority/00DA,East - North East,Technical Services,Supplies and services,Other Hired And Contracted Services,265,24/12/2010,1012-00050,702.22 ,R,A D Simpson Ltd
East North East Homes Leeds,http://statistics.data.gov.uk/doc/local-authority/00DA,East - North East,Technical Services,Supplies and services,Other Hired And Contracted Services,265,24/12/2010,1012-00051,1153.17 ,R,A D Simpson Ltd
East North East Homes Leeds,http://statistics.data.gov.uk/doc/local-authority/00DA,East - North East,Technical Services,Employees,Temporary Staff-Basic,009,29/12/2010,1012-00052,920.00 ,R,A D Simpson Ltd
East North East Homes Leeds,http://statistics.data.gov.uk/doc/local-authority/00DA,East - North East,Technical Services,Employees,Temporary Staff-Basic,009,29/12/2010,1012-00053,920.00 ,R,A D Simpson Ltd
East North East Homes Leeds,http://statistics.data.gov.uk/doc/local-authority/00DA,East - North East,Technical Services,Supplies and services,Other Hired And Contracted Services,265,29/12/2010,1012-00054,896.64 ,R,A D Simpson Ltd
East North East Homes Leeds,http://statistics.data.gov.uk/doc/local-authority/00DA,East - North East,Technical Services,Supplies and services,Other Hired And Contracted Services,265,29/12/2010,1012-00055,1607.48 ,R,A D Simpson Ltd
East North East Homes Leeds,http://statistics.data.gov.uk/doc/local-authority/00DA,East - North East,Technical Services,Supplies and services,Other Hired And Contracted Services,265,29/12/2010,1012-00056,1575.50 ,R,A D Simpson Ltd
East North East Homes Leeds,http://statistics.data.gov.uk/doc/local-authority/00DA,East - North East,Technical Services,Supplies and services,Other Hired And Contracted Services,265,29/12/2010,1012-00057,3395.51 ,R,A D Simpson Ltd
East North East Homes Leeds,http://statistics.data.gov.uk/doc/local-authority/00DA,East - North East,Technical Services,Supplies and services,Other Hired And Contracted Services,265,29/12/2010,1012-00058,527.63 ,R,A D Simpson Ltd
East North East Homes Leeds,http://statistics.data.gov.uk/doc/local-authority/00DA,East - North East,Technical Services,Supplies and services,Other Hired And Contracted Services,265,29/12/2010,1012-00059,575.30 ,R,A D Simpson Ltd
East North East Homes Leeds,http://statistics.data.gov.uk/doc/local-authority/00DA,East - North East,Technical Services,Supplies and services,Other Hired And Contracted Services,265,29/12/2010,1012-00060,1451.61 ,R,A D Simpson Ltd
East North East Homes Leeds,http://statistics.data.gov.uk/doc/local-authority/00DA,East - North East,Technical Services,Supplies and services,Other Hired And Contracted Services,265,29/12/2010,1012-00061,922.56 ,R,A D Simpson Ltd
East North East Homes Leeds,http://statistics.data.gov.uk/doc/local-authority/00DA,East - North East,Technical Services,Supplies and services,Other Hired And Contracted Services,265,29/12/2010,1012-00062,1345.91 ,R,A D Simpson Ltd
East North East Homes Leeds,http://statistics.data.gov.uk/doc/local-authority/00DA,East - North East,Technical Services,Supplies and services,Other Hired And Contracted Services,265,29/12/2010,1012-00063,4030.35 ,R,A D Simpson Ltd
East North East Homes Leeds,http://statistics.data.gov.uk/doc/local-authority/00DA,East - North East,Technical Services,Supplies and services,Other Hired And Contracted Services,265,29/12/2010,1012-00064,1869.26 ,R,A D Simpson Ltd
East North East Homes Leeds,http://statistics.data.gov.uk/doc/local-authority/00DA,East - North East,Technical Services,Supplies and services,Other Hired And Contracted Services,265,29/12/2010,1012-00065,1404.91 ,R,A D Simpson Ltd
Leeds City Council,http://statistics.data.gov.uk/doc/local-authority/00DA,Children's Services,Early Years Service,Third party payments,Services Rendered By Voluntary Sector,505,17/12/2010,1012-00066,2609.26 ,R,A E SPEIGHT
Leeds City Council,http://statistics.data.gov.uk/doc/local-authority/00DA,City Development,Highways,Capital,CONSTRUCTION,3,09/12/2010,1012-00067,15359.95 ,C,A E YATES LTD
Leeds City Council,http://statistics.data.gov.uk/doc/local-authority/00DA,City Development,Highways,Capital,OTHER COSTS,7,09/12/2010,1012-00068,946.69 ,C,A E YATES LTD
Leeds City Council,http://statistics.data.gov.uk/doc/local-authority/00DA,City Development,Highways,Capital,CONSTRUCTION,3,17/12/2010,1012-00069,35626.53 ,C,A E YATES LTD
Leeds City Council,http://statistics.data.gov.uk/doc/local-authority/00DA,City Development,Recreation,Supplies and services,Operational Furniture And Equipment,203,09/12/2010,1012-00070,770.73 ,R,A Holdsworth
Leeds City Council,http://statistics.data.gov.uk/doc/local-authority/00DA,Central & Corporate Functions,Commercial Services Trading Services,Supplies and services,Operational Materials,205,10/12/2010,1012-00071,1682.00 ,R,A J H Pump Supply & Repair Ltd
Leeds City Council,http://statistics.data.gov.uk/doc/local-authority/00DA,Children's Services,Children Looked After,Third party payments,General External Residential Placements,507,08/12/2010,1012-00072,13000.00 ,R,A Lowrie Care Service Limited
Leeds City Council,http://statistics.data.gov.uk/doc/local-authority/00DA,Central & Corporate Functions,Customer Services,Supplies and services,Other Hired And Contracted Services,265,24/12/2010,1012-00073,503.45 ,R,A MOHAMMED
Leeds City Council,http://statistics.data.gov.uk/doc/local-authority/00DA,Central & Corporate Functions,Customer Services,Supplies and services,Other Hired And Contracted Services,265,06/12/2010,1012-00074,1609.00 ,R,A NAMAKI
Leeds City Council,http://statistics.data.gov.uk/doc/local-authority/00DA,Central & Corporate Functions,Customer Services,Supplies and services,Other Hired And Contracted Services,265,24/12/2010,1012-00075,501.50 ,R,A NAMAKI
Leeds City Council,http://statistics.data.gov.uk/doc/local-authority/00DA,City Development,Libraries Arts and Heritage,Supplies and services,Publication And Promotion,267,16/12/2010,1012-00076,490.00 ,R,A Y CREATIVE SERVICES
Leeds City Council,http://statistics.data.gov.uk/doc/local-authority/00DA,Environment & Neighbourhoods,Housing Needs,Transport,Public Transport Expenses,310,02/12/2010,1012-00077,1895.00 ,R,A ZOOM TAXIS
Leeds City Council,http://statistics.data.gov.uk/doc/local-authority/00DA,Central & Corporate Functions,Commercial Services Trading Services,Supplies and services,Other Hired And Contracted Services,265,01/12/2010,1012-00078,840.18 ,R,AAZTEC ASSOCIATES LTD
Leeds City Council,http://statistics.data.gov.uk/doc/local-authority/00DA,Adult Social Care,Services For Older People - 65 and over,Third party payments,Residential Care Emi,571,22/12/2010,1012-00079,1189.60 ,R,ABBEY LEA RESIDENTIAL CARE HOME
Leeds City Council,http://statistics.data.gov.uk/doc/local-authority/00DA,Adult Social Care,Services For Adults under 65 Mental/Dis,Third party payments,Residential,580,22/12/2010,1012-00080,1174.20 ,R,Abbeydale Care Home
Leeds City Council,http://statistics.data.gov.uk/doc/local-authority/00DA,Children's Services,Early Years Service,Third party payments,Services Rendered By Other Organisations,511,16/12/2010,1012-00081,4515.50 ,R,ABC DAYCARE
Leeds City Council,http://statistics.data.gov.uk/doc/local-authority/00DA,Children's Services,Early Years Service,Third party payments,Services Rendered By Other Organisations,511,17/12/2010,1012-00082,1285.51 ,R,ABC NURSERY AT LUFC
Leeds City Council,http://statistics.data.gov.uk/doc/local-authority/00DA,City Development,Economic Development,Supplies and services,Other Hired And Contracted Services,265,22/12/2010,1012-00083,3285.23 ,R,ABDN
Leeds City Council,http://statistics.data.gov.uk/doc/local-authority/00DA,Environment & Neighbourhoods,Regeneration,Supplies and services,'Well Being' Large Grants Projects,230,01/12/2010,1012-00084,2500.00 ,R,Aberford Parish Plan
Leeds City Council,http://statistics.data.gov.uk/doc/local-authority/00DA,Environment & Neighbourhoods,Environmental Health,Capital,CONSTRUCTION,3,03/12/2010,1012-00085,2830.00 ,C,ABLE BATHING & BUILDING CONTRACTORS LTD
Leeds City Council,http://statistics.data.gov.uk/doc/local-authority/00DA,Environment & Neighbourhoods,Environmental Health,Capital,CONSTRUCTION,3,03/12/2010,1012-00086,4400.00 ,C,ABLE BATHING & BUILDING CONTRACTORS LTD
Leeds City Council,http://statistics.data.gov.uk/doc/local-authority/00DA,Environment & Neighbourhoods,Environmental Health,Capital,CONSTRUCTION,3,03/12/2010,1012-00087,4400.00 ,C,ABLE BATHING & BUILDING CONTRACTORS LTD
Leeds City Council,http://statistics.data.gov.uk/doc/local-authority/00DA,Environment & Neighbourhoods,Environmental Health,Capital,CONSTRUCTION,3,03/12/2010,1012-00088,4400.00 ,C,ABLE BATHING & BUILDING CONTRACTORS LTD
Leeds City Council,http://statistics.data.gov.uk/doc/local-authority/00DA,Environment & Neighbourhoods,Environmental Health,Capital,CONSTRUCTION,3,03/12/2010,1012-00089,4970.00 ,C,ABLE BATHING & BUILDING CONTRACTORS LTD
Leeds City Council,http://statistics.data.gov.uk/doc/local-authority/00DA,Environment & Neighbourhoods,Environmental Health,Capital,CONSTRUCTION,3,03/12/2010,1012-00090,4400.00 ,C,ABLE BATHING & BUILDING CONTRACTORS LTD
Leeds City Council,http://statistics.data.gov.uk/doc/local-authority/00DA,Environment & Neighbourhoods,Environmental Health,Capital,CONSTRUCTION,3,03/12/2010,1012-00091,4400.00 ,C,ABLE BATHING & BUILDING CONTRACTORS LTD
Leeds City Council,http://statistics.data.gov.uk/doc/local-authority/00DA,Environment & Neighbourhoods,Environmental Health,Capital,CONSTRUCTION,3,03/12/2010,1012-00092,4400.00 ,C,ABLE BATHING & BUILDING CONTRACTORS LTD
Leeds City Council,http://statistics.data.gov.uk/doc/local-authority/00DA,Environment & Neighbourhoods,Environmental Health,Capital,CONSTRUCTION,3,03/12/2010,1012-00093,4400.00 ,C,ABLE BATHING & BUILDING CONTRACTORS LTD
Leeds City Council,http://statistics.data.gov.uk/doc/local-authority/00DA,Environment & Neighbourhoods,Environmental Health,Capital,CONSTRUCTION,3,03/12/2010,1012-00094,4400.00 ,C,ABLE BATHING & BUILDING CONTRACTORS LTD
Leeds City Council,http://statistics.data.gov.uk/doc/local-authority/00DA,Environment & Neighbourhoods,Environmental Health,Capital,CONSTRUCTION,3,03/12/2010,1012-00095,4400.00 ,C,ABLE BATHING & BUILDING CONTRACTORS LTD
Leeds City Council,http://statistics.data.gov.uk/doc/local-authority/00DA,Environment & Neighbourhoods,Environmental Health,Capital,CONSTRUCTION,3,03/12/2010,1012-00096,4400.00 ,C,ABLE BATHING & BUILDING CONTRACTORS LTD
Leeds City Council,http://statistics.data.gov.uk/doc/local-authority/00DA,Environment & Neighbourhoods,Environmental Health,Capital,CONSTRUCTION,3,03/12/2010,1012-00097,4400.00 ,C,ABLE BATHING & BUILDING CONTRACTORS LTD
Leeds City Council,http://statistics.data.gov.uk/doc/local-authority/00DA,Environment & Neighbourhoods,Environmental Health,Capital,CONSTRUCTION,3,03/12/2010,1012-00098,4670.00 ,C,ABLE BATHING & BUILDING CONTRACTORS LTD
Leeds City Council,http://statistics.data.gov.uk/doc/local-authority/00DA,Adult Social Care,Adult Social Care,Capital,OTHER COSTS,7,10/12/2010,1012-00099,755.00 ,C,ABLE BATHING & BUILDING CONTRACTORS LTD
Leeds City Council,http://statistics.data.gov.uk/doc/local-authority/00DA,Environment & Neighbourhoods,Environmental Health,Capital,CONSTRUCTION,3,10/12/2010,1012-00100,4400.00 ,C,ABLE BATHING & BUILDING CONTRACTORS LTD
Leeds City Council,http://statistics.data.gov.uk/doc/local-authority/00DA,Environment & Neighbourhoods,Environmental Health,Capital,CONSTRUCTION,3,20/12/2010,1012-00101,4400.00 ,C,ABLE BATHING & BUILDING CONTRACTORS LTD
Leeds City Council,http://statistics.data.gov.uk/doc/local-authority/00DA,Environment & Neighbourhoods,Environmental Health,Capital,CONSTRUCTION,3,20/12/2010,1012-00102,4400.00 ,C,ABLE BATHING & BUILDING CONTRACTORS LTD
Leeds City Council,http://statistics.data.gov.uk/doc/local-authority/00DA,Environment & Neighbourhoods,Environmental Health,Capital,CONSTRUCTION,3,20/12/2010,1012-00103,4400.00 ,C,ABLE BATHING & BUILDING CONTRACTORS LTD
Leeds City Council,http://statistics.data.gov.uk/doc/local-authority/00DA,Environment & Neighbourhoods,Environmental Health,Capital,CONSTRUCTION,3,20/12/2010,1012-00104,4400.00 ,C,ABLE BATHING & BUILDING CONTRACTORS LTD
Leeds City Council,http://statistics.data.gov.uk/doc/local-authority/00DA,Environment & Neighbourhoods,Environmental Health,Capital,CONSTRUCTION,3,20/12/2010,1012-00105,4400.00 ,C,ABLE BATHING & BUILDING CONTRACTORS LTD
Leeds City Council,http://statistics.data.gov.uk/doc/local-authority/00DA,Environment & Neighbourhoods,Environmental Health,Capital,CONSTRUCTION,3,24/12/2010,1012-00106,4980.20 ,C,ABLE BATHING & BUILDING CONTRACTORS LTD
Leeds City Council,http://statistics.data.gov.uk/doc/local-authority/00DA,Environment & Neighbourhoods,Environmental Health,Capital,CONSTRUCTION,3,24/12/2010,1012-00107,4400.00 ,C,ABLE BATHING & BUILDING CONTRACTORS LTD
Leeds City Council,http://statistics.data.gov.uk/doc/local-authority/00DA,Environment & Neighbourhoods,Environmental Health,Capital,CONSTRUCTION,3,24/12/2010,1012-00108,4400.00 ,C,ABLE BATHING & BUILDING CONTRACTORS LTD
Leeds City Council,http://statistics.data.gov.uk/doc/local-authority/00DA,Environment & Neighbourhoods,Environmental Health,Capital,CONSTRUCTION,3,24/12/2010,1012-00109,4400.00 ,C,ABLE BATHING & BUILDING CONTRACTORS LTD
Leeds City Council,http://statistics.data.gov.uk/doc/local-authority/00DA,Environment & Neighbourhoods,Environmental Health,Capital,CONSTRUCTION,3,24/12/2010,1012-00110,4885.00 ,C,ABLE BATHING & BUILDING CONTRACTORS LTD
Leeds City Council,http://statistics.data.gov.uk/doc/local-authority/00DA,Environment & Neighbourhoods,Environmental Health,Capital,CONSTRUCTION,3,24/12/2010,1012-00111,4750.00 ,C,ABLE BATHING & BUILDING CONTRACTORS LTD
Education Leeds,http://statistics.data.gov.uk/doc/local-authority/00DA,Education Leeds,Education Leeds,Supplies and services,Other Hired And Contracted Services,265,03/12/2010,1012-00112,1610.00 ,R,ACADEMIC APPOINTMENTS LTD
Education Leeds,http://statistics.data.gov.uk/doc/local-authority/00DA,Education Leeds,Education Leeds,Supplies and services,Other Hired And Contracted Services,265,09/12/2010,1012-00113,725.00 ,R,ACADEMIC APPOINTMENTS LTD
Education Leeds,http://statistics.data.gov.uk/doc/local-authority/00DA,Education Leeds,Education Leeds,Supplies and services,Other Hired And Contracted Services,265,10/12/2010,1012-00114,1951.00 ,R,ACADEMIC APPOINTMENTS LTD
Education Leeds,http://statistics.data.gov.uk/doc/local-authority/00DA,Education Leeds,Education Leeds,Supplies and services,Other Hired And Contracted Services,265,15/12/2010,1012-00115,1010.00 ,R,ACADEMIC APPOINTMENTS LTD
Education Leeds,http://statistics.data.gov.uk/doc/local-authority/00DA,Education Leeds,Education Leeds,Supplies and services,Other Hired And Contracted Services,265,16/12/2010,1012-00116,1850.00 ,R,ACADEMIC APPOINTMENTS LTD
Education Leeds,http://statistics.data.gov.uk/doc/local-authority/00DA,Education Leeds,Education Leeds,Supplies and services,Other Hired And Contracted Services,265,16/12/2010,1012-00117,2153.00 ,R,ACADEMIC APPOINTMENTS LTD
Education Leeds,http://statistics.data.gov.uk/doc/local-authority/00DA,Education Leeds,Education Leeds,Supplies and services,Other Hired And Contracted Services,265,16/12/2010,1012-00118,725.00 ,R,ACADEMIC APPOINTMENTS LTD
Education Leeds,http://statistics.data.gov.uk/doc/local-authority/00DA,Education Leeds,Education Leeds,Supplies and services,Other Hired And Contracted Services,265,23/12/2010,1012-00119,1484.00 ,R,ACADEMIC APPOINTMENTS LTD
Education Leeds,http://statistics.data.gov.uk/doc/local-authority/00DA,Education Leeds,Education Leeds,Supplies and services,Other Hired And Contracted Services,265,24/12/2010,1012-00120,1951.00 ,R,ACADEMIC APPOINTMENTS LTD
Education Leeds,http://statistics.data.gov.uk/doc/local-authority/00DA,Education Leeds,Education Leeds,Supplies and services,Other Hired And Contracted Services,265,24/12/2010,1012-00121,725.00 ,R,ACADEMIC APPOINTMENTS LTD
Leeds City Council,http://statistics.data.gov.uk/doc/local-authority/00DA,Adult Social Care,Services For Adults under 65 Learn/Dis,Premises,Rents,141,02/12/2010,1012-00122,604.71 ,R,ACCENT FOUNDATION LTD
Leeds City Council,http://statistics.data.gov.uk/doc/local-authority/00DA,Adult Social Care,Services For Adults under 65 Learn/Dis,Premises,Rents,141,02/12/2010,1012-00123,546.00 ,R,ACCENT FOUNDATION LTD
Leeds City Council,http://statistics.data.gov.uk/doc/local-authority/00DA,Adult Social Care,Services For Adults under 65 Learn/Dis,Premises,Rents,141,02/12/2010,1012-00124,546.00 ,R,ACCENT FOUNDATION LTD
East North East Homes Leeds,http://statistics.data.gov.uk/doc/local-authority/00DA,East - North East,Technical Services,Supplies and services,Other Hired And Contracted Services,265,02/12/2010,1012-00125,15303.00 ,R,Access Maintenance Solutions Ltd
Leeds City Council,http://statistics.data.gov.uk/doc/local-authority/00DA,City Development,Recreation,Supplies and services,Security Services(Non Infrastructure),262,01/12/2010,1012-00126,1062.72 ,R,ACCLAIMED SECURITY SERVICES
Leeds City Council,http://statistics.data.gov.uk/doc/local-authority/00DA,City Development,Recreation,Premises,Premises Security Services,162,10/12/2010,1012-00127,438.24 ,R,ACCLAIMED SECURITY SERVICES
Leeds City Council,http://statistics.data.gov.uk/doc/local-authority/00DA,City Development,Recreation,Supplies and services,Security Services(Non Infrastructure),262,10/12/2010,1012-00128,1212.78 ,R,ACCLAIMED SECURITY SERVICES
Leeds City Council,http://statistics.data.gov.uk/doc/local-authority/00DA,City Development,Recreation,Premises,Premises Security Services,162,15/12/2010,1012-00129,438.24 ,R,ACCLAIMED SECURITY SERVICES
Leeds City Council,http://statistics.data.gov.uk/doc/local-authority/00DA,City Development,Recreation,Supplies and services,Security Services(Non Infrastructure),262,15/12/2010,1012-00130,1200.48 ,R,ACCLAIMED SECURITY SERVICES
Leeds City Council,http://statistics.data.gov.uk/doc/local-authority/00DA,City Development,Recreation,Premises,Premises Security Services,162,22/12/2010,1012-00131,588.89 ,R,ACCLAIMED SECURITY SERVICES
Leeds City Council,http://statistics.data.gov.uk/doc/local-authority/00DA,City Development,Recreation,Supplies and services,Security Services(Non Infrastructure),262,22/12/2010,1012-00132,1360.38 ,R,ACCLAIMED SECURITY SERVICES
Leeds City Council,http://statistics.data.gov.uk/doc/local-authority/00DA,City Development,Recreation,Premises,Premises Security Services,162,29/12/2010,1012-00133,511.28 ,R,ACCLAIMED SECURITY SERVICES
Leeds City Council,http://statistics.data.gov.uk/doc/local-authority/00DA,City Development,Recreation,Premises,Premises Security Services,162,29/12/2010,1012-00134,808.01 ,R,ACCLAIMED SECURITY SERVICES
Leeds City Council,http://statistics.data.gov.uk/doc/local-authority/00DA,City Development,Recreation,Premises,Premises Security Services,162,29/12/2010,1012-00135,438.24 ,R,ACCLAIMED SECURITY SERVICES
Leeds City Council,http://statistics.data.gov.uk/doc/local-authority/00DA,City Development,Recreation,Premises,Premises Security Services,162,29/12/2010,1012-00136,438.24 ,R,ACCLAIMED SECURITY SERVICES
Leeds City Council,http://statistics.data.gov.uk/doc/local-authority/00DA,City Development,Recreation,Premises,Premises Security Services,162,29/12/2010,1012-00137,438.24 ,R,ACCLAIMED SECURITY SERVICES
Leeds City Council,http://statistics.data.gov.uk/doc/local-authority/00DA,Adult Social Care,Assessment and Care Management,Supplies and services,Operational Furniture And Equipment,203,09/12/2010,1012-00138,1070.00 ,R,Accora
Leeds City Council,http://statistics.data.gov.uk/doc/local-authority/00DA,Insurance,Insurance,Supplies and services,Insurance Claims,248,02/12/2010,1012-00139,6000.00 ,R,Accountant General of the Senior Court
Leeds City Council,http://statistics.data.gov.uk/doc/local-authority/00DA,Insurance,Insurance,Supplies and services,Insurance Claims,248,02/12/2010,1012-00140,2254.00 ,R,Accountant General of the Senior Court
Leeds City Council,http://statistics.data.gov.uk/doc/local-authority/00DA,Insurance,Insurance,Supplies and services,Insurance Claims,248,23/12/2010,1012-00141,2313.60 ,R,Accountant General of the Senior Court
Leeds City Council,http://statistics.data.gov.uk/doc/local-authority/00DA,Adult Social Care,Services For Older People - 65 and over,Third party payments,Nursing Home,570,22/12/2010,1012-00142,1202.88 ,R,ACKWORTH HOUSE
Leeds City Council,http://statistics.data.gov.uk/doc/local-authority/00DA,Central & Corporate Functions,Commercial Services Trading Services,Supplies and services,Crockery  Cutlery & Utensils,221,17/12/2010,1012-00143,1549.00 ,R,ACME
Leeds City Council,http://statistics.data.gov.uk/doc/local-authority/00DA,City Development,Libraries Arts and Heritage,Supplies and services,Operational Furniture And Equipment,203,17/12/2010,1012-00144,708.00 ,R,ACORN EVENT SOLUTIONS LTD
Leeds City Council,http://statistics.data.gov.uk/doc/local-authority/00DA,Children's Services,Early Years Service,Capital,OTHER COSTS,7,10/12/2010,1012-00145,1744.05 ,C,ACORNS NURSERY
Leeds City Council,http://statistics.data.gov.uk/doc/local-authority/00DA,Children's Services,Early Years Service,Third party payments,Services Rendered By Other Organisations,511,17/12/2010,1012-00146,5903.59 ,R,ACORNS NURSERY
Leeds City Council,http://statistics.data.gov.uk/doc/local-authority/00DA,Children's Services,Early Years Service,Third party payments,Services Rendered By Other Organisations,511,17/12/2010,1012-00147,2340.84 ,R,ACRE WOOD CHILDRENS NURSERY
Leeds City Council,http://statistics.data.gov.uk/doc/local-authority/00DA,Children's Services,Other Childrens and Families Services,Third party payments,Adoptions - Allowances,560,07/12/2010,1012-00148,30960.00 ,R,Action For Children
Leeds City Council,http://statistics.data.gov.uk/doc/local-authority/00DA,Adult Social Care,Services For Older People - 65 and over,Third party payments,Payments To Voluntary Organisations,561,31/12/2010,1012-00149,17767.50 ,R,ACTION FOR GIPTON ELDERLY
Leeds City Council,http://statistics.data.gov.uk/doc/local-authority/00DA,Adult Social Care,Services For Older People - 65 and over,Third party payments,Payments To Voluntary Organisations,561,31/12/2010,1012-00150,3238.00 ,R,ACTION FOR GIPTON ELDERLY
West North West Homes Leeds,http://statistics.data.gov.uk/doc/local-authority/00DA,West - North West,Regeneration/Customer Research,Supplies and services,Miscellaneous Expenditure,208,29/12/2010,1012-00151,819.48 ,R,ACTIV8 SPORTING SOLUTIONS LTD
Leeds City Council,http://statistics.data.gov.uk/doc/local-authority/00DA,Children's Services,Early Years Service,Third party payments,Services Rendered By Other Organisations,511,17/12/2010,1012-00152,2374.85 ,R,ACTIVE KIDS DAY NURSERY
Leeds City Council,http://statistics.data.gov.uk/doc/local-authority/00DA,City Development,Recreation,Supplies and services,Bought In Professional Services,277,20/12/2010,1012-00153,4762.86 ,R,Ad Golf Management Ltd
Education Leeds,http://statistics.data.gov.uk/doc/local-authority/00DA,Education Leeds,Education Leeds,Supplies and services,Information Technology (Equipment),214,09/12/2010,1012-00154,657.00 ,R,Addams Office Supplies Ltd
Leeds City Council,http://statistics.data.gov.uk/doc/local-authority/00DA,Children's Services,Youth Justice,Supplies and services,Other Hired And Contracted Services,265,17/12/2010,1012-00155,630.00 ,R,Adel Farm and Gardens
Leeds City Council,http://statistics.data.gov.uk/doc/local-authority/00DA,Children's Services,Early Years Service,Third party payments,Services Rendered By Voluntary Sector,505,17/12/2010,1012-00156,2290.57 ,R,ADEL PRE SCHOOL
Leeds City Council,http://statistics.data.gov.uk/doc/local-authority/00DA,City Development,Libraries Arts and Heritage,Supplies and services,Other Hired And Contracted Services,265,23/12/2010,1012-00157,2840.00 ,R,ADI UK LTD
Leeds City Council,http://statistics.data.gov.uk/doc/local-authority/00DA,Environment & Neighbourhoods,Environmental Health,Capital,OTHER COSTS,7,17/12/2010,1012-00158,700.00 ,C,ADMAS LIMITED
Leeds City Council,http://statistics.data.gov.uk/doc/local-authority/00DA,Environment & Neighbourhoods,Environmental Health,Capital,OTHER COSTS,7,24/12/2010,1012-00159,430.00 ,C,ADMAS LIMITED
Leeds City Council,http://statistics.data.gov.uk/doc/local-authority/00DA,Central & Corporate Functions,Corporate Property Management,Premises,Maintenance Of Buildings,101,16/12/2010,1012-00160,830.60 ,R,ADT FIRE AND SECURITY
Leeds City Council,http://statistics.data.gov.uk/doc/local-authority/00DA,Children's Services,Youth Justice,Supplies and services,Teaching Materials,202,02/12/2010,1012-00161,1109.02 ,R,ADVANCED MACHINE TOOL SYSTEMS
Leeds City Council as Accountable Body,http://statistics.data.gov.uk/doc/local-authority/00DA,Social Services Pooled Budgets,Jcs For People With Learning Disabilitie,Third party payments,Residential,580,22/12/2010,1012-00162,20777.56 ,R,ADVITAM LTD
Leeds City Council,http://statistics.data.gov.uk/doc/local-authority/00DA,Adult Social Care,Other Adult Services,Supplies and services,Recurring & Major Grantss Projects,229,31/12/2010,1012-00163,7803.00 ,R,ADVOCACY SUPPORT LIMITED
Leeds City Council,http://statistics.data.gov.uk/doc/local-authority/00DA,Adult Social Care,Other Adult Services,Supplies and services,Recurring & Major Grantss Projects,229,31/12/2010,1012-00164,9883.75 ,R,Advonet
Leeds City Council,http://statistics.data.gov.uk/doc/local-authority/00DA,Insurance,Insurance,Supplies and services,Insurance Claims,248,16/12/2010,1012-00165,4625.00 ,R,Aegis Legal Ltd
Leeds City Council,http://statistics.data.gov.uk/doc/local-authority/00DA,Insurance,Insurance,Supplies and services,Other Hired And Contracted Services,265,23/12/2010,1012-00166,5000.00 ,R,Aegis Legal Ltd
Leeds City Council,http://statistics.data.gov.uk/doc/local-authority/00DA,Children's Services,Children - Commissioning and Social Work,Support services,Legal Disbursements,411,09/12/2010,1012-00167,500.00 ,R,Aelred Hookway
Leeds City Council as Accountable Body,http://statistics.data.gov.uk/doc/local-authority/00DA,Social Services Pooled Budgets,Jcs For People With Learning Disabilitie,Third party payments,Residential,580,02/12/2010,1012-00168,22084.03 ,R,Affinity Trust
Leeds City Council,http://statistics.data.gov.uk/doc/local-authority/00DA,Adult Social Care,Services For Older People - 65 and over,Third party payments,Residential,580,01/12/2010,1012-00169,504.60 ,R,Affinity Trust North Divisional Office
Leeds City Council as Accountable Body,http://statistics.data.gov.uk/doc/local-authority/00DA,Social Services Pooled Budgets,Jcs For People With Learning Disabilitie,Third party payments,Home Care,568,03/12/2010,1012-00170,451.44 ,R,Affinity Trust North Divisional Office
Leeds City Council as Accountable Body,http://statistics.data.gov.uk/doc/local-authority/00DA,Social Services Pooled Budgets,Jcs For People With Learning Disabilitie,Third party payments,Day Centre,564,03/12/2010,1012-00171,978.12 ,R,Affinity Trust North Divisional Office
Leeds City Council as Accountable Body,http://statistics.data.gov.uk/doc/local-authority/00DA,Social Services Pooled Budgets,Jcs For People With Learning Disabilitie,Third party payments,Day Centre,564,03/12/2010,1012-00172,3446.80 ,R,Affinity Trust North Divisional Office
Leeds City Council as Accountable Body,http://statistics.data.gov.uk/doc/local-authority/00DA,Social Services Pooled Budgets,Jcs For People With Learning Disabilitie,Third party payments,Day Centre,564,03/12/2010,1012-00173,1126.80 ,R,Affinity Trust North Divisional Office
Leeds City Council as Accountable Body,http://statistics.data.gov.uk/doc/local-authority/00DA,Social Services Pooled Budgets,Jcs For People With Learning Disabilitie,Third party payments,Day Centre,564,03/12/2010,1012-00174,2948.16 ,R,Affinity Trust North Divisional Office
Leeds City Council as Accountable Body,http://statistics.data.gov.uk/doc/local-authority/00DA,Social Services Pooled Budgets,Jcs For People With Learning Disabilitie,Third party payments,Home Care,568,03/12/2010,1012-00175,3312.96 ,R,Affinity Trust North Divisional Office
Leeds City Council as Accountable Body,http://statistics.data.gov.uk/doc/local-authority/00DA,Social Services Pooled Budgets,Jcs For People With Learning Disabilitie,Third party payments,Residential,580,03/12/2010,1012-00176,887.52 ,R,Affinity Trust North Divisional Office
Leeds City Council as Accountable Body,http://statistics.data.gov.uk/doc/local-authority/00DA,Social Services Pooled Budgets,Jcs For People With Learning Disabilitie,Third party payments,Home Care,568,03/12/2010,1012-00177,754.20 ,R,Affinity Trust North Divisional Office
Leeds City Council as Accountable Body,http://statistics.data.gov.uk/doc/local-authority/00DA,Social Services Pooled Budgets,Jcs For People With Learning Disabilitie,Third party payments,Home Care,568,03/12/2010,1012-00178,1005.60 ,R,Affinity Trust North Divisional Office
Leeds City Council as Accountable Body,http://statistics.data.gov.uk/doc/local-authority/00DA,Social Services Pooled Budgets,Jcs For People With Learning Disabilitie,Third party payments,Day Centre,564,03/12/2010,1012-00179,1753.92 ,R,Affinity Trust North Divisional Office
Leeds City Council as Accountable Body,http://statistics.data.gov.uk/doc/local-authority/00DA,Social Services Pooled Budgets,Jcs For People With Learning Disabilitie,Third party payments,Home Care,568,03/12/2010,1012-00180,1139.68 ,R,Affinity Trust North Divisional Office
Leeds City Council as Accountable Body,http://statistics.data.gov.uk/doc/local-authority/00DA,Social Services Pooled Budgets,Jcs For People With Learning Disabilitie,Third party payments,Day Centre,564,03/12/2010,1012-00181,714.78 ,R,Affinity Trust North Divisional Office
Leeds City Council as Accountable Body,http://statistics.data.gov.uk/doc/local-authority/00DA,Social Services Pooled Budgets,Jcs For People With Learning Disabilitie,Third party payments,Day Centre,564,03/12/2010,1012-00182,2279.36 ,R,Affinity Trust North Divisional Office
Leeds City Council as Accountable Body,http://statistics.data.gov.uk/doc/local-authority/00DA,Social Services Pooled Budgets,Jcs For People With Learning Disabilitie,Third party payments,Day Centre,564,03/12/2010,1012-00183,666.60 ,R,Affinity Trust North Divisional Office
Leeds City Council as Accountable Body,http://statistics.data.gov.uk/doc/local-authority/00DA,Social Services Pooled Budgets,Jcs For People With Learning Disabilitie,Third party payments,Residential,580,06/12/2010,1012-00184,10914.64 ,R,Affinity Trust North Divisional Office
Leeds City Council as Accountable Body,http://statistics.data.gov.uk/doc/local-authority/00DA,Social Services Pooled Budgets,Jcs For People With Learning Disabilitie,Third party payments,Home Care,568,07/12/2010,1012-00185,675.21 ,R,Affinity Trust North Divisional Office
Leeds City Council as Accountable Body,http://statistics.data.gov.uk/doc/local-authority/00DA,Social Services Pooled Budgets,Jcs For People With Learning Disabilitie,Third party payments,Residential,580,09/12/2010,1012-00186,82911.80 ,R,Affinity Trust North Divisional Office
Leeds City Council as Accountable Body,http://statistics.data.gov.uk/doc/local-authority/00DA,Social Services Pooled Budgets,Jcs For People With Learning Disabilitie,Third party payments,Residential,580,09/12/2010,1012-00187,55737.98 ,R,Affinity Trust North Divisional Office
Leeds City Council as Accountable Body,http://statistics.data.gov.uk/doc/local-authority/00DA,Social Services Pooled Budgets,Jcs For People With Learning Disabilitie,Third party payments,Residential,580,09/12/2010,1012-00188,81935.36 ,R,Affinity Trust North Divisional Office
Leeds City Council as Accountable Body,http://statistics.data.gov.uk/doc/local-authority/00DA,Social Services Pooled Budgets,Jcs For People With Learning Disabilitie,Third party payments,Home Care,568,09/12/2010,1012-00189,39453.18 ,R,Affinity Trust North Divisional Office
Leeds City Council as Accountable Body,http://statistics.data.gov.uk/doc/local-authority/00DA,Social Services Pooled Budgets,Jcs For People With Learning Disabilitie,Third party payments,Home Care,568,09/12/2010,1012-00190,38368.98 ,R,Affinity Trust North Divisional Office
Leeds City Council as Accountable Body,http://statistics.data.gov.uk/doc/local-authority/00DA,Social Services Pooled Budgets,Jcs For People With Learning Disabilitie,Third party payments,Day Centre,564,09/12/2010,1012-00191,26239.11 ,R,Affinity Trust North Divisional Office
Leeds City Council as Accountable Body,http://statistics.data.gov.uk/doc/local-authority/00DA,Social Services Pooled Budgets,Jcs For People With Learning Disabilitie,Third party payments,Day Centre,564,09/12/2010,1012-00192,23819.61 ,R,Affinity Trust North Divisional Office
Leeds City Council as Accountable Body,http://statistics.data.gov.uk/doc/local-authority/00DA,Social Services Pooled Budgets,Jcs For People With Learning Disabilitie,Third party payments,Home Care,568,09/12/2010,1012-00193,3848.08 ,R,Affinity Trust North Divisional Office
Leeds City Council as Accountable Body,http://statistics.data.gov.uk/doc/local-authority/00DA,Social Services Pooled Budgets,Jcs For People With Learning Disabilitie,Third party payments,Home Care,568,09/12/2010,1012-00194,3848.08 ,R,Affinity Trust North Divisional Office
Leeds City Council as Accountable Body,http://statistics.data.gov.uk/doc/local-authority/00DA,Social Services Pooled Budgets,Jcs For People With Learning Disabilitie,Third party payments,Home Care,568,09/12/2010,1012-00195,6193.32 ,R,Affinity Trust North Divisional Office
Leeds City Council as Accountable Body,http://statistics.data.gov.uk/doc/local-authority/00DA,Social Services Pooled Budgets,Jcs For People With Learning Disabilitie,Third party payments,Home Care,568,09/12/2010,1012-00196,689.62 ,R,Affinity Trust North Divisional Office
Leeds City Council as Accountable Body,http://statistics.data.gov.uk/doc/local-authority/00DA,Social Services Pooled Budgets,Jcs For People With Learning Disabilitie,Third party payments,Home Care,568,09/12/2010,1012-00197,544.00 ,R,Affinity Trust North Divisional Office
Leeds City Council as Accountable Body,http://statistics.data.gov.uk/doc/local-authority/00DA,Social Services Pooled Budgets,Jcs For People With Learning Disabilitie,Third party payments,Home Care,568,09/12/2010,1012-00198,500.90 ,R,Affinity Trust North Divisional Office
Leeds City Council as Accountable Body,http://statistics.data.gov.uk/doc/local-authority/00DA,Social Services Pooled Budgets,Jcs For People With Learning Disabilitie,Third party payments,Day Centre,564,09/12/2010,1012-00199,560.80 ,R,Affinity Trust North Divisional Office
Leeds City Council,http://statistics.data.gov.uk/doc/local-authority/00DA,Adult Social Care,Services For Older People under 65 P/Dis,Third party payments,Home Care,568,09/12/2010,1012-00200,1185.88 ,R,Affinity Trust North Divisional Office
Leeds City Council as Accountable Body,http://statistics.data.gov.uk/doc/local-authority/00DA,Social Services Pooled Budgets,Jcs For People With Learning Disabilitie,Third party payments,Home Care,568,09/12/2010,1012-00201,428.00 ,R,Affinity Trust North Divisional Office
Leeds City Council,http://statistics.data.gov.uk/doc/local-authority/00DA,Adult Social Care,Services For Older People under 65 P/Dis,Third party payments,Home Care,568,09/12/2010,1012-00202,1375.80 ,R,Affinity Trust North Divisional Office
Leeds City Council,http://statistics.data.gov.uk/doc/local-authority/00DA,Adult Social Care,Services For Older People under 65 P/Dis,Third party payments,Home Care,568,09/12/2010,1012-00203,644.96 ,R,Affinity Trust North Divisional Office
Leeds City Council,http://statistics.data.gov.uk/doc/local-authority/00DA,Adult Social Care,Services For Older People under 65 P/Dis,Third party payments,Home Care,568,09/12/2010,1012-00204,946.62 ,R,Affinity Trust North Divisional Office
Leeds City Council,http://statistics.data.gov.uk/doc/local-authority/00DA,Adult Social Care,Services For Adults under 65 Mental/Dis,Third party payments,Home Care,568,09/12/2010,1012-00205,504.28 ,R,Affinity Trust North Divisional Office
Leeds City Council as Accountable Body,http://statistics.data.gov.uk/doc/local-authority/00DA,Social Services Pooled Budgets,Jcs For People With Learning Disabilitie,Third party payments,Day Centre,564,09/12/2010,1012-00206,2154.25 ,R,Affinity Trust North Divisional Office
Leeds City Council,http://statistics.data.gov.uk/doc/local-authority/00DA,Adult Social Care,Services For Older People under 65 P/Dis,Third party payments,Home Care,568,09/12/2010,1012-00207,1744.96 ,R,Affinity Trust North Divisional Office
Leeds City Council as Accountable Body,http://statistics.data.gov.uk/doc/local-authority/00DA,Social Services Pooled Budgets,Jcs For People With Learning Disabilitie,Third party payments,Day Centre,564,10/12/2010,1012-00208,2748.64 ,R,Affinity Trust North Divisional Office
Leeds City Council as Accountable Body,http://statistics.data.gov.uk/doc/local-authority/00DA,Social Services Pooled Budgets,Jcs For People With Learning Disabilitie,Third party payments,Home Care,568,23/12/2010,1012-00209,2452.02 ,R,Affinity Trust North Divisional Office
Leeds City Council as Accountable Body,http://statistics.data.gov.uk/doc/local-authority/00DA,Social Services Pooled Budgets,Jcs For People With Learning Disabilitie,Third party payments,Day Centre,564,30/12/2010,1012-00210,3446.80 ,R,Affinity Trust North Divisional Office
Leeds City Council as Accountable Body,http://statistics.data.gov.uk/doc/local-authority/00DA,Social Services Pooled Budgets,Jcs For People With Learning Disabilitie,Third party payments,Day Centre,564,30/12/2010,1012-00211,823.52 ,R,Affinity Trust North Divisional Office
Leeds City Council as Accountable Body,http://statistics.data.gov.uk/doc/local-authority/00DA,Social Services Pooled Budgets,Jcs For People With Learning Disabilitie,Third party payments,Day Centre,564,30/12/2010,1012-00212,3143.04 ,R,Affinity Trust North Divisional Office
Leeds City Council as Accountable Body,http://statistics.data.gov.uk/doc/local-authority/00DA,Social Services Pooled Budgets,Jcs For People With Learning Disabilitie,Third party payments,Home Care,568,30/12/2010,1012-00213,4417.28 ,R,Affinity Trust North Divisional Office
Leeds City Council as Accountable Body,http://statistics.data.gov.uk/doc/local-authority/00DA,Social Services Pooled Budgets,Jcs For People With Learning Disabilitie,Third party payments,Residential,580,30/12/2010,1012-00214,826.86 ,R,Affinity Trust North Divisional Office
Leeds City Council as Accountable Body,http://statistics.data.gov.uk/doc/local-authority/00DA,Social Services Pooled Budgets,Jcs For People With Learning Disabilitie,Third party payments,Home Care,568,30/12/2010,1012-00215,804.48 ,R,Affinity Trust North Divisional Office
Leeds City Council as Accountable Body,http://statistics.data.gov.uk/doc/local-authority/00DA,Social Services Pooled Budgets,Jcs For People With Learning Disabilitie,Third party payments,Home Care,568,30/12/2010,1012-00216,754.20 ,R,Affinity Trust North Divisional Office
Leeds City Council as Accountable Body,http://statistics.data.gov.uk/doc/local-authority/00DA,Social Services Pooled Budgets,Jcs For People With Learning Disabilitie,Third party payments,Day Centre,564,30/12/2010,1012-00217,714.78 ,R,Affinity Trust North Divisional Office
Leeds City Council as Accountable Body,http://statistics.data.gov.uk/doc/local-authority/00DA,Social Services Pooled Budgets,Jcs For People With Learning Disabilitie,Third party payments,Day Centre,564,30/12/2010,1012-00218,2279.36 ,R,Affinity Trust North Divisional Office
Leeds City Council as Accountable Body,http://statistics.data.gov.uk/doc/local-authority/00DA,Social Services Pooled Budgets,Jcs For People With Learning Disabilitie,Third party payments,Home Care,568,30/12/2010,1012-00219,3848.08 ,R,Affinity Trust North Divisional Office
Leeds City Council as Accountable Body,http://statistics.data.gov.uk/doc/local-authority/00DA,Social Services Pooled Budgets,Jcs For People With Learning Disabilitie,Third party payments,Home Care,568,30/12/2010,1012-00220,3848.08 ,R,Affinity Trust North Divisional Office
Leeds City Council as Accountable Body,http://statistics.data.gov.uk/doc/local-authority/00DA,Social Services Pooled Budgets,Jcs For People With Learning Disabilitie,Third party payments,Home Care,568,30/12/2010,1012-00221,6193.32 ,R,Affinity Trust North Divisional Office
Leeds City Council as Accountable Body,http://statistics.data.gov.uk/doc/local-authority/00DA,Social Services Pooled Budgets,Jcs For People With Learning Disabilitie,Third party payments,Home Care,568,30/12/2010,1012-00222,672.80 ,R,Affinity Trust North Divisional Office
Leeds City Council as Accountable Body,http://statistics.data.gov.uk/doc/local-authority/00DA,Social Services Pooled Budgets,Jcs For People With Learning Disabilitie,Third party payments,Home Care,568,30/12/2010,1012-00223,765.00 ,R,Affinity Trust North Divisional Office
Leeds City Council as Accountable Body,http://statistics.data.gov.uk/doc/local-authority/00DA,Social Services Pooled Budgets,Jcs For People With Learning Disabilitie,Third party payments,Day Centre,564,30/12/2010,1012-00224,456.64 ,R,Affinity Trust North Divisional Office
Leeds City Council as Accountable Body,http://statistics.data.gov.uk/doc/local-authority/00DA,Social Services Pooled Budgets,Jcs For People With Learning Disabilitie,Third party payments,Day Centre,564,30/12/2010,1012-00225,2333.00 ,R,Affinity Trust North Divisional Office
Leeds City Council as Accountable Body,http://statistics.data.gov.uk/doc/local-authority/00DA,Social Services Pooled Budgets,Jcs For People With Learning Disabilitie,Third party payments,Home Care,568,31/12/2010,1012-00226,451.44 ,R,Affinity Trust North Divisional Office
Leeds City Council as Accountable Body,http://statistics.data.gov.uk/doc/local-authority/00DA,Social Services Pooled Budgets,Jcs For People With Learning Disabilitie,Third party payments,Day Centre,564,31/12/2010,1012-00227,978.12 ,R,Affinity Trust North Divisional Office
Leeds City Council as Accountable Body,http://statistics.data.gov.uk/doc/local-authority/00DA,Social Services Pooled Budgets,Jcs For People With Learning Disabilitie,Third party payments,Home Care,568,31/12/2010,1012-00228,1139.68 ,R,Affinity Trust North Divisional Office
Leeds City Council,http://statistics.data.gov.uk/doc/local-authority/00DA,Adult Social Care,Services For Older People under 65 P/Dis,Third party payments,Home Care,568,31/12/2010,1012-00229,1185.88 ,R,Affinity Trust North Divisional Office
Leeds City Council as Accountable Body,http://statistics.data.gov.uk/doc/local-authority/00DA,Social Services Pooled Budgets,Jcs For People With Learning Disabilitie,Third party payments,Home Care,568,31/12/2010,1012-00230,428.00 ,R,Affinity Trust North Divisional Office
Leeds City Council,http://statistics.data.gov.uk/doc/local-authority/00DA,Adult Social Care,Services For Older People under 65 P/Dis,Third party payments,Home Care,568,31/12/2010,1012-00231,1375.80 ,R,Affinity Trust North Divisional Office
Leeds City Council,http://statistics.data.gov.uk/doc/local-authority/00DA,Adult Social Care,Services For Older People under 65 P/Dis,Third party payments,Home Care,568,31/12/2010,1012-00232,644.96 ,R,Affinity Trust North Divisional Office
Leeds City Council,http://statistics.data.gov.uk/doc/local-authority/00DA,Adult Social Care,Services For Older People under 65 P/Dis,Third party payments,Home Care,568,31/12/2010,1012-00233,946.62 ,R,Affinity Trust North Divisional Office
Leeds City Council as Accountable Body,http://statistics.data.gov.uk/doc/local-authority/00DA,Social Services Pooled Budgets,Jcs For People With Learning Disabilitie,Third party payments,Home Care,568,31/12/2010,1012-00234,2520.04 ,R,Affinity Trust North Divisional Office
Leeds City Council,http://statistics.data.gov.uk/doc/local-authority/00DA,Adult Social Care,Services For Older People under 65 P/Dis,Third party payments,Home Care,568,31/12/2010,1012-00235,1744.96 ,R,Affinity Trust North Divisional Office
Leeds City Council,http://statistics.data.gov.uk/doc/local-authority/00DA,Adult Social Care,Services For Older People - 65 and over,Third party payments,Residential Care Emi,571,22/12/2010,1012-00236,1673.56 ,R,AFTON COURT RETIREMEMNT HOME
Leeds City Council,http://statistics.data.gov.uk/doc/local-authority/00DA,Central & Corporate Functions,Commercial Services Trading Services,Supplies and services,Other Hired And Contracted Services,265,03/12/2010,1012-00237,4500.00 ,R,Age Concern Leeds
Leeds City Council,http://statistics.data.gov.uk/doc/local-authority/00DA,Environment & Neighbourhoods,Housing Needs,Third party payments,Supporting Ppl - Block Gross Chargeable,514,08/12/2010,1012-00238,4385.24 ,R,Age Concern Leeds
Leeds City Council,http://statistics.data.gov.uk/doc/local-authority/00DA,Adult Social Care,Services For Older People - 65 and over,Third party payments,Payments To Voluntary Organisations,561,31/12/2010,1012-00239,31661.00 ,R,Age Concern Leeds
Leeds City Council,http://statistics.data.gov.uk/doc/local-authority/00DA,Adult Social Care,Social Services Support Services,Supplies and services,Conference Meetings,253,03/12/2010,1012-00240,2128.00 ,R,AGE Uk
Leeds City Council,http://statistics.data.gov.uk/doc/local-authority/00DA,City Development,Highways,Capital,CONSTRUCTION,3,09/12/2010,1012-00241,148346.99 ,C,AGGREGATE INDUSTRIES UK LTD
Leeds City Council,http://statistics.data.gov.uk/doc/local-authority/00DA,Adult Social Care,Services For Older People under 65 P/Dis,Third party payments,Residential,580,22/12/2010,1012-00242,5626.84 ,R,Agricola House
Leeds City Council,http://statistics.data.gov.uk/doc/local-authority/00DA,Insurance,Insurance,Supplies and services,Insurance Claims,248,31/12/2010,1012-00243,507.46 ,R,Ai Claims SolutionsLtd
Leeds City Council,http://statistics.data.gov.uk/doc/local-authority/00DA,Insurance,Insurance,Supplies and services,Insurance Claims,248,31/12/2010,1012-00244,710.28 ,R,Ai Claims SolutionsLtd
Leeds City Council as Accountable Body,http://statistics.data.gov.uk/doc/local-authority/00DA,Social Services Pooled Budgets,Leeds Community Equip Store Pooled Budgt,Supplies and services,Other Equipment,203,03/12/2010,1012-00245,490.00 ,R,AIDAPT BATHROOMS LTD
Leeds City Council as Accountable Body,http://statistics.data.gov.uk/doc/local-authority/00DA,Social Services Pooled Budgets,Leeds Community Equip Store Pooled Budgt,Supplies and services,Other Equipment,203,15/12/2010,1012-00246,1905.90 ,R,AIDAPT BATHROOMS LTD
Leeds City Council as Accountable Body,http://statistics.data.gov.uk/doc/local-authority/00DA,Social Services Pooled Budgets,Leeds Community Equip Store Pooled Budgt,Supplies and services,Other Equipment,203,15/12/2010,1012-00247,645.00 ,R,AIDAPT BATHROOMS LTD
Leeds City Council as Accountable Body,http://statistics.data.gov.uk/doc/local-authority/00DA,Social Services Pooled Budgets,Leeds Community Equip Store Pooled Budgt,Supplies and services,Other Equipment,203,21/12/2010,1012-00248,1198.00 ,R,AIDAPT BATHROOMS LTD
Leeds City Council as Accountable Body,http://statistics.data.gov.uk/doc/local-authority/00DA,Social Services Pooled Budgets,Leeds Community Equip Store Pooled Budgt,Supplies and services,Other Equipment,203,21/12/2010,1012-00249,2092.50 ,R,AIDAPT BATHROOMS LTD
Leeds City Council as Accountable Body,http://statistics.data.gov.uk/doc/local-authority/00DA,Social Services Pooled Budgets,Leeds Community Equip Store Pooled Budgt,Supplies and services,Other Equipment,203,31/12/2010,1012-00250,1297.50 ,R,AIDAPT BATHROOMS LTD
Leeds City Council as Accountable Body,http://statistics.data.gov.uk/doc/local-authority/00DA,Social Services Pooled Budgets,Leeds Community Equip Store Pooled Budgt,Supplies and services,Other Equipment,203,31/12/2010,1012-00251,675.00 ,R,AIDAPT BATHROOMS LTD
Leeds City Council as Accountable Body,http://statistics.data.gov.uk/doc/local-authority/00DA,Social Services Pooled Budgets,Leeds Community Equip Store Pooled Budgt,Supplies and services,Other Equipment,203,31/12/2010,1012-00252,450.00 ,R,AIDAPT BATHROOMS LTD
Education Leeds,http://statistics.data.gov.uk/doc/local-authority/00DA,Education Leeds,Education Leeds,Supplies and services,Books And Publications,206,20/12/2010,1012-00253,1300.00 ,R,AIM PROJECT
Leeds City Council,http://statistics.data.gov.uk/doc/local-authority/00DA,City Development,Libraries Arts and Heritage,Transport,Plant Hire - By Directorate,305,03/12/2010,1012-00254,1300.00 ,R,AINSCOUGH CRANE HIRE LTD
Leeds City Council,http://statistics.data.gov.uk/doc/local-authority/00DA,City Development,Highways,Premises,Grounds Maintenance Work,111,01/12/2010,1012-00255,483.73 ,R,AINSTY TIMBER MARKETING LTD
Leeds City Council,http://statistics.data.gov.uk/doc/local-authority/00DA,City Development,Highways,Premises,Grounds Maintenance Work,111,01/12/2010,1012-00256,18427.72 ,R,AINSTY TIMBER MARKETING LTD
Leeds City Council,http://statistics.data.gov.uk/doc/local-authority/00DA,City Development,Highways,Premises,Grounds Maintenance Work,111,01/12/2010,1012-00257,8978.75 ,R,AINSTY TIMBER MARKETING LTD
Leeds City Council,http://statistics.data.gov.uk/doc/local-authority/00DA,City Development,Highways,Premises,Grounds Maintenance Work,111,01/12/2010,1012-00258,892.50 ,R,AINSTY TIMBER MARKETING LTD
Leeds City Council,http://statistics.data.gov.uk/doc/local-authority/00DA,City Development,Highways,Premises,Grounds Maintenance Work,111,01/12/2010,1012-00259,1187.50 ,R,AINSTY TIMBER MARKETING LTD
Leeds City Council,http://statistics.data.gov.uk/doc/local-authority/00DA,City Development,Highways,Premises,Grounds Maintenance Work,111,06/12/2010,1012-00260,20071.55 ,R,AINSTY TIMBER MARKETING LTD
Leeds City Council,http://statistics.data.gov.uk/doc/local-authority/00DA,Central & Corporate Functions,Executive Support,Supplies and services,Durban Housing Project,269,10/11/2010,1012-00261,885.00 ,R,air france
Leeds City Council,http://statistics.data.gov.uk/doc/local-authority/00DA,Central & Corporate Functions,Executive Support,Supplies and services,Durban Housing Project,269,10/11/2010,1012-00262,885.00 ,R,air france
Leeds City Council,http://statistics.data.gov.uk/doc/local-authority/00DA,Central & Corporate Functions,Executive Support,Supplies and services,Durban Housing Project,269,10/11/2010,1012-00263,885.00 ,R,air france
Leeds City Council,http://statistics.data.gov.uk/doc/local-authority/00DA,Central & Corporate Functions,Commercial Services Trading Services,Supplies and services,Other Hired And Contracted Services,265,08/12/2010,1012-00264,488.07 ,R,AIRE BODY CARE
Leeds City Council as Accountable Body,http://statistics.data.gov.uk/doc/local-authority/00DA,Social Services Pooled Budgets,Jcs For People With Learning Disabilitie,Third party payments,Residential,580,22/12/2010,1012-00265,3085.48 ,R,AIRE HOUSE
Leeds City Council,http://statistics.data.gov.uk/doc/local-authority/00DA,Central & Corporate Functions,Commercial Services Trading Services,Supplies and services,Other Hired And Contracted Services,265,01/12/2010,1012-00266,5079.78 ,R,Aire Valley Construction And Civil
Leeds City Council,http://statistics.data.gov.uk/doc/local-authority/00DA,Central & Corporate Functions,Commercial Services Trading Services,Supplies and services,Other Hired And Contracted Services,265,09/12/2010,1012-00267,3050.00 ,R,Aire Valley Construction And Civil
Leeds City Council,http://statistics.data.gov.uk/doc/local-authority/00DA,Central & Corporate Functions,Commercial Services Trading Services,Supplies and services,Other Hired And Contracted Services,265,10/12/2010,1012-00268,1400.00 ,R,Aire Valley Construction And Civil
Leeds City Council,http://statistics.data.gov.uk/doc/local-authority/00DA,Environment & Neighbourhoods,Regeneration,Supplies and services,Non-Recurring Grants,227,23/12/2010,1012-00269,8817.00 ,R,AIRE VALLEY HOMES LEEDS
East North East Homes Leeds,http://statistics.data.gov.uk/doc/local-authority/00DA,East - North East,Technical Services,Premises,General Maintenance,104,22/12/2010,1012-00270,1375.00 ,R,Aire Valley Landscaping Services Ltd
East North East Homes Leeds,http://statistics.data.gov.uk/doc/local-authority/00DA,East - North East,Housing Services,Premises,Horticulture Non Defined Work,112,03/12/2010,1012-00271,1175.00 ,R,Aire Valley Tree Services Ltd
East North East Homes Leeds,http://statistics.data.gov.uk/doc/local-authority/00DA,East - North East,Housing Services,Premises,Horticulture Non Defined Work,112,03/12/2010,1012-00272,625.00 ,R,Aire Valley Tree Services Ltd
East North East Homes Leeds,http://statistics.data.gov.uk/doc/local-authority/00DA,East - North East,Housing Services,Premises,Horticulture Non Defined Work,112,03/12/2010,1012-00273,525.00 ,R,Aire Valley Tree Services Ltd
East North East Homes Leeds,http://statistics.data.gov.uk/doc/local-authority/00DA,East - North East,Housing Services,Premises,Horticulture Non Defined Work,112,03/12/2010,1012-00274,475.00 ,R,Aire Valley Tree Services Ltd
West North West Homes Leeds,http://statistics.data.gov.uk/doc/local-authority/00DA,West - North West,Customer and Tenancy,Premises,General Maintenance,104,17/12/2010,1012-00275,5960.00 ,R,Aire Valley Tree Services Ltd
Leeds City Council,http://statistics.data.gov.uk/doc/local-authority/00DA,Adult Social Care,Services For Older People - 65 and over,Third party payments,Residential Care Emi,571,22/12/2010,1012-00276,29258.29 ,R,Aire View Residential Home
Leeds City Council,http://statistics.data.gov.uk/doc/local-authority/00DA,Adult Social Care,Services For Older People - 65 and over,Third party payments,Nursing Care Emi,574,22/12/2010,1012-00277,2973.34 ,R,Aire View Residential Home
Leeds City Council,http://statistics.data.gov.uk/doc/local-authority/00DA,Adult Social Care,Services For Older People - 65 and over,Third party payments,Residential,580,22/12/2010,1012-00278,6002.29 ,R,Aire View Residential Home
Leeds City Council,http://statistics.data.gov.uk/doc/local-authority/00DA,Adult Social Care,Services For Older People - 65 and over,Third party payments,Payments To Voluntary Organisations,561,31/12/2010,1012-00279,17238.00 ,R,AIREBOROUGH VOLUNTARY SERVICES
Leeds City Council,http://statistics.data.gov.uk/doc/local-authority/00DA,Adult Social Care,Services For Older People - 65 and over,Third party payments,Residential,580,22/12/2010,1012-00280,28433.98 ,R,AIREDALE (GOLDSBOROUGH)
Leeds City Council,http://statistics.data.gov.uk/doc/local-authority/00DA,Children's Services,Intergrated Youth Support Service,Supplies and services,Operational Furniture And Equipment,203,09/12/2010,1012-00281,725.00 ,R,Airquee
Leeds City Council,http://statistics.data.gov.uk/doc/local-authority/00DA,Environment & Neighbourhoods,Community Safety,Supplies and services,Office Furniture & Equipment,201,01/12/2010,1012-00282,653.66 ,R,AIRWAVE SOLUTIONS LTD
Leeds City Council,http://statistics.data.gov.uk/doc/local-authority/00DA,City Development,Recreation,Supplies and services,Operational Materials,205,16/12/2010,1012-00283,766.21 ,R,AITKEN'S SPORTSTURF LTD
Leeds City Council,http://statistics.data.gov.uk/doc/local-authority/00DA,City Development,Recreation,Supplies and services,Operational Materials,205,16/12/2010,1012-00284,798.31 ,R,AITKEN'S SPORTSTURF LTD
Leeds City Council,http://statistics.data.gov.uk/doc/local-authority/00DA,City Development,Recreation,Supplies and services,Operational Materials,205,23/12/2010,1012-00285,631.62 ,R,AITKEN'S SPORTSTURF LTD
Leeds City Council,http://statistics.data.gov.uk/doc/local-authority/00DA,Adult Social Care,Services For Older People - 65 and over,Third party payments,Home Care,568,31/12/2010,1012-00286,1342.72 ,R,AJ Social Care
Leeds City Council,http://statistics.data.gov.uk/doc/local-authority/00DA,Adult Social Care,Services For Older People under 65 P/Dis,Third party payments,Home Care,568,31/12/2010,1012-00287,869.64 ,R,AJ Social Care
East North East Homes Leeds,http://statistics.data.gov.uk/doc/local-authority/00DA,East - North East,Technical Services,Supplies and services,Other Materials,205,03/12/2010,1012-00288,718.24 ,R,AJM FIXINGS & POWER TOOLS LTD
East North East Homes Leeds,http://statistics.data.gov.uk/doc/local-authority/00DA,East - North East,Technical Services,Supplies and services,Other Materials,205,09/12/2010,1012-00289,920.00 ,R,AJM FIXINGS & POWER TOOLS LTD
East North East Homes Leeds,http://statistics.data.gov.uk/doc/local-authority/00DA,East - North East,Technical Services,Supplies and services,Other Materials,205,22/12/2010,1012-00290,1422.55 ,R,AJM FIXINGS & POWER TOOLS LTD
East North East Homes Leeds,http://statistics.data.gov.uk/doc/local-authority/00DA,East - North East,Technical Services,Supplies and services,Other Materials,205,22/12/2010,1012-00291,1145.44 ,R,AJM FIXINGS & POWER TOOLS LTD
East North East Homes Leeds,http://statistics.data.gov.uk/doc/local-authority/00DA,East - North East,Technical Services,Supplies and services,Other Materials,205,24/12/2010,1012-00292,504.47 ,R,AJM FIXINGS & POWER TOOLS LTD
Leeds City Council,http://statistics.data.gov.uk/doc/local-authority/00DA,Environment & Neighbourhoods,Streetscene Environmental Services,Transport,External Hire -Occasional,304,10/12/2010,1012-00293,594.00 ,R,ALAN THOMPSON TRANSPORT
Leeds City Council,http://statistics.data.gov.uk/doc/local-authority/00DA,City Development,Libraries Arts and Heritage,Supplies and services,Resaleable Material,204,12/11/2010,1012-00294,1237.45 ,R,alan titchmarsh produc
Leeds City Council,http://statistics.data.gov.uk/doc/local-authority/00DA,Insurance,Insurance,Supplies and services,Insurance Claims,248,02/12/2010,1012-00295,1794.96 ,R,Albany
Leeds City Council,http://statistics.data.gov.uk/doc/local-authority/00DA,Insurance,Insurance,Supplies and services,Insurance Claims,248,02/12/2010,1012-00296,1468.86 ,R,Albany
Leeds City Council,http://statistics.data.gov.uk/doc/local-authority/00DA,Adult Social Care,Assessment and Care Management,Support services,Legal Disbursements,411,23/12/2010,1012-00297,1385.00 ,R,Alex Ruck Keene
Leeds City Council,http://statistics.data.gov.uk/doc/local-authority/00DA,Adult Social Care,Services For Older People - 65 and over,Third party payments,Residential Care Emi,571,22/12/2010,1012-00298,9584.52 ,R,ALEXANDER RESIDENTIAL HOME
Leeds City Council,http://statistics.data.gov.uk/doc/local-authority/00DA,Adult Social Care,Services For Older People - 65 and over,Third party payments,Residential,580,22/12/2010,1012-00299,16242.32 ,R,ALEXANDER RESIDENTIAL HOME
Leeds City Council,http://statistics.data.gov.uk/doc/local-authority/00DA,Adult Social Care,Services For Older People under 65 P/Dis,Third party payments,Residential,580,22/12/2010,1012-00300,1162.72 ,R,ALEXANDER RESIDENTIAL HOME
Leeds City Council as Accountable Body,http://statistics.data.gov.uk/doc/local-authority/00DA,Social Services Pooled Budgets,Jcs For People With Learning Disabilitie,Third party payments,Residential,580,22/12/2010,1012-00301,1238.52 ,R,ALEXANDER RESIDENTIAL HOME
Leeds City Council,http://statistics.data.gov.uk/doc/local-authority/00DA,Adult Social Care,Services For Older People - 65 and over,Third party payments,Residential Care Emi,571,22/12/2010,1012-00302,1256.20 ,R,ALEXANDRA COURT
Leeds City Council,http://statistics.data.gov.uk/doc/local-authority/00DA,Adult Social Care,Services For Older People - 65 and over,Third party payments,Residential,580,22/12/2010,1012-00303,8361.76 ,R,ALEXANDRA COURT
Leeds City Council,http://statistics.data.gov.uk/doc/local-authority/00DA,Environment & Neighbourhoods,Health and Environmental Action,Supplies and services,Other Hired And Contracted Services,265,07/12/2010,1012-00304,667.00 ,R,Alfies Boarding Kennels
Leeds City Council,http://statistics.data.gov.uk/doc/local-authority/00DA,Environment & Neighbourhoods,Health and Environmental Action,Supplies and services,Other Hired And Contracted Services,265,23/12/2010,1012-00305,667.00 ,R,Alfies Boarding Kennels
Leeds City Council,http://statistics.data.gov.uk/doc/local-authority/00DA,Central & Corporate Functions,Corporate Property Management,Premises,Maintenance Of Buildings,101,02/12/2010,1012-00306,5241.87 ,R,Alfred Bagnall & Sons (Leeds) Ltd
Leeds City Council,http://statistics.data.gov.uk/doc/local-authority/00DA,Central & Corporate Functions,Corporate Property Management,Premises,Maintenance Of Buildings,101,02/12/2010,1012-00307,5084.28 ,R,Alfred Bagnall & Sons (Leeds) Ltd
Leeds City Council,http://statistics.data.gov.uk/doc/local-authority/00DA,Central & Corporate Functions,Civic and Community Buildings,Capital,CONSTRUCTION,3,02/12/2010,1012-00308,1218.42 ,C,Alfred Bagnall & Sons (Leeds) Ltd
Leeds City Council,http://statistics.data.gov.uk/doc/local-authority/00DA,Central & Corporate Functions,Civic and Community Buildings,Capital,CONSTRUCTION,3,02/12/2010,1012-00309,1380.34 ,C,Alfred Bagnall & Sons (Leeds) Ltd
Leeds City Council,http://statistics.data.gov.uk/doc/local-authority/00DA,Children's Services,Youth Justice,Premises,Maintenance Of Buildings,101,02/12/2010,1012-00310,933.14 ,R,Alfred Bagnall & Sons (Leeds) Ltd
Leeds City Council,http://statistics.data.gov.uk/doc/local-authority/00DA,Central & Corporate Functions,Corporate Property Management,Premises,Maintenance Of Buildings,101,02/12/2010,1012-00311,643.95 ,R,Alfred Bagnall & Sons (Leeds) Ltd
Leeds City Council,http://statistics.data.gov.uk/doc/local-authority/00DA,Central & Corporate Functions,Support and Facilities General Fund,Supplies and services,Other Hired And Contracted Services,265,02/12/2010,1012-00312,2867.70 ,R,Alfred Bagnall & Sons (Leeds) Ltd
Leeds City Council,http://statistics.data.gov.uk/doc/local-authority/00DA,Environment & Neighbourhoods,Community Safety,Capital,CONSTRUCTION,3,08/12/2010,1012-00313,4034.90 ,C,Alfred Bagnall & Sons (Leeds) Ltd
Leeds City Council,http://statistics.data.gov.uk/doc/local-authority/00DA,City Development,Recreation,Supplies and services,Operational Furniture And Equipment,203,30/12/2010,1012-00314,539.50 ,R,Alfred Bagnall & Sons (Leeds) Ltd
Leeds City Council,http://statistics.data.gov.uk/doc/local-authority/00DA,City Development,Libraries Arts and Heritage,Premises,Maintenance Of Buildings,101,31/12/2010,1012-00315,4133.97 ,R,Alfred Bagnall & Sons (Leeds) Ltd
Leeds City Council,http://statistics.data.gov.uk/doc/local-authority/00DA,Children's Services,Intergrated Youth Support Service,Capital,CONSTRUCTION,3,31/12/2010,1012-00316,4996.87 ,C,Alfred Bagnall & Sons (Leeds) Ltd
Leeds City Council,http://statistics.data.gov.uk/doc/local-authority/00DA,Children's Services,Intergrated Youth Support Service,Capital,CONSTRUCTION,3,31/12/2010,1012-00317,1974.14 ,C,Alfred Bagnall & Sons (Leeds) Ltd
Leeds City Council,http://statistics.data.gov.uk/doc/local-authority/00DA,City Development,Recreation,Supplies and services,Operational Furniture And Equipment,203,31/12/2010,1012-00318,1166.77 ,R,Alfred Bagnall & Sons (Leeds) Ltd
Leeds City Council,http://statistics.data.gov.uk/doc/local-authority/00DA,Children's Services,Youth Justice,Premises,Maintenance Of Buildings,101,31/12/2010,1012-00319,2693.06 ,R,Alfred Bagnall & Sons (Leeds) Ltd
Leeds City Council,http://statistics.data.gov.uk/doc/local-authority/00DA,Children's Services,Youth Justice,Premises,Maintenance Of Buildings,101,31/12/2010,1012-00320,2598.16 ,R,Alfred Bagnall & Sons (Leeds) Ltd
Leeds City Council,http://statistics.data.gov.uk/doc/local-authority/00DA,Central & Corporate Functions,Support and Facilities General Fund,Supplies and services,Other Hired And Contracted Services,265,31/12/2010,1012-00321,1141.56 ,R,Alfred Bagnall & Sons (Leeds) Ltd
Leeds City Council,http://statistics.data.gov.uk/doc/local-authority/00DA,Central & Corporate Functions,Civic and Community Buildings,Capital,CONSTRUCTION,3,31/12/2010,1012-00322,4783.13 ,C,Alfred Bagnall & Sons (Leeds) Ltd
Leeds City Council,http://statistics.data.gov.uk/doc/local-authority/00DA,Children's Services,Intergrated Youth Support Service,Supplies and services,Other Hired And Contracted Services,265,31/12/2010,1012-00323,1270.10 ,R,Alfred Bagnall & Sons (Leeds) Ltd
Leeds City Council,http://statistics.data.gov.uk/doc/local-authority/00DA,Children's Services,Children - Commissioning and Social Work,Support services,Legal Disbursements,411,30/12/2010,1012-00324,1935.00 ,R,Alison Hunt
Leeds City Council,http://statistics.data.gov.uk/doc/local-authority/00DA,Central & Corporate Functions,Support and Facilities General Fund,Supplies and services,Operational Furniture And Equipment,203,10/12/2010,1012-00325,464.00 ,R,ALLANSOUND COMMUNICATIONS
Leeds City Council,http://statistics.data.gov.uk/doc/local-authority/00DA,Environment & Neighbourhoods,Environmental Health,Capital,CONSTRUCTION,3,29/12/2010,1012-00326,14595.00 ,C,Allbuild West Yorkshire Ltd
Leeds City Council,http://statistics.data.gov.uk/doc/local-authority/00DA,Adult Social Care,Services For Older People - 65 and over,Third party payments,Residential,580,22/12/2010,1012-00327,1120.96 ,R,ALLENDALE RESIDENTIAL HOME
Leeds City Council,http://statistics.data.gov.uk/doc/local-authority/00DA,Central & Corporate Functions,Revenues,Supplies and services,Bank Charges,263,03/12/2010,1012-00328,2448.29 ,R,ALLIANCE & LEICESTER COMMERCIAL BANK
Leeds City Council,http://statistics.data.gov.uk/doc/local-authority/00DA,City Development,Recreation,Premises,Cleaning Maintenance & Toiletries,127,02/12/2010,1012-00329,456.49 ,R,ALLIANCE DISPOSABLES LTD
Leeds City Council,http://statistics.data.gov.uk/doc/local-authority/00DA,Children's Services,Family Support Services,Supplies and services,Advertising,211,30/12/2010,1012-00330,750.00 ,R,Alliance Publishing Company
Aire Valley Homes Leeds ,http://statistics.data.gov.uk/doc/local-authority/00DA,Aire Valley Homes Leeds,Aire Valley Homes Leeds,Employees,General Training,079,23/12/2010,1012-00331,8250.00 ,R,ALLIED BUSINESS SOLUTIONS LTD
Leeds City Council,http://statistics.data.gov.uk/doc/local-authority/00DA,Adult Social Care,Services For Older People - 65 and over,Third party payments,Home Care,568,03/12/2010,1012-00332,1296.92 ,R,ALLIED HEALTHCARE GROUP LTD
Leeds City Council,http://statistics.data.gov.uk/doc/local-authority/00DA,Adult Social Care,Social Services Support Services,Supplies and services,Other Hired And Contracted Services,265,08/12/2010,1012-00333,889.19 ,R,ALLIED HEALTHCARE GROUP LTD
Leeds City Council as Accountable Body,http://statistics.data.gov.uk/doc/local-authority/00DA,Social Services Pooled Budgets,Jcs For People With Learning Disabilitie,Third party payments,Home Care,568,08/12/2010,1012-00334,558.01 ,R,ALLIED HEALTHCARE GROUP LTD
Leeds City Council,http://statistics.data.gov.uk/doc/local-authority/00DA,Adult Social Care,Services For Older People - 65 and over,Third party payments,Home Care,568,10/12/2010,1012-00335,1196.95 ,R,ALLIED HEALTHCARE GROUP LTD
Leeds City Council,http://statistics.data.gov.uk/doc/local-authority/00DA,Adult Social Care,Services For Older People under 65 P/Dis,Third party payments,Home Care,568,10/12/2010,1012-00336,1632.00 ,R,ALLIED HEALTHCARE GROUP LTD
Leeds City Council,http://statistics.data.gov.uk/doc/local-authority/00DA,Adult Social Care,Services For Older People - 65 and over,Third party payments,Home Care,568,10/12/2010,1012-00337,571.20 ,R,ALLIED HEALTHCARE GROUP LTD
Leeds City Council,http://statistics.data.gov.uk/doc/local-authority/00DA,Adult Social Care,Services For Older People - 65 and over,Third party payments,Home Care,568,10/12/2010,1012-00338,1111.80 ,R,ALLIED HEALTHCARE GROUP LTD
Leeds City Council,http://statistics.data.gov.uk/doc/local-authority/00DA,Adult Social Care,Services For Older People - 65 and over,Third party payments,Home Care,568,10/12/2010,1012-00339,634.95 ,R,ALLIED HEALTHCARE GROUP LTD
Leeds City Council,http://statistics.data.gov.uk/doc/local-authority/00DA,Adult Social Care,Services For Older People - 65 and over,Third party payments,Home Care,568,10/12/2010,1012-00340,469.20 ,R,ALLIED HEALTHCARE GROUP LTD
Leeds City Council,http://statistics.data.gov.uk/doc/local-authority/00DA,Adult Social Care,Services For Older People under 65 P/Dis,Third party payments,Home Care,568,10/12/2010,1012-00341,428.40 ,R,ALLIED HEALTHCARE GROUP LTD
Leeds City Council,http://statistics.data.gov.uk/doc/local-authority/00DA,Adult Social Care,Services For Older People under 65 P/Dis,Third party payments,Home Care,568,10/12/2010,1012-00342,7806.41 ,R,ALLIED HEALTHCARE GROUP LTD
Leeds City Council,http://statistics.data.gov.uk/doc/local-authority/00DA,Adult Social Care,Services For Older People under 65 P/Dis,Third party payments,Home Care,568,10/12/2010,1012-00343,688.50 ,R,ALLIED HEALTHCARE GROUP LTD
Leeds City Council,http://statistics.data.gov.uk/doc/local-authority/00DA,Adult Social Care,Services For Older People under 65 P/Dis,Third party payments,Home Care,568,10/12/2010,1012-00344,846.60 ,R,ALLIED HEALTHCARE GROUP LTD
Leeds City Council,http://statistics.data.gov.uk/doc/local-authority/00DA,Adult Social Care,Services For Older People - 65 and over,Third party payments,Home Care,568,10/12/2010,1012-00345,566.10 ,R,ALLIED HEALTHCARE GROUP LTD
Leeds City Council,http://statistics.data.gov.uk/doc/local-authority/00DA,Adult Social Care,Services For Older People - 65 and over,Third party payments,Home Care,568,10/12/2010,1012-00346,3359.05 ,R,ALLIED HEALTHCARE GROUP LTD
Leeds City Council,http://statistics.data.gov.uk/doc/local-authority/00DA,Adult Social Care,Services For Older People - 65 and over,Third party payments,Home Care,568,10/12/2010,1012-00347,543.15 ,R,ALLIED HEALTHCARE GROUP LTD
Leeds City Council,http://statistics.data.gov.uk/doc/local-authority/00DA,Adult Social Care,Services For Older People - 65 and over,Third party payments,Home Care,568,10/12/2010,1012-00348,642.60 ,R,ALLIED HEALTHCARE GROUP LTD
Leeds City Council,http://statistics.data.gov.uk/doc/local-authority/00DA,Children's Services,Children Looked After,Third party payments,Section 17,551,15/12/2010,1012-00349,510.42 ,R,ALLIED HEALTHCARE GROUP LTD
Leeds City Council as Accountable Body,http://statistics.data.gov.uk/doc/local-authority/00DA,Social Services Pooled Budgets,Jcs For People With Learning Disabilitie,Third party payments,Home Care,568,15/12/2010,1012-00350,1240.85 ,R,ALLIED HEALTHCARE GROUP LTD
Leeds City Council as Accountable Body,http://statistics.data.gov.uk/doc/local-authority/00DA,Social Services Pooled Budgets,Jcs For People With Learning Disabilitie,Third party payments,Home Care,568,15/12/2010,1012-00351,1462.20 ,R,ALLIED HEALTHCARE GROUP LTD
Leeds City Council,http://statistics.data.gov.uk/doc/local-authority/00DA,Adult Social Care,Services For Older People - 65 and over,Third party payments,Home Care,568,17/12/2010,1012-00352,1291.92 ,R,ALLIED HEALTHCARE GROUP LTD
Leeds City Council,http://statistics.data.gov.uk/doc/local-authority/00DA,Adult Social Care,Services For Older People - 65 and over,Third party payments,Home Care,568,17/12/2010,1012-00353,1296.92 ,R,ALLIED HEALTHCARE GROUP LTD
Leeds City Council,http://statistics.data.gov.uk/doc/local-authority/00DA,Children's Services,Children Looked After,Third party payments,Section 17,551,24/12/2010,1012-00354,645.62 ,R,ALLIED HEALTHCARE GROUP LTD
Leeds City Council,http://statistics.data.gov.uk/doc/local-authority/00DA,Adult Social Care,Services For Older People - 65 and over,Third party payments,Home Care,568,24/12/2010,1012-00355,1296.92 ,R,ALLIED HEALTHCARE GROUP LTD
Leeds City Council,http://statistics.data.gov.uk/doc/local-authority/00DA,Adult Social Care,Services For Older People under 65 P/Dis,Third party payments,Home Care,568,24/12/2010,1012-00356,1632.73 ,R,ALLIED HEALTHCARE GROUP LTD
Leeds City Council,http://statistics.data.gov.uk/doc/local-authority/00DA,Adult Social Care,Other Generic Services,Third party payments,Home Care,568,29/12/2010,1012-00357,2689.35 ,R,ALLIED HEALTHCARE GROUP LTD
Leeds City Council,http://statistics.data.gov.uk/doc/local-authority/00DA,Adult Social Care,Other Generic Services,Third party payments,Home Care,568,29/12/2010,1012-00358,18751.50 ,R,ALLIED HEALTHCARE GROUP LTD
Leeds City Council,http://statistics.data.gov.uk/doc/local-authority/00DA,Adult Social Care,Services For Older People - 65 and over,Third party payments,Home Care,568,31/12/2010,1012-00359,1291.92 ,R,ALLIED HEALTHCARE GROUP LTD
Leeds City Council,http://statistics.data.gov.uk/doc/local-authority/00DA,Adult Social Care,Social Services Support Services,Supplies and services,Other Hired And Contracted Services,265,31/12/2010,1012-00360,747.37 ,R,ALLIED HEALTHCARE GROUP LTD
Leeds City Council,http://statistics.data.gov.uk/doc/local-authority/00DA,Children's Services,Children - Commissioning and Social Work,Support services,Legal Disbursements,411,29/12/2010,1012-00361,1035.00 ,R,Alpha Biolabs
Leeds City Council,http://statistics.data.gov.uk/doc/local-authority/00DA,Environment & Neighbourhoods,South South East,Capital,CONSTRUCTION,3,16/12/2010,1012-00362,617.61 ,C,ALTERNATIVE WINDOWS (LEEDS) LTD
Leeds City Council,http://statistics.data.gov.uk/doc/local-authority/00DA,Environment & Neighbourhoods,South South East,Capital,CONSTRUCTION,3,16/12/2010,1012-00363,5585.00 ,C,ALTERNATIVE WINDOWS (LEEDS) LTD
Leeds City Council,http://statistics.data.gov.uk/doc/local-authority/00DA,Environment & Neighbourhoods,South South East,Capital,CONSTRUCTION,3,17/12/2010,1012-00364,31147.57 ,C,ALTERNATIVE WINDOWS (LEEDS) LTD
Leeds City Council,http://statistics.data.gov.uk/doc/local-authority/00DA,Environment & Neighbourhoods,West North West,Capital,CONSTRUCTION,3,23/12/2010,1012-00365,82912.45 ,C,ALTERNATIVE WINDOWS (LEEDS) LTD
Leeds City Council,http://statistics.data.gov.uk/doc/local-authority/00DA,Environment & Neighbourhoods,West North West,Capital,CONSTRUCTION,3,29/12/2010,1012-00366,24594.53 ,C,ALTERNATIVE WINDOWS (LEEDS) LTD
Leeds City Council,http://statistics.data.gov.uk/doc/local-authority/00DA,Central & Corporate Functions,Commercial Services Trading Services,Supplies and services,Operational Materials,205,07/12/2010,1012-00367,3180.00 ,R,ALTRO LTD
Leeds City Council,http://statistics.data.gov.uk/doc/local-authority/00DA,Central & Corporate Functions,Commercial Services Trading Services,Supplies and services,Operational Materials,205,24/12/2010,1012-00368,3716.34 ,R,ALTRO LTD
Leeds City Council,http://statistics.data.gov.uk/doc/local-authority/00DA,Central & Corporate Functions,Commercial Services Trading Services,Supplies and services,Operational Materials,205,03/12/2010,1012-00369,569.99 ,R,ALVIN MORRIS LTD
Leeds City Council,http://statistics.data.gov.uk/doc/local-authority/00DA,Central & Corporate Functions,Commercial Services Trading Services,Supplies and services,Operational Materials,205,22/12/2010,1012-00370,1357.65 ,R,ALVIN MORRIS LTD
Leeds City Council,http://statistics.data.gov.uk/doc/local-authority/00DA,Central & Corporate Functions,Commercial Services Trading Services,Supplies and services,Operational Materials,205,31/12/2010,1012-00371,790.70 ,R,ALVIN MORRIS LTD
Leeds City Council,http://statistics.data.gov.uk/doc/local-authority/00DA,Adult Social Care,Services For Older People - 65 and over,Third party payments,Payments To Voluntary Organisations,561,31/12/2010,1012-00372,66384.00 ,R,ALZHEIMERS DISEASE SOCIETY
Leeds City Council,http://statistics.data.gov.uk/doc/local-authority/00DA,Adult Social Care,Services For Older People - 65 and over,Third party payments,Nursing Care Emi,574,23/12/2010,1012-00373,1127.64 ,R,AMARNA HOUSE CARE CENTRE
Leeds City Council,http://statistics.data.gov.uk/doc/local-authority/00DA,Central & Corporate Functions,Commercial Services Trading Services,Supplies and services,Operational Materials,205,30/12/2010,1012-00374,6822.52 ,R,AMBER FLOORS LTD
Leeds City Council,http://statistics.data.gov.uk/doc/local-authority/00DA,Children's Services,Children Looked After,Third party payments,General External Residential Placements,507,02/12/2010,1012-00375,16554.00 ,R,Amberleigh Care Ltd
Leeds City Council,http://statistics.data.gov.uk/doc/local-authority/00DA,Children's Services,Children Looked After,Third party payments,General External Residential Placements,507,10/12/2010,1012-00376,16020.00 ,R,Amberleigh Care Ltd
Leeds City Council,http://statistics.data.gov.uk/doc/local-authority/00DA,City Development,Libraries Arts and Heritage,Supplies and services,Other Hired And Contracted Services,265,03/12/2010,1012-00377,896.66 ,R,AMBIUS
Leeds City Council,http://statistics.data.gov.uk/doc/local-authority/00DA,Insurance,Insurance,Supplies and services,Other Hired And Contracted Services,265,09/12/2010,1012-00378,6844.73 ,R,Amelans Solicitors
Leeds City Council,http://statistics.data.gov.uk/doc/local-authority/00DA,Adult Social Care,Services For Older People - 65 and over,Third party payments,Residential,580,22/12/2010,1012-00379,2190.36 ,R,AMELIA HOUSE
Leeds City Council,http://statistics.data.gov.uk/doc/local-authority/00DA,Environment & Neighbourhoods,Community Safety,Supplies and services,Grant Related Expenditure,290,02/12/2010,1012-00380,5000.00 ,R,Amr Security Services Ltd
Leeds City Council,http://statistics.data.gov.uk/doc/local-authority/00DA,City Development,Libraries Arts and Heritage,Employees,Central Training,079,17/12/2010,1012-00381,750.00 ,R,Amr Security Services Ltd
Leeds City Council,http://statistics.data.gov.uk/doc/local-authority/00DA,Environment & Neighbourhoods,Community Safety,Supplies and services,Grant Related Expenditure,290,17/12/2010,1012-00382,5000.00 ,R,Amr Security Services Ltd
Leeds City Council,http://statistics.data.gov.uk/doc/local-authority/00DA,City Development,Libraries Arts and Heritage,Employees,Central Training,079,17/12/2010,1012-00383,825.00 ,R,Amr Security Services Ltd
Leeds City Council,http://statistics.data.gov.uk/doc/local-authority/00DA,City Development,Libraries Arts and Heritage,Employees,Central Training,079,17/12/2010,1012-00384,450.00 ,R,Amr Security Services Ltd
Leeds City Council,http://statistics.data.gov.uk/doc/local-authority/00DA,City Development,Libraries Arts and Heritage,Employees,Central Training,079,21/12/2010,1012-00385,900.00 ,R,Amr Security Services Ltd
Leeds City Council,http://statistics.data.gov.uk/doc/local-authority/00DA,City Development,Recreation,Supplies and services,Advertising,211,09/12/2010,1012-00386,600.00 ,R,AN AGENCY CALLED ENGLAND
Leeds City Council,http://statistics.data.gov.uk/doc/local-authority/00DA,Adult Social Care,Services For Older People under 65 P/Dis,Third party payments,Home Care,568,02/12/2010,1012-00387,12958.74 ,R,ANCHOR CARE
Leeds City Council,http://statistics.data.gov.uk/doc/local-authority/00DA,Adult Social Care,Services For Older People - 65 and over,Third party payments,Home Care,568,02/12/2010,1012-00388,37443.36 ,R,ANCHOR CARE
Leeds City Council,http://statistics.data.gov.uk/doc/local-authority/00DA,Adult Social Care,Services For Older People under 65 P/Dis,Third party payments,Home Care,568,02/12/2010,1012-00389,2370.66 ,R,ANCHOR CARE
Leeds City Council,http://statistics.data.gov.uk/doc/local-authority/00DA,Adult Social Care,Services For Older People - 65 and over,Third party payments,Home Care,568,02/12/2010,1012-00390,26123.49 ,R,ANCHOR CARE
Leeds City Council,http://statistics.data.gov.uk/doc/local-authority/00DA,Adult Social Care,Services For Older People under 65 P/Dis,Third party payments,Home Care,568,02/12/2010,1012-00391,4356.07 ,R,ANCHOR CARE
Leeds City Council,http://statistics.data.gov.uk/doc/local-authority/00DA,Adult Social Care,Services For Older People - 65 and over,Third party payments,Home Care,568,24/12/2010,1012-00392,20791.18 ,R,ANCHOR CARE
Leeds City Council,http://statistics.data.gov.uk/doc/local-authority/00DA,Adult Social Care,Services For Older People under 65 P/Dis,Third party payments,Home Care,568,24/12/2010,1012-00393,754.84 ,R,ANCHOR CARE
Leeds City Council as Accountable Body,http://statistics.data.gov.uk/doc/local-authority/00DA,Social Services Pooled Budgets,Jcs For People With Learning Disabilitie,Third party payments,Home Care,568,24/12/2010,1012-00394,911.79 ,R,ANCHOR CARE
Leeds City Council,http://statistics.data.gov.uk/doc/local-authority/00DA,Adult Social Care,Services For Older People - 65 and over,Third party payments,Home Care,568,24/12/2010,1012-00395,35271.77 ,R,ANCHOR CARE
Leeds City Council,http://statistics.data.gov.uk/doc/local-authority/00DA,Adult Social Care,Services For Older People under 65 P/Dis,Third party payments,Home Care,568,24/12/2010,1012-00396,4625.63 ,R,ANCHOR CARE
Leeds City Council,http://statistics.data.gov.uk/doc/local-authority/00DA,Adult Social Care,Services For Older People - 65 and over,Third party payments,Home Care,568,24/12/2010,1012-00397,12138.93 ,R,ANCHOR CARE
Leeds City Council,http://statistics.data.gov.uk/doc/local-authority/00DA,Adult Social Care,Services For Older People under 65 P/Dis,Third party payments,Home Care,568,24/12/2010,1012-00398,768.60 ,R,ANCHOR CARE
Leeds City Council,http://statistics.data.gov.uk/doc/local-authority/00DA,Adult Social Care,Services For Older People - 65 and over,Third party payments,Home Care,568,24/12/2010,1012-00399,22915.82 ,R,ANCHOR CARE
Leeds City Council,http://statistics.data.gov.uk/doc/local-authority/00DA,Adult Social Care,Services For Older People under 65 P/Dis,Third party payments,Home Care,568,24/12/2010,1012-00400,5359.85 ,R,ANCHOR CARE
Leeds City Council as Accountable Body,http://statistics.data.gov.uk/doc/local-authority/00DA,Social Services Pooled Budgets,Jcs For People With Learning Disabilitie,Third party payments,Residential,580,08/12/2010,1012-00401,588.96 ,R,ANCHOR TRUST
Leeds City Council,http://statistics.data.gov.uk/doc/local-authority/00DA,Environment & Neighbourhoods,Housing Needs,Third party payments,Supporting People - Block Subsidy,513,08/12/2010,1012-00402,458.72 ,R,ANCHOR TRUST
Leeds City Council,http://statistics.data.gov.uk/doc/local-authority/00DA,Environment & Neighbourhoods,Housing Needs,Third party payments,Supporting People - Block Subsidy,513,08/12/2010,1012-00403,9949.79 ,R,ANCHOR TRUST
Leeds City Council,http://statistics.data.gov.uk/doc/local-authority/00DA,Environment & Neighbourhoods,Housing Needs,Third party payments,Supporting People - Block Subsidy,513,08/12/2010,1012-00404,714.12 ,R,ANCHOR TRUST
Leeds City Council,http://statistics.data.gov.uk/doc/local-authority/00DA,Adult Social Care,Services For Older People - 65 and over,Third party payments,Payments To Voluntary Organisations,561,13/12/2010,1012-00405,9167.48 ,R,ANCHOR TRUST
Leeds City Council,http://statistics.data.gov.uk/doc/local-authority/00DA,Adult Social Care,Services For Adults under 65 Mental/Dis,Third party payments,Nursing Home,570,22/12/2010,1012-00406,1758.08 ,R,ANCHOR TRUST
Leeds City Council,http://statistics.data.gov.uk/doc/local-authority/00DA,Adult Social Care,Services For Adults under 65 Mental/Dis,Third party payments,Residential,580,22/12/2010,1012-00407,1120.24 ,R,ANCHOR TRUST
Leeds City Council,http://statistics.data.gov.uk/doc/local-authority/00DA,Adult Social Care,Services For Older People - 65 and over,Third party payments,Nursing Home,570,22/12/2010,1012-00408,28974.87 ,R,ANCHOR TRUST
Leeds City Council,http://statistics.data.gov.uk/doc/local-authority/00DA,Adult Social Care,Services For Older People - 65 and over,Third party payments,Residential Care Emi,571,22/12/2010,1012-00409,6063.64 ,R,ANCHOR TRUST
Leeds City Council,http://statistics.data.gov.uk/doc/local-authority/00DA,Adult Social Care,Services For Older People - 65 and over,Third party payments,Residential Care Emi,571,22/12/2010,1012-00410,1650.04 ,R,ANCHOR TRUST
Leeds City Council,http://statistics.data.gov.uk/doc/local-authority/00DA,Adult Social Care,Services For Older People - 65 and over,Third party payments,Nursing Care Emi,574,22/12/2010,1012-00411,1204.92 ,R,ANCHOR TRUST
Leeds City Council,http://statistics.data.gov.uk/doc/local-authority/00DA,Adult Social Care,Services For Older People - 65 and over,Third party payments,Residential,580,22/12/2010,1012-00412,5036.28 ,R,ANCHOR TRUST
Leeds City Council,http://statistics.data.gov.uk/doc/local-authority/00DA,Adult Social Care,Services For Older People - 65 and over,Third party payments,Residential,580,22/12/2010,1012-00413,3310.63 ,R,ANCHOR TRUST
Leeds City Council,http://statistics.data.gov.uk/doc/local-authority/00DA,Adult Social Care,Services For Older People - 65 and over,Third party payments,Residential,580,22/12/2010,1012-00414,1056.40 ,R,ANCHOR TRUST
Leeds City Council,http://statistics.data.gov.uk/doc/local-authority/00DA,Adult Social Care,Services For Older People under 65 P/Dis,Third party payments,Nursing Home,570,22/12/2010,1012-00415,1500.20 ,R,ANCHOR TRUST
Leeds City Council,http://statistics.data.gov.uk/doc/local-authority/00DA,Adult Social Care,Services For Older People - 65 and over,Third party payments,Residential Care Emi,571,22/12/2010,1012-00416,11594.60 ,R,ANCHOR TRUST SIMON MARKS COURT
Leeds City Council,http://statistics.data.gov.uk/doc/local-authority/00DA,Adult Social Care,Services For Older People - 65 and over,Third party payments,Residential,580,22/12/2010,1012-00417,12872.84 ,R,ANCHOR TRUST SIMON MARKS COURT
Leeds City Council,http://statistics.data.gov.uk/doc/local-authority/00DA,Central & Corporate Functions,Corporate Governance,Supplies and services,Other Hired And Contracted Services,265,09/12/2010,1012-00418,5750.00 ,R,Andrew Arden Qc
Leeds City Council,http://statistics.data.gov.uk/doc/local-authority/00DA,Environment & Neighbourhoods,Regeneration,Supplies and services,Non-Recurring Grants,227,16/12/2010,1012-00419,19379.00 ,R,ANGELS HOUSEKEEPING CIC LTD
Leeds City Council,http://statistics.data.gov.uk/doc/local-authority/00DA,Environment & Neighbourhoods,Regeneration,Supplies and services,Non-Recurring Grants,227,20/12/2010,1012-00420,2600.00 ,R,ANGELS HOUSEKEEPING CIC LTD
Leeds City Council,http://statistics.data.gov.uk/doc/local-authority/00DA,Children's Services,Early Years Service,Third party payments,Services Rendered By Other Organisations,511,17/12/2010,1012-00421,2229.32 ,R,ANGELS NURSERY
Leeds City Council,http://statistics.data.gov.uk/doc/local-authority/00DA,City Development,Economic Development,Supplies and services,Publication And Promotion,267,02/12/2010,1012-00422,1500.38 ,R,ANITA MORRIS ASSOCIATES LTD
Leeds City Council,http://statistics.data.gov.uk/doc/local-authority/00DA,City Development,Economic Development,Supplies and services,Publication And Promotion,267,29/12/2010,1012-00423,1257.57 ,R,ANITA MORRIS ASSOCIATES LTD
Leeds City Council,http://statistics.data.gov.uk/doc/local-authority/00DA,Children's Services,Children - Commissioning and Social Work,Support services,Legal Disbursements,411,14/12/2010,1012-00424,921.95 ,R,ANN M MORTIMER
Leeds City Council,http://statistics.data.gov.uk/doc/local-authority/00DA,Children's Services,Children - Commissioning and Social Work,Support services,Legal Disbursements,411,20/12/2010,1012-00425,687.50 ,R,ANN M MORTIMER
Leeds City Council,http://statistics.data.gov.uk/doc/local-authority/00DA,Children's Services,Children - Commissioning and Social Work,Support services,Legal Disbursements,411,24/12/2010,1012-00426,1393.43 ,R,ANN M MORTIMER
Leeds City Council,http://statistics.data.gov.uk/doc/local-authority/00DA,City Development,Highways,Supplies and services,Office Consumables,210,01/12/2010,1012-00427,1031.80 ,R,Antalis Mcnaughton Limited
Leeds City Council,http://statistics.data.gov.uk/doc/local-authority/00DA,Central & Corporate Functions,Support and Facilities Trading Services,Supplies and services,Operational Materials,205,10/12/2010,1012-00428,-938.00 ,R,Antalis Mcnaughton Limited
Leeds City Council,http://statistics.data.gov.uk/doc/local-authority/00DA,Central & Corporate Functions,Support and Facilities Trading Services,Supplies and services,Operational Materials,205,10/12/2010,1012-00429,469.00 ,R,Antalis Mcnaughton Limited
Leeds City Council,http://statistics.data.gov.uk/doc/local-authority/00DA,Central & Corporate Functions,Support and Facilities Trading Services,Supplies and services,Operational Materials,205,15/12/2010,1012-00430,877.50 ,R,Antalis Mcnaughton Limited
Leeds City Council,http://statistics.data.gov.uk/doc/local-authority/00DA,Central & Corporate Functions,Support and Facilities Trading Services,Supplies and services,Operational Materials,205,15/12/2010,1012-00431,469.00 ,R,Antalis Mcnaughton Limited
Leeds City Council,http://statistics.data.gov.uk/doc/local-authority/00DA,Central & Corporate Functions,Support and Facilities Trading Services,Supplies and services,Operational Materials,205,22/12/2010,1012-00432,552.50 ,R,Antalis Mcnaughton Limited
Leeds City Council,http://statistics.data.gov.uk/doc/local-authority/00DA,Central & Corporate Functions,Support and Facilities Trading Services,Supplies and services,Operational Materials,205,22/12/2010,1012-00433,469.00 ,R,Antalis Mcnaughton Limited
Leeds City Council,http://statistics.data.gov.uk/doc/local-authority/00DA,Central & Corporate Functions,Support and Facilities Trading Services,Supplies and services,Operational Materials,205,29/12/2010,1012-00434,-469.00 ,R,Antalis Mcnaughton Limited
Leeds City Council,http://statistics.data.gov.uk/doc/local-authority/00DA,Central & Corporate Functions,Support and Facilities Trading Services,Supplies and services,Operational Materials,205,29/12/2010,1012-00435,469.00 ,R,Antalis Mcnaughton Limited
Leeds City Council,http://statistics.data.gov.uk/doc/local-authority/00DA,City Development,Support Services,Supplies and services,Stationery & External Printing,210,08/11/2010,1012-00436,745.58 ,R,antalis uk ltd
Leeds City Council,http://statistics.data.gov.uk/doc/local-authority/00DA,Adult Social Care,Social Services Support Services,Supplies and services,Stationery & External Printing,210,08/11/2010,1012-00437,580.02 ,R,antalis uk ltd
Leeds City Council,http://statistics.data.gov.uk/doc/local-authority/00DA,Central & Corporate Functions,Revenues,Supplies and services,Office Consumables - Copying paper,210,18/11/2010,1012-00438,586.25 ,R,antalis uk ltd
Leeds City Council,http://statistics.data.gov.uk/doc/local-authority/00DA,Adult Social Care,Social Services Support Services,Supplies and services,Stationery & External Printing,210,23/11/2010,1012-00439,532.00 ,R,antalis uk ltd
Leeds City Council,http://statistics.data.gov.uk/doc/local-authority/00DA,Central & Corporate Functions,Support and Facilities General Fund,Supplies and services,Office Consumables - Copying paper,210,25/11/2010,1012-00440,916.33 ,R,antalis uk ltd
Leeds City Council,http://statistics.data.gov.uk/doc/local-authority/00DA,Central & Corporate Functions,Commercial Services Trading Services,Transport,External Hire- ( Fleet Management),313,03/12/2010,1012-00441,34848.00 ,R,APETITO LTD
Leeds City Council,http://statistics.data.gov.uk/doc/local-authority/00DA,Central & Corporate Functions,Commercial Services Trading Services,Supplies and services,Food & Drink,231,03/12/2010,1012-00442,1242.90 ,R,APETITO LTD
Leeds City Council,http://statistics.data.gov.uk/doc/local-authority/00DA,Central & Corporate Functions,Commercial Services Trading Services,Supplies and services,Food & Drink,231,03/12/2010,1012-00443,761.41 ,R,APETITO LTD
Leeds City Council,http://statistics.data.gov.uk/doc/local-authority/00DA,Central & Corporate Functions,Commercial Services Trading Services,Supplies and services,Food & Drink,231,03/12/2010,1012-00444,520.91 ,R,APETITO LTD
Leeds City Council,http://statistics.data.gov.uk/doc/local-authority/00DA,Central & Corporate Functions,Commercial Services Trading Services,Supplies and services,Food & Drink,231,03/12/2010,1012-00445,2665.65 ,R,APETITO LTD
Leeds City Council,http://statistics.data.gov.uk/doc/local-authority/00DA,Central & Corporate Functions,Commercial Services Trading Services,Supplies and services,Food & Drink,231,15/12/2010,1012-00446,429.21 ,R,APETITO LTD
Leeds City Council,http://statistics.data.gov.uk/doc/local-authority/00DA,Central & Corporate Functions,Commercial Services Trading Services,Supplies and services,Food & Drink,231,17/12/2010,1012-00447,927.72 ,R,APETITO LTD
Leeds City Council,http://statistics.data.gov.uk/doc/local-authority/00DA,Central & Corporate Functions,Commercial Services Trading Services,Supplies and services,Food & Drink,231,17/12/2010,1012-00448,1397.30 ,R,APETITO LTD
Leeds City Council,http://statistics.data.gov.uk/doc/local-authority/00DA,Central & Corporate Functions,Commercial Services Trading Services,Supplies and services,Food & Drink,231,17/12/2010,1012-00449,2316.46 ,R,APETITO LTD
Leeds City Council,http://statistics.data.gov.uk/doc/local-authority/00DA,Central & Corporate Functions,Commercial Services Trading Services,Supplies and services,Food & Drink,231,17/12/2010,1012-00450,1823.88 ,R,APETITO LTD
Leeds City Council,http://statistics.data.gov.uk/doc/local-authority/00DA,Central & Corporate Functions,Commercial Services Trading Services,Supplies and services,Food & Drink,231,17/12/2010,1012-00451,894.76 ,R,APETITO LTD
Leeds City Council,http://statistics.data.gov.uk/doc/local-authority/00DA,Central & Corporate Functions,Commercial Services Trading Services,Supplies and services,Food & Drink,231,24/12/2010,1012-00452,1354.36 ,R,APETITO LTD
Leeds City Council as Accountable Body,http://statistics.data.gov.uk/doc/local-authority/00DA,Social Services Pooled Budgets,Jcs For People With Learning Disabilitie,Third party payments,Residential,580,29/12/2010,1012-00453,7378.00 ,R,Appleview Homes Limited
Leeds City Council as Accountable Body,http://statistics.data.gov.uk/doc/local-authority/00DA,Social Services Pooled Budgets,Jcs For People With Learning Disabilitie,Third party payments,Residential,580,22/12/2010,1012-00454,10373.56 ,R,APPLEWALK HOMES
Leeds City Council,http://statistics.data.gov.uk/doc/local-authority/00DA,Insurance,Insurance,Supplies and services,Insurance Claims,248,23/12/2010,1012-00455,2102.16 ,R,Appleyard Jaguar Bradford
Leeds City Council,http://statistics.data.gov.uk/doc/local-authority/00DA,Central & Corporate Functions,Commercial Services Trading Services,Supplies and services,Computer Software & Equipment,214,31/12/2010,1012-00456,786.00 ,R,APPSTATION
West North West Homes Leeds,http://statistics.data.gov.uk/doc/local-authority/00DA,West - North West,Property and Maintenance,Premises,General Maintenance,104,22/12/2010,1012-00457,465.00 ,R,Aquaforce Plumbing Solutions Limited
Leeds City Council,http://statistics.data.gov.uk/doc/local-authority/00DA,Central & Corporate Functions,Commercial Services Trading Services,Supplies and services,Other Hired And Contracted Services,265,30/12/2010,1012-00458,1266.09 ,R,AQUATRUST WATER & VENTILATION LTD
Leeds City Council,http://statistics.data.gov.uk/doc/local-authority/00DA,Central & Corporate Functions,Commercial Services Trading Services,Supplies and services,Other Hired And Contracted Services,265,30/12/2010,1012-00459,774.98 ,R,AQUATRUST WATER & VENTILATION LTD
Leeds City Council,http://statistics.data.gov.uk/doc/local-authority/00DA,Central & Corporate Functions,Commercial Services Trading Services,Supplies and services,Other Hired And Contracted Services,265,30/12/2010,1012-00460,736.32 ,R,AQUATRUST WATER & VENTILATION LTD
Leeds City Council,http://statistics.data.gov.uk/doc/local-authority/00DA,Central & Corporate Functions,Commercial Services Trading Services,Supplies and services,Other Hired And Contracted Services,265,30/12/2010,1012-00461,847.36 ,R,AQUATRUST WATER & VENTILATION LTD
Leeds City Council,http://statistics.data.gov.uk/doc/local-authority/00DA,Central & Corporate Functions,Commercial Services Trading Services,Supplies and services,Other Hired And Contracted Services,265,30/12/2010,1012-00462,664.00 ,R,AQUATRUST WATER & VENTILATION LTD
Leeds City Council as Accountable Body,http://statistics.data.gov.uk/doc/local-authority/00DA,Social Services Pooled Budgets,Jcs For People With Learning Disabilitie,Third party payments,Residential - Terminally Ill,586,10/12/2010,1012-00463,547.84 ,R,Arabella Health Staffing Ltd
Leeds City Council as Accountable Body,http://statistics.data.gov.uk/doc/local-authority/00DA,Social Services Pooled Budgets,Jcs For People With Learning Disabilitie,Third party payments,Residential - Terminally Ill,586,10/12/2010,1012-00464,690.67 ,R,Arabella Health Staffing Ltd
Leeds City Council as Accountable Body,http://statistics.data.gov.uk/doc/local-authority/00DA,Social Services Pooled Budgets,Jcs For People With Learning Disabilitie,Third party payments,Residential - Terminally Ill,586,10/12/2010,1012-00465,921.53 ,R,Arabella Health Staffing Ltd
Leeds City Council as Accountable Body,http://statistics.data.gov.uk/doc/local-authority/00DA,Social Services Pooled Budgets,Jcs For People With Learning Disabilitie,Third party payments,Home Care,568,10/12/2010,1012-00466,745.72 ,R,Arabella Health Staffing Ltd
Leeds City Council as Accountable Body,http://statistics.data.gov.uk/doc/local-authority/00DA,Social Services Pooled Budgets,Jcs For People With Learning Disabilitie,Third party payments,Residential - Terminally Ill,586,10/12/2010,1012-00467,1142.54 ,R,Arabella Health Staffing Ltd
Leeds City Council as Accountable Body,http://statistics.data.gov.uk/doc/local-authority/00DA,Social Services Pooled Budgets,Jcs For People With Learning Disabilitie,Third party payments,Residential - Terminally Ill,586,10/12/2010,1012-00468,717.52 ,R,Arabella Health Staffing Ltd
Leeds City Council as Accountable Body,http://statistics.data.gov.uk/doc/local-authority/00DA,Social Services Pooled Budgets,Jcs For People With Learning Disabilitie,Third party payments,Home Care,568,17/12/2010,1012-00469,895.81 ,R,Arabella Health Staffing Ltd
Leeds City Council as Accountable Body,http://statistics.data.gov.uk/doc/local-authority/00DA,Social Services Pooled Budgets,Jcs For People With Learning Disabilitie,Third party payments,Home Care,568,17/12/2010,1012-00470,745.72 ,R,Arabella Health Staffing Ltd
Leeds City Council as Accountable Body,http://statistics.data.gov.uk/doc/local-authority/00DA,Social Services Pooled Budgets,Jcs For People With Learning Disabilitie,Third party payments,Residential - Terminally Ill,586,17/12/2010,1012-00471,920.15 ,R,Arabella Health Staffing Ltd
Leeds City Council as Accountable Body,http://statistics.data.gov.uk/doc/local-authority/00DA,Social Services Pooled Budgets,Jcs For People With Learning Disabilitie,Third party payments,Home Care,568,17/12/2010,1012-00472,743.88 ,R,Arabella Health Staffing Ltd
Leeds City Council as Accountable Body,http://statistics.data.gov.uk/doc/local-authority/00DA,Social Services Pooled Budgets,Jcs For People With Learning Disabilitie,Third party payments,Residential - Terminally Ill,586,17/12/2010,1012-00473,547.84 ,R,Arabella Health Staffing Ltd
Leeds City Council as Accountable Body,http://statistics.data.gov.uk/doc/local-authority/00DA,Social Services Pooled Budgets,Jcs For People With Learning Disabilitie,Third party payments,Home Care,568,20/12/2010,1012-00474,745.72 ,R,Arabella Health Staffing Ltd
Leeds City Council as Accountable Body,http://statistics.data.gov.uk/doc/local-authority/00DA,Social Services Pooled Budgets,Jcs For People With Learning Disabilitie,Third party payments,Home Care,568,22/12/2010,1012-00475,842.70 ,R,Arabella Health Staffing Ltd
Leeds City Council as Accountable Body,http://statistics.data.gov.uk/doc/local-authority/00DA,Social Services Pooled Budgets,Jcs For People With Learning Disabilitie,Third party payments,Home Care,568,22/12/2010,1012-00476,812.53 ,R,Arabella Health Staffing Ltd
Leeds City Council as Accountable Body,http://statistics.data.gov.uk/doc/local-authority/00DA,Social Services Pooled Budgets,Jcs For People With Learning Disabilitie,Third party payments,Home Care,568,22/12/2010,1012-00477,846.04 ,R,Arabella Health Staffing Ltd
Leeds City Council as Accountable Body,http://statistics.data.gov.uk/doc/local-authority/00DA,Social Services Pooled Budgets,Jcs For People With Learning Disabilitie,Third party payments,Home Care,568,22/12/2010,1012-00478,549.41 ,R,Arabella Health Staffing Ltd
Leeds City Council as Accountable Body,http://statistics.data.gov.uk/doc/local-authority/00DA,Social Services Pooled Budgets,Jcs For People With Learning Disabilitie,Third party payments,Home Care,568,22/12/2010,1012-00479,578.17 ,R,Arabella Health Staffing Ltd
Leeds City Council as Accountable Body,http://statistics.data.gov.uk/doc/local-authority/00DA,Social Services Pooled Budgets,Jcs For People With Learning Disabilitie,Third party payments,Home Care,568,24/12/2010,1012-00480,536.31 ,R,Arabella Health Staffing Ltd
Leeds City Council as Accountable Body,http://statistics.data.gov.uk/doc/local-authority/00DA,Social Services Pooled Budgets,Jcs For People With Learning Disabilitie,Third party payments,Home Care,568,24/12/2010,1012-00481,748.40 ,R,Arabella Health Staffing Ltd
Leeds City Council as Accountable Body,http://statistics.data.gov.uk/doc/local-authority/00DA,Social Services Pooled Budgets,Jcs For People With Learning Disabilitie,Third party payments,Home Care,568,24/12/2010,1012-00482,920.15 ,R,Arabella Health Staffing Ltd
Leeds City Council as Accountable Body,http://statistics.data.gov.uk/doc/local-authority/00DA,Social Services Pooled Budgets,Jcs For People With Learning Disabilitie,Third party payments,Home Care,568,24/12/2010,1012-00483,540.55 ,R,Arabella Health Staffing Ltd
Leeds City Council as Accountable Body,http://statistics.data.gov.uk/doc/local-authority/00DA,Social Services Pooled Budgets,Jcs For People With Learning Disabilitie,Third party payments,Home Care,568,24/12/2010,1012-00484,547.84 ,R,Arabella Health Staffing Ltd
Leeds City Council as Accountable Body,http://statistics.data.gov.uk/doc/local-authority/00DA,Social Services Pooled Budgets,Jcs For People With Learning Disabilitie,Third party payments,Home Care,568,24/12/2010,1012-00485,546.49 ,R,Arabella Health Staffing Ltd
Leeds City Council as Accountable Body,http://statistics.data.gov.uk/doc/local-authority/00DA,Social Services Pooled Budgets,Jcs For People With Learning Disabilitie,Third party payments,Home Care,568,24/12/2010,1012-00486,-866.94 ,R,Arabella Health Staffing Ltd
Leeds City Council as Accountable Body,http://statistics.data.gov.uk/doc/local-authority/00DA,Social Services Pooled Budgets,Jcs For People With Learning Disabilitie,Third party payments,Home Care,568,29/12/2010,1012-00487,433.47 ,R,Arabella Health Staffing Ltd
Leeds City Council as Accountable Body,http://statistics.data.gov.uk/doc/local-authority/00DA,Social Services Pooled Budgets,Jcs For People With Learning Disabilitie,Third party payments,Home Care,568,29/12/2010,1012-00488,496.39 ,R,Arabella Health Staffing Ltd
Leeds City Council as Accountable Body,http://statistics.data.gov.uk/doc/local-authority/00DA,Social Services Pooled Budgets,Jcs For People With Learning Disabilitie,Third party payments,Home Care,568,29/12/2010,1012-00489,641.55 ,R,Arabella Health Staffing Ltd
Leeds City Council as Accountable Body,http://statistics.data.gov.uk/doc/local-authority/00DA,Social Services Pooled Budgets,Jcs For People With Learning Disabilitie,Third party payments,Home Care,568,29/12/2010,1012-00490,652.03 ,R,Arabella Health Staffing Ltd
Leeds City Council as Accountable Body,http://statistics.data.gov.uk/doc/local-authority/00DA,Social Services Pooled Budgets,Jcs For People With Learning Disabilitie,Third party payments,Home Care,568,29/12/2010,1012-00491,548.74 ,R,Arabella Health Staffing Ltd
Leeds City Council as Accountable Body,http://statistics.data.gov.uk/doc/local-authority/00DA,Social Services Pooled Budgets,Jcs For People With Learning Disabilitie,Third party payments,Home Care,568,29/12/2010,1012-00492,743.88 ,R,Arabella Health Staffing Ltd
Leeds City Council as Accountable Body,http://statistics.data.gov.uk/doc/local-authority/00DA,Social Services Pooled Budgets,Jcs For People With Learning Disabilitie,Third party payments,Home Care,568,29/12/2010,1012-00493,546.49 ,R,Arabella Health Staffing Ltd
Leeds City Council as Accountable Body,http://statistics.data.gov.uk/doc/local-authority/00DA,Social Services Pooled Budgets,Jcs For People With Learning Disabilitie,Third party payments,Home Care,568,29/12/2010,1012-00494,525.48 ,R,Arabella Health Staffing Ltd
Leeds City Council,http://statistics.data.gov.uk/doc/local-authority/00DA,Environment & Neighbourhoods,Regeneration,Supplies and services,Non-Recurring Grants,227,01/12/2010,1012-00495,3900.00 ,R,ARCHWAY
Leeds City Council,http://statistics.data.gov.uk/doc/local-authority/00DA,Environment & Neighbourhoods,Regeneration,Supplies and services,Non-Recurring Grants,227,10/12/2010,1012-00496,1300.00 ,R,ARCHWAY
Leeds City Council,http://statistics.data.gov.uk/doc/local-authority/00DA,Environment & Neighbourhoods,Regeneration,Supplies and services,Non-Recurring Grants,227,10/12/2010,1012-00497,2600.00 ,R,ARCHWAY
Leeds City Council,http://statistics.data.gov.uk/doc/local-authority/00DA,Environment & Neighbourhoods,Regeneration,Supplies and services,Non-Recurring Grants,227,10/12/2010,1012-00498,3900.00 ,R,ARCHWAY
Leeds City Council,http://statistics.data.gov.uk/doc/local-authority/00DA,Environment & Neighbourhoods,Regeneration,Supplies and services,Non-Recurring Grants,227,17/12/2010,1012-00499,40407.00 ,R,ARCHWAY
Leeds City Council,http://statistics.data.gov.uk/doc/local-authority/00DA,Environment & Neighbourhoods,Regeneration,Supplies and services,Non-Recurring Grants,227,17/12/2010,1012-00500,6500.00 ,R,ARCHWAY
Leeds City Council,http://statistics.data.gov.uk/doc/local-authority/00DA,Environment & Neighbourhoods,Regeneration,Supplies and services,Non-Recurring Grants,227,23/12/2010,1012-00501,3900.00 ,R,ARCHWAY
Leeds City Council,http://statistics.data.gov.uk/doc/local-authority/00DA,Environment & Neighbourhoods,Regeneration,Supplies and services,Non-Recurring Grants,227,23/12/2010,1012-00502,6500.00 ,R,ARCHWAY
Leeds City Council,http://statistics.data.gov.uk/doc/local-authority/00DA,Environment & Neighbourhoods,Streetscene Environmental Services,Supplies and services,Clothing & Uniforms,241,03/12/2010,1012-00503,995.98 ,R,ARCO LTD
Leeds City Council,http://statistics.data.gov.uk/doc/local-authority/00DA,Environment & Neighbourhoods,Streetscene Environmental Services,Supplies and services,Clothing & Uniforms,241,07/12/2010,1012-00504,677.50 ,R,ARCO LTD
Leeds City Council,http://statistics.data.gov.uk/doc/local-authority/00DA,Central & Corporate Functions,Commercial Services Trading Services,Supplies and services,Operational Materials,205,07/12/2010,1012-00505,495.00 ,R,ARCO LTD
Leeds City Council,http://statistics.data.gov.uk/doc/local-authority/00DA,City Development,Recreation,Supplies and services,Operational Furniture And Equipment,203,08/12/2010,1012-00506,512.00 ,R,ARCO LTD
Leeds City Council,http://statistics.data.gov.uk/doc/local-authority/00DA,Environment & Neighbourhoods,Streetscene Environmental Services,Supplies and services,Clothing & Uniforms,241,16/12/2010,1012-00507,3301.65 ,R,ARCO LTD
Leeds City Council,http://statistics.data.gov.uk/doc/local-authority/00DA,Environment & Neighbourhoods,Streetscene Environmental Services,Supplies and services,Clothing & Uniforms,241,22/12/2010,1012-00508,806.40 ,R,ARCO LTD
Leeds City Council,http://statistics.data.gov.uk/doc/local-authority/00DA,Central & Corporate Functions,Commercial Services Trading Services,Supplies and services,Operational Materials,205,24/12/2010,1012-00509,618.80 ,R,ARCO LTD
Leeds City Council,http://statistics.data.gov.uk/doc/local-authority/00DA,Central & Corporate Functions,Commercial Services Trading Services,Supplies and services,Operational Materials,205,24/12/2010,1012-00510,642.50 ,R,ARCO LTD
Leeds City Council,http://statistics.data.gov.uk/doc/local-authority/00DA,Central & Corporate Functions,Commercial Services Trading Services,Supplies and services,Operational Materials,205,30/12/2010,1012-00511,1172.40 ,R,ARCO LTD
Leeds City Council,http://statistics.data.gov.uk/doc/local-authority/00DA,Central & Corporate Functions,Commercial Services Trading Services,Supplies and services,Operational Materials,205,30/12/2010,1012-00512,-867.84 ,R,ARCO LTD
Leeds City Council,http://statistics.data.gov.uk/doc/local-authority/00DA,City Development,Asset Management Services,Premises,First Aid Requisites,128,22/11/2010,1012-00513,786.00 ,R,arden winch & co l
Leeds City Council,http://statistics.data.gov.uk/doc/local-authority/00DA,Environment & Neighbourhoods,Streetscene Environmental Services,Supplies and services,Clothing & Uniforms,241,08/12/2010,1012-00514,1399.20 ,R,ARDEN WINCH AND COMPANY LIMITED
Leeds City Council,http://statistics.data.gov.uk/doc/local-authority/00DA,Environment & Neighbourhoods,Streetscene Environmental Services,Supplies and services,Clothing & Uniforms,241,08/12/2010,1012-00515,14617.25 ,R,ARDEN WINCH AND COMPANY LIMITED
Leeds City Council,http://statistics.data.gov.uk/doc/local-authority/00DA,Environment & Neighbourhoods,Streetscene Environmental Services,Supplies and services,Clothing & Uniforms,241,08/12/2010,1012-00516,4479.25 ,R,ARDEN WINCH AND COMPANY LIMITED
Leeds City Council,http://statistics.data.gov.uk/doc/local-authority/00DA,Environment & Neighbourhoods,Streetscene Environmental Services,Supplies and services,Clothing & Uniforms,241,14/12/2010,1012-00517,790.00 ,R,ARDEN WINCH AND COMPANY LIMITED
Leeds City Council,http://statistics.data.gov.uk/doc/local-authority/00DA,Environment & Neighbourhoods,Streetscene Environmental Services,Supplies and services,Clothing & Uniforms,241,15/12/2010,1012-00518,496.00 ,R,ARDEN WINCH AND COMPANY LIMITED
Leeds City Council,http://statistics.data.gov.uk/doc/local-authority/00DA,Children's Services,Youth Justice,Supplies and services,Operational Furniture & Equipment,203,05/11/2010,1012-00519,720.93 ,R,argos bus solution
Leeds City Council,http://statistics.data.gov.uk/doc/local-authority/00DA,Adult Social Care,Services For Adults under 65 Mental/Dis,Supplies and services,Operational Furniture And Equipment,203,24/12/2010,1012-00520,2107.75 ,R,ARGOS DISTRIBUTORS LTD
Leeds City Council,http://statistics.data.gov.uk/doc/local-authority/00DA,Children's Services,Intergrated Youth Support Service,Supplies and services,Teaching Materials,202,24/12/2010,1012-00521,665.56 ,R,ARGOS DISTRIBUTORS LTD
Leeds City Council,http://statistics.data.gov.uk/doc/local-authority/00DA,Children's Services,Intergrated Youth Support Service,Supplies and services,Teaching Materials,202,24/12/2010,1012-00522,680.82 ,R,ARGOS DISTRIBUTORS LTD
Leeds City Council,http://statistics.data.gov.uk/doc/local-authority/00DA,Environment & Neighbourhoods,Health and Environmental Action,Supplies and services,Other Hired And Contracted Services,265,03/12/2010,1012-00523,1782.00 ,R,ARI ENVIRONMENTAL SERVICES LTD
Leeds City Council,http://statistics.data.gov.uk/doc/local-authority/00DA,Environment & Neighbourhoods,Health and Environmental Action,Supplies and services,Other Hired And Contracted Services,265,08/12/2010,1012-00524,653.50 ,R,ARI ENVIRONMENTAL SERVICES LTD
Leeds City Council,http://statistics.data.gov.uk/doc/local-authority/00DA,Adult Social Care,Services For Older People - 65 and over,Third party payments,Payments To Voluntary Organisations,561,31/12/2010,1012-00525,22646.00 ,R,ARMLEY HELPING HANDS
Leeds City Council,http://statistics.data.gov.uk/doc/local-authority/00DA,Children's Services,Intergrated Youth Support Service,Third party payments,Services Rendered By Voluntary Sector,505,03/12/2010,1012-00526,5075.00 ,R,ARMLEY JUNIORS
East North East Homes Leeds,http://statistics.data.gov.uk/doc/local-authority/00DA,East - North East,Technical Services,Supplies and services,Other Materials,205,01/12/2010,1012-00527,485.95 ,R,ARNOLD LAVER & CO LTD
Leeds City Council,http://statistics.data.gov.uk/doc/local-authority/00DA,City Development,Libraries Arts and Heritage,Supplies and services,Operational Materials,205,09/12/2010,1012-00528,639.80 ,R,ARNOLD LAVER & CO LTD
Leeds City Council,http://statistics.data.gov.uk/doc/local-authority/00DA,City Development,Highways,Supplies and services,Operational Materials,205,22/12/2010,1012-00529,1155.65 ,R,ARNOLD LAVER & CO LTD
Leeds City Council,http://statistics.data.gov.uk/doc/local-authority/00DA,City Development,Highways,Supplies and services,Operational Materials,205,22/12/2010,1012-00530,603.65 ,R,ARNOLD LAVER & CO LTD
East North East Homes Leeds,http://statistics.data.gov.uk/doc/local-authority/00DA,East - North East,Technical Services,Supplies and services,Other Hired And Contracted Services,265,17/12/2010,1012-00531,3300.00 ,R,Arr Spend Management Solutions
Leeds City Council,http://statistics.data.gov.uk/doc/local-authority/00DA,Adult Social Care,Services For Older People - 65 and over,Third party payments,Nursing Home,570,23/12/2010,1012-00532,1367.92 ,R,Arrigadeen Nursing Home
Leeds City Council,http://statistics.data.gov.uk/doc/local-authority/00DA,Children's Services,Director Of Childrens Services,Supplies and services,Other Hired And Contracted Services,265,10/12/2010,1012-00533,741.67 ,R,Arrow Social Care Consultancy Limited
Leeds City Council,http://statistics.data.gov.uk/doc/local-authority/00DA,Adult Social Care,Services For Adults under 65 Learn/Dis,Supplies and services,Non-Recurring Grants,227,22/12/2010,1012-00534,5000.00 ,R,ARTICULATE ADVOCACY
Leeds City Council,http://statistics.data.gov.uk/doc/local-authority/00DA,City Development,Libraries Arts and Heritage,Supplies and services,Resaleable Materials,204,16/11/2010,1012-00535,534.63 ,R,artisans of devizes
Leeds City Council,http://statistics.data.gov.uk/doc/local-authority/00DA,Adult Social Care,Services For Adults under 65 Mental/Dis,Supplies and services,Recurring & Major Grantss Projects,229,17/12/2010,1012-00536,3875.00 ,R,ARTLINK WEST YORKSHIRE
Leeds City Council,http://statistics.data.gov.uk/doc/local-authority/00DA,Central & Corporate Functions,Corporate Governance,Transport,Fuel (Non LCC Supplies),321,07/12/2010,1012-00537,752.41 ,R,ARVAL PHH BUSINESS SOLUTIONS LTD
Leeds City Council,http://statistics.data.gov.uk/doc/local-authority/00DA,Other Education Services Managed By E.L.,SCHOOL MINIBUSES,Transport,Fuel (Non LCC Supplies),321,07/12/2010,1012-00538,1942.71 ,R,ARVAL PHH BUSINESS SOLUTIONS LTD
Leeds City Council,http://statistics.data.gov.uk/doc/local-authority/00DA,City Development,Recreation,Transport,Fuel (Non LCC Supplies),321,07/12/2010,1012-00539,1266.18 ,R,ARVAL PHH BUSINESS SOLUTIONS LTD
Leeds City Council,http://statistics.data.gov.uk/doc/local-authority/00DA,City Development,Highways,Transport,Fuel (Non LCC Supplies),321,07/12/2010,1012-00540,644.10 ,R,ARVAL PHH BUSINESS SOLUTIONS LTD
Leeds City Council,http://statistics.data.gov.uk/doc/local-authority/00DA,City Development,Recreation,Supplies and services,Resaleable Materials,204,01/12/2010,1012-00541,498.75 ,R,ASA AWARDS SCHEME
Leeds City Council,http://statistics.data.gov.uk/doc/local-authority/00DA,City Development,Recreation,Supplies and services,Resaleable Materials,204,17/12/2010,1012-00542,893.52 ,R,ASA AWARDS SCHEME
Leeds City Council,http://statistics.data.gov.uk/doc/local-authority/00DA,Central & Corporate Functions,Commercial Services Trading Services,Supplies and services,Other Hired And Contracted Services,265,10/12/2010,1012-00543,504.00 ,R,ASBESTOS SAMPLE ANALYSIS LIMITED
Leeds City Council,http://statistics.data.gov.uk/doc/local-authority/00DA,Central & Corporate Functions,Commercial Services Trading Services,Supplies and services,Other Hired And Contracted Services,265,24/12/2010,1012-00544,456.00 ,R,ASBESTOS SAMPLE ANALYSIS LIMITED
Leeds City Council,http://statistics.data.gov.uk/doc/local-authority/00DA,Central & Corporate Functions,Commercial Services Trading Services,Supplies and services,Office Consumables,210,15/11/2010,1012-00545,536.96 ,R,ascertiva group lt
Leeds City Council,http://statistics.data.gov.uk/doc/local-authority/00DA,Central & Corporate Functions,Support and Facilities Trading Services,Supplies and services,Operational Materials,205,09/12/2010,1012-00546,675.00 ,R,ASD METAL SERVICES
Leeds City Council,http://statistics.data.gov.uk/doc/local-authority/00DA,Central & Corporate Functions,Support and Facilities Trading Services,Supplies and services,Operational Materials,205,10/12/2010,1012-00547,2525.40 ,R,ASD METAL SERVICES
Leeds City Council,http://statistics.data.gov.uk/doc/local-authority/00DA,Central & Corporate Functions,Commercial Services Trading Services,Supplies and services,Operational Materials,205,17/12/2010,1012-00548,800.00 ,R,ASD SERVICES
Leeds City Council,http://statistics.data.gov.uk/doc/local-authority/00DA,Adult Social Care,Services For Older People - 65 and over,Third party payments,Nursing Home,570,22/12/2010,1012-00549,546.20 ,R,ASHBOURNE HEALTHCARE
Leeds City Council,http://statistics.data.gov.uk/doc/local-authority/00DA,Adult Social Care,Services For Older People - 65 and over,Third party payments,Residential,580,22/12/2010,1012-00550,10315.64 ,R,ASHCROFT HOUSE RESIDENTIAL HOME
Leeds City Council,http://statistics.data.gov.uk/doc/local-authority/00DA,Adult Social Care,Services For Older People - 65 and over,Third party payments,Nursing Home,570,22/12/2010,1012-00551,1228.68 ,R,ASHCROFT NURSING HOME
Leeds City Council,http://statistics.data.gov.uk/doc/local-authority/00DA,Adult Social Care,Services For Older People - 65 and over,Third party payments,Nursing Home,570,22/12/2010,1012-00552,2575.68 ,R,ASHCROFT NURSING HOME
Leeds City Council,http://statistics.data.gov.uk/doc/local-authority/00DA,Adult Social Care,Services For Older People - 65 and over,Third party payments,Residential Care Emi,571,22/12/2010,1012-00553,802.80 ,R,ASHCROFT NURSING HOME
Leeds City Council,http://statistics.data.gov.uk/doc/local-authority/00DA,Adult Social Care,Services For Older People - 65 and over,Third party payments,Residential Care Emi,571,22/12/2010,1012-00554,693.16 ,R,ASHFIELD COURT
Leeds City Council,http://statistics.data.gov.uk/doc/local-authority/00DA,Adult Social Care,Services For Older People - 65 and over,Third party payments,Residential,580,22/12/2010,1012-00555,605.08 ,R,Ashfield Court
Leeds City Council,http://statistics.data.gov.uk/doc/local-authority/00DA,Adult Social Care,Services For Adults under 65 Mental/Dis,Third party payments,Residential,580,22/12/2010,1012-00556,2318.40 ,R,ASHFIELD NURSING HOME
Leeds City Council,http://statistics.data.gov.uk/doc/local-authority/00DA,Adult Social Care,Services For Older People - 65 and over,Third party payments,Nursing Home,570,22/12/2010,1012-00557,27461.00 ,R,ASHFIELD NURSING HOME
Leeds City Council,http://statistics.data.gov.uk/doc/local-authority/00DA,Adult Social Care,Services For Older People - 65 and over,Third party payments,Residential,580,22/12/2010,1012-00558,6791.64 ,R,ASHFIELD NURSING HOME
Leeds City Council,http://statistics.data.gov.uk/doc/local-authority/00DA,Adult Social Care,Services For Older People - 65 and over,Third party payments,Nursing Home,570,22/12/2010,1012-00559,1504.00 ,R,Ashley Care Ltd
Leeds City Council,http://statistics.data.gov.uk/doc/local-authority/00DA,City Development,Highways,Transport,Plant Hire - By Directorate,305,07/12/2010,1012-00560,693.00 ,R,ASHTEAD PLANT HIRE COMPANY LTD
Leeds City Council,http://statistics.data.gov.uk/doc/local-authority/00DA,City Development,Libraries Arts and Heritage,Supplies and services,Other Hired And Contracted Services,265,08/12/2010,1012-00561,809.60 ,R,ASHTEAD PLANT HIRE COMPANY LTD
Leeds City Council,http://statistics.data.gov.uk/doc/local-authority/00DA,City Development,Recreation,Transport,Hire Of Movable Plant & Machinery,315,23/12/2010,1012-00562,660.00 ,R,ASHTEAD PLANT HIRE COMPANY LTD
Leeds City Council,http://statistics.data.gov.uk/doc/local-authority/00DA,City Development,Recreation,Transport,Hire Of Movable Plant & Machinery,315,24/12/2010,1012-00563,476.90 ,R,ASHTEAD PLANT HIRE COMPANY LTD
Leeds City Council,http://statistics.data.gov.uk/doc/local-authority/00DA,City Development,Recreation,Transport,Hire Of Movable Plant & Machinery,315,24/12/2010,1012-00564,752.60 ,R,ASHTEAD PLANT HIRE COMPANY LTD
Leeds City Council,http://statistics.data.gov.uk/doc/local-authority/00DA,City Development,Libraries Arts and Heritage,Supplies and services,Operational Furniture And Equipment,203,29/12/2010,1012-00565,1395.00 ,R,ASHTEAD PLANT HIRE COMPANY LTD
Leeds City Council,http://statistics.data.gov.uk/doc/local-authority/00DA,Adult Social Care,Services For Older People - 65 and over,Third party payments,Residential Care Emi,571,22/12/2010,1012-00566,871.28 ,R,ASHVILLE CARE HOME
Leeds City Council,http://statistics.data.gov.uk/doc/local-authority/00DA,Adult Social Care,Services For Older People - 65 and over,Third party payments,Residential,580,23/12/2010,1012-00567,2634.03 ,R,Ashworth Grange
Leeds City Council,http://statistics.data.gov.uk/doc/local-authority/00DA,Children's Services,Children Looked After,Employees,Agency Staff,008,10/12/2010,1012-00568,1450.83 ,R,Askdeacon Ltd
Leeds City Council,http://statistics.data.gov.uk/doc/local-authority/00DA,Children's Services,Youth Justice,Premises,Maintenance Of Buildings,101,03/12/2010,1012-00569,3162.50 ,R,ASPECT BUILDING SOLUTIONS
Education Leeds,http://statistics.data.gov.uk/doc/local-authority/00DA,Education Leeds,Education Leeds,Premises,Buildings,101,23/12/2010,1012-00570,494.20 ,R,ASPECT BUILDING SOLUTIONS
Leeds City Council,http://statistics.data.gov.uk/doc/local-authority/00DA,City Development,Highways,Transport,Plant Hire - By Directorate,305,03/12/2010,1012-00571,650.00 ,R,ASPHALT PAVERS
Leeds City Council,http://statistics.data.gov.uk/doc/local-authority/00DA,City Development,Highways,Transport,Plant Hire - By Directorate,305,03/12/2010,1012-00572,850.00 ,R,ASPHALT PAVERS
Leeds City Council,http://statistics.data.gov.uk/doc/local-authority/00DA,City Development,Highways,Transport,Plant Hire - By Directorate,305,03/12/2010,1012-00573,790.00 ,R,ASPHALT PAVERS
Leeds City Council,http://statistics.data.gov.uk/doc/local-authority/00DA,City Development,Highways,Transport,Plant Hire - By Directorate,305,16/12/2010,1012-00574,790.00 ,R,ASPHALT PAVERS
Leeds City Council,http://statistics.data.gov.uk/doc/local-authority/00DA,City Development,Highways,Transport,Plant Hire - By Directorate,305,16/12/2010,1012-00575,1300.00 ,R,ASPHALT PAVERS
Leeds City Council,http://statistics.data.gov.uk/doc/local-authority/00DA,City Development,Highways,Transport,Plant Hire - By Directorate,305,16/12/2010,1012-00576,790.00 ,R,ASPHALT PAVERS
Leeds City Council,http://statistics.data.gov.uk/doc/local-authority/00DA,City Development,Highways,Transport,Plant Hire - By Directorate,305,24/12/2010,1012-00577,1798.93 ,R,ASPHALT PAVERS
Leeds City Council,http://statistics.data.gov.uk/doc/local-authority/00DA,City Development,Highways,Transport,Plant Hire - By Directorate,305,24/12/2010,1012-00578,790.00 ,R,ASPHALT PAVERS
Leeds City Council,http://statistics.data.gov.uk/doc/local-authority/00DA,City Development,Highways,Transport,Plant Hire - By Directorate,305,24/12/2010,1012-00579,495.00 ,R,ASPHALT PAVERS
Leeds City Council,http://statistics.data.gov.uk/doc/local-authority/00DA,City Development,Highways,Transport,Plant Hire - By Directorate,305,31/12/2010,1012-00580,2041.00 ,R,ASPHALT PAVERS
Leeds City Council,http://statistics.data.gov.uk/doc/local-authority/00DA,Other Education Services Managed By E.L.,PARTNERSHIP and COLLABORATIVE LEARN. FUND,Supplies and services,Other Hired And Contracted Services,265,17/12/2010,1012-00581,971.00 ,R,Aspire Creative Llp
Leeds City Council,http://statistics.data.gov.uk/doc/local-authority/00DA,Children's Services,Early Years Service,Third party payments,Services Rendered By Other Organisations,511,17/12/2010,1012-00582,8564.00 ,R,ASQUITH COURT NURSERY
Leeds City Council,http://statistics.data.gov.uk/doc/local-authority/00DA,Children's Services,Early Years Service,Third party payments,Services Rendered By Other Organisations,511,17/12/2010,1012-00583,1688.35 ,R,ASQUITH NURSERIES LTD
Leeds City Council,http://statistics.data.gov.uk/doc/local-authority/00DA,Central & Corporate Functions,Commercial Services Trading Services,Supplies and services,Other Hired And Contracted Services,265,01/12/2010,1012-00584,1665.90 ,R,ASSOCIATED WASTE MANAGEMENT LIMITED
Leeds City Council,http://statistics.data.gov.uk/doc/local-authority/00DA,Central & Corporate Functions,Commercial Services Trading Services,Supplies and services,Other Hired And Contracted Services,265,01/12/2010,1012-00585,690.50 ,R,ASSOCIATED WASTE MANAGEMENT LIMITED
Leeds City Council,http://statistics.data.gov.uk/doc/local-authority/00DA,City Development,Support Services,Premises,Removal Of Workplace Waste,126,07/12/2010,1012-00586,4806.43 ,R,ASSOCIATED WASTE MANAGEMENT LIMITED
Leeds City Council,http://statistics.data.gov.uk/doc/local-authority/00DA,Central & Corporate Functions,Commercial Services Trading Services,Supplies and services,Other Hired And Contracted Services,265,09/12/2010,1012-00587,1013.10 ,R,ASSOCIATED WASTE MANAGEMENT LIMITED
Leeds City Council,http://statistics.data.gov.uk/doc/local-authority/00DA,Central & Corporate Functions,Commercial Services Trading Services,Supplies and services,Other Hired And Contracted Services,265,09/12/2010,1012-00588,795.80 ,R,ASSOCIATED WASTE MANAGEMENT LIMITED
Leeds City Council,http://statistics.data.gov.uk/doc/local-authority/00DA,Central & Corporate Functions,Commercial Services Trading Services,Supplies and services,Other Hired And Contracted Services,265,09/12/2010,1012-00589,583.90 ,R,ASSOCIATED WASTE MANAGEMENT LIMITED
Leeds City Council,http://statistics.data.gov.uk/doc/local-authority/00DA,Central & Corporate Functions,Commercial Services Trading Services,Supplies and services,Other Hired And Contracted Services,265,09/12/2010,1012-00590,572.20 ,R,ASSOCIATED WASTE MANAGEMENT LIMITED
Leeds City Council,http://statistics.data.gov.uk/doc/local-authority/00DA,City Development,Recreation,Premises,Removal Of Workplace Waste,126,09/12/2010,1012-00591,625.00 ,R,ASSOCIATED WASTE MANAGEMENT LIMITED
Leeds City Council,http://statistics.data.gov.uk/doc/local-authority/00DA,Central & Corporate Functions,Commercial Services Trading Services,Supplies and services,Other Hired And Contracted Services,265,10/12/2010,1012-00592,563.10 ,R,ASSOCIATED WASTE MANAGEMENT LIMITED
Leeds City Council,http://statistics.data.gov.uk/doc/local-authority/00DA,City Development,Recreation,Premises,Removal Of Workplace Waste,126,10/12/2010,1012-00593,878.07 ,R,ASSOCIATED WASTE MANAGEMENT LIMITED
Leeds City Council,http://statistics.data.gov.uk/doc/local-authority/00DA,Central & Corporate Functions,Commercial Services Trading Services,Supplies and services,Other Hired And Contracted Services,265,16/12/2010,1012-00594,489.00 ,R,ASSOCIATED WASTE MANAGEMENT LIMITED
Leeds City Council,http://statistics.data.gov.uk/doc/local-authority/00DA,Central & Corporate Functions,Commercial Services Trading Services,Supplies and services,Other Hired And Contracted Services,265,16/12/2010,1012-00595,447.40 ,R,ASSOCIATED WASTE MANAGEMENT LIMITED
Leeds City Council,http://statistics.data.gov.uk/doc/local-authority/00DA,Central & Corporate Functions,Support and Facilities General Fund,Premises,Removal Of Workplace Waste,126,17/12/2010,1012-00596,432.11 ,R,ASSOCIATED WASTE MANAGEMENT LIMITED
Leeds City Council,http://statistics.data.gov.uk/doc/local-authority/00DA,City Development,Libraries Arts and Heritage,Premises,Cleaning Maintenance & Toiletries,127,17/12/2010,1012-00597,576.00 ,R,ASSOCIATED WASTE MANAGEMENT LIMITED
Leeds City Council,http://statistics.data.gov.uk/doc/local-authority/00DA,City Development,Recreation,Premises,Removal Of Workplace Waste,126,21/12/2010,1012-00598,1079.57 ,R,ASSOCIATED WASTE MANAGEMENT LIMITED
Leeds City Council,http://statistics.data.gov.uk/doc/local-authority/00DA,Central & Corporate Functions,Commercial Services Trading Services,Supplies and services,Other Hired And Contracted Services,265,24/12/2010,1012-00599,457.50 ,R,ASSOCIATED WASTE MANAGEMENT LIMITED
Leeds City Council,http://statistics.data.gov.uk/doc/local-authority/00DA,Central & Corporate Functions,Commercial Services Trading Services,Supplies and services,Other Hired And Contracted Services,265,24/12/2010,1012-00600,1095.00 ,R,ASSOCIATED WASTE MANAGEMENT LIMITED
Leeds City Council,http://statistics.data.gov.uk/doc/local-authority/00DA,Central & Corporate Functions,Commercial Services Trading Services,Supplies and services,Other Hired And Contracted Services,265,24/12/2010,1012-00601,561.80 ,R,ASSOCIATED WASTE MANAGEMENT LIMITED
Leeds City Council,http://statistics.data.gov.uk/doc/local-authority/00DA,Central & Corporate Functions,Commercial Services Trading Services,Supplies and services,Other Hired And Contracted Services,265,24/12/2010,1012-00602,1345.90 ,R,ASSOCIATED WASTE MANAGEMENT LIMITED
Leeds City Council,http://statistics.data.gov.uk/doc/local-authority/00DA,Central & Corporate Functions,Commercial Services Trading Services,Supplies and services,Other Hired And Contracted Services,265,24/12/2010,1012-00603,738.60 ,R,ASSOCIATED WASTE MANAGEMENT LIMITED
Leeds City Council,http://statistics.data.gov.uk/doc/local-authority/00DA,Central & Corporate Functions,Commercial Services Trading Services,Supplies and services,Other Hired And Contracted Services,265,31/12/2010,1012-00604,547.79 ,R,ASSOCIATED WASTE MANAGEMENT LIMITED
Leeds City Council,http://statistics.data.gov.uk/doc/local-authority/00DA,City Development,Highways,Supplies and services,Recycling & Reuse Charges,234,31/12/2010,1012-00605,446.00 ,R,ASSOCIATED WASTE MANAGEMENT LIMITED
Leeds City Council,http://statistics.data.gov.uk/doc/local-authority/00DA,City Development,Libraries Arts and Heritage,Premises,Removal Of Workplace Waste,126,31/12/2010,1012-00606,965.18 ,R,ASSOCIATED WASTE MANAGEMENT LIMITED
Leeds City Council,http://statistics.data.gov.uk/doc/local-authority/00DA,Central & Corporate Functions,Commercial Services Trading Services,Supplies and services,Other Hired And Contracted Services,265,31/12/2010,1012-00607,703.50 ,R,ASSOCIATED WASTE MANAGEMENT LIMITED
Leeds City Council,http://statistics.data.gov.uk/doc/local-authority/00DA,City Development,Libraries Arts and Heritage,Premises,Removal Of Workplace Waste,126,31/12/2010,1012-00608,977.20 ,R,ASSOCIATED WASTE MANAGEMENT LIMITED
Leeds City Council,http://statistics.data.gov.uk/doc/local-authority/00DA,Adult Social Care,Social Services Support Services,Third party payments,Payments To Voluntary Organisations,561,31/12/2010,1012-00609,7386.75 ,R,Association Of Blind Asians
Leeds City Council,http://statistics.data.gov.uk/doc/local-authority/00DA,Central & Corporate Functions,Corporate Governance,Employees,Professionally Linked Training,076,16/12/2010,1012-00610,625.00 ,R,ASSOCIATION OF ELECTORAL ADMINISTRATORS
Leeds City Council,http://statistics.data.gov.uk/doc/local-authority/00DA,Central & Corporate Functions,Executive Support,Employees,Training Costs,071,15/12/2010,1012-00611,750.00 ,R,ASSOCIATION OF LOCAL GOVERMENT
Leeds City Council,http://statistics.data.gov.uk/doc/local-authority/00DA,City Development,Highways,Supplies and services,Other Hired And Contracted Services,265,21/12/2010,1012-00612,2561.53 ,R,ATKINS LIMITED
Leeds City Council,http://statistics.data.gov.uk/doc/local-authority/00DA,Adult Social Care,Services For Older People - 65 and over,Third party payments,Nursing Home,570,22/12/2010,1012-00613,18056.35 ,R,Atkinson Court
Leeds City Council,http://statistics.data.gov.uk/doc/local-authority/00DA,Adult Social Care,Services For Older People - 65 and over,Third party payments,Nursing Care Emi,574,22/12/2010,1012-00614,4659.13 ,R,Atkinson Court
Leeds City Council,http://statistics.data.gov.uk/doc/local-authority/00DA,Central & Corporate Functions,Commercial Services Trading Services,Supplies and services,Other Hired And Contracted Services,265,13/12/2010,1012-00615,620.00 ,R,ATKINSONS FENCING LIMITED
Leeds City Council,http://statistics.data.gov.uk/doc/local-authority/00DA,Adult Social Care,Services For Older People - 65 and over,Third party payments,Nursing Home,570,22/12/2010,1012-00616,1142.80 ,R,ATTLEE COURT
Leeds City Council,http://statistics.data.gov.uk/doc/local-authority/00DA,Adult Social Care,Services For Older People - 65 and over,Third party payments,Nursing Care Emi,574,22/12/2010,1012-00617,1161.40 ,R,ATTLEE COURT
Leeds City Council,http://statistics.data.gov.uk/doc/local-authority/00DA,Central & Corporate Functions,Audit and Risk,Supplies and services,External Audit Fees,261,10/12/2010,1012-00618,2350.00 ,R,AUDIT COMMISSION
Leeds City Council,http://statistics.data.gov.uk/doc/local-authority/00DA,Central & Corporate Functions,Commercial Services Trading Services,Supplies and services,Food & Drink,231,02/12/2010,1012-00619,1146.88 ,R,Aunt Bessie's Limited
Leeds City Council,http://statistics.data.gov.uk/doc/local-authority/00DA,Central & Corporate Functions,Commercial Services Trading Services,Supplies and services,Food & Drink,231,17/12/2010,1012-00620,1146.88 ,R,Aunt Bessie's Limited
Leeds City Council,http://statistics.data.gov.uk/doc/local-authority/00DA,Central & Corporate Functions,Commercial Services Trading Services,Supplies and services,Food & Drink,231,17/12/2010,1012-00621,1146.88 ,R,Aunt Bessie's Limited
Leeds City Council as Accountable Body,http://statistics.data.gov.uk/doc/local-authority/00DA,Social Services Pooled Budgets,Jcs For People With Learning Disabilitie,Third party payments,Residential,580,22/12/2010,1012-00622,8052.40 ,R,AUTISM CARE (UK) LTD
Leeds City Council,http://statistics.data.gov.uk/doc/local-authority/00DA,Children's Services,Integrated Youth Support Service,Transport,Repairs To LCC Owned/Leasd Vehicals (NFP,341,11/11/2010,1012-00623,851.06 ,R,automotive-electrical
East North East Homes Leeds,http://statistics.data.gov.uk/doc/local-authority/00DA,East - North East,Corporate Directorate,Employees,General Training,079,03/12/2010,1012-00624,950.00 ,R,AVALON
East North East Homes Leeds,http://statistics.data.gov.uk/doc/local-authority/00DA,East - North East,Technical Services,Supplies and services,Other Hired And Contracted Services,265,10/12/2010,1012-00625,548.41 ,R,AVALON
East North East Homes Leeds,http://statistics.data.gov.uk/doc/local-authority/00DA,East - North East,Technical Services,Supplies and services,Other Hired And Contracted Services,265,10/12/2010,1012-00626,510.12 ,R,AVALON
East North East Homes Leeds,http://statistics.data.gov.uk/doc/local-authority/00DA,East - North East,Technical Services,Supplies and services,Other Hired And Contracted Services,265,10/12/2010,1012-00627,7599.67 ,R,AVALON
East North East Homes Leeds,http://statistics.data.gov.uk/doc/local-authority/00DA,East - North East,Technical Services,Supplies and services,Other Hired And Contracted Services,265,23/12/2010,1012-00628,1582.58 ,R,AVALON
Leeds City Council as Accountable Body,http://statistics.data.gov.uk/doc/local-authority/00DA,Social Services Pooled Budgets,Jcs For People With Learning Disabilitie,Third party payments,Home Care,568,24/12/2010,1012-00629,1332.20 ,R,AVALON
Education Leeds,http://statistics.data.gov.uk/doc/local-authority/00DA,Education Leeds,Education Leeds,Supplies and services,Licences,266,17/12/2010,1012-00630,4416.67 ,R,AVCO SYSTEMS LTD
Leeds City Council,http://statistics.data.gov.uk/doc/local-authority/00DA,City Development,Libraries Arts and Heritage,Supplies and services,Operational Furniture And Equipment,203,09/12/2010,1012-00631,3450.00 ,R,AVCOM HIRE
Leeds City Council,http://statistics.data.gov.uk/doc/local-authority/00DA,City Development,Libraries Arts and Heritage,Supplies and services,Operational Furniture And Equipment,203,23/12/2010,1012-00632,5801.25 ,R,AVCOM HIRE
Leeds City Council,http://statistics.data.gov.uk/doc/local-authority/00DA,City Development,Libraries Arts and Heritage,Supplies and services,Bought In Professional Services,277,23/12/2010,1012-00633,3270.00 ,R,AVCOM HIRE
Leeds City Council as Accountable Body,http://statistics.data.gov.uk/doc/local-authority/00DA,Social Services Pooled Budgets,Jcs For People With Learning Disabilitie,Third party payments,Residential,580,08/12/2010,1012-00634,4642.20 ,R,AVENS LTD
Leeds City Council as Accountable Body,http://statistics.data.gov.uk/doc/local-authority/00DA,Social Services Pooled Budgets,Jcs For People With Learning Disabilitie,Third party payments,Residential,580,22/12/2010,1012-00635,4153.72 ,R,AVON LODGE
Leeds City Council,http://statistics.data.gov.uk/doc/local-authority/00DA,Central & Corporate Functions,Commercial Services Trading Services,Transport,Vehicle Spares,345,15/12/2010,1012-00636,559.00 ,R,AVS Steps Ltd
Leeds City Council,http://statistics.data.gov.uk/doc/local-authority/00DA,Central & Corporate Functions,Commercial Services Trading Services,Transport,Vehicle Spares,345,29/12/2010,1012-00637,559.00 ,R,AVS Steps Ltd
Leeds City Council,http://statistics.data.gov.uk/doc/local-authority/00DA,Adult Social Care,Roseville Enterprises,Supplies and services,Operational Furniture And Equipment,203,01/12/2010,1012-00638,1176.42 ,R,AW HAINSWORTH & SONS LTD
Leeds City Council,http://statistics.data.gov.uk/doc/local-authority/00DA,Children's Services,Intergrated Youth Support Service,Supplies and services,Books & Audio-Visual Materials,206,29/12/2010,1012-00639,493.62 ,R,AWARD SCHEME LTD
Leeds City Council,http://statistics.data.gov.uk/doc/local-authority/00DA,Children's Services,Intergrated Youth Support Service,Supplies and services,Books & Audio-Visual Materials,206,29/12/2010,1012-00640,565.53 ,R,AWARD SCHEME LTD
Leeds City Council,http://statistics.data.gov.uk/doc/local-authority/00DA,Central & Corporate Functions,Corporate Property Management,Premises,Rents,141,21/12/2010,1012-00641,527.65 ,R,AWS LTD
Leeds City Council,http://statistics.data.gov.uk/doc/local-authority/00DA,Insurance,Insurance,Supplies and services,Insurance Claims,248,02/12/2010,1012-00642,969.89 ,R,AXA Car Insurance
Leeds City Council,http://statistics.data.gov.uk/doc/local-authority/00DA,City Development,Libraries Arts and Heritage,Supplies and services,Printing,215,10/12/2010,1012-00643,1325.00 ,R,AXIS PRINTING LIMITED
Leeds City Council,http://statistics.data.gov.uk/doc/local-authority/00DA,Adult Social Care,Services For Older People - 65 and over,Third party payments,Nursing Home,570,22/12/2010,1012-00644,1238.80 ,R,AYRESOME COURT NURSING HOME
Leeds City Council,http://statistics.data.gov.uk/doc/local-authority/00DA,City Development,Highways,Supplies and services,Operational Materials,205,30/12/2010,1012-00645,1160.00 ,R,AZTEC PRESENTATIONS LIMITED
Leeds City Council,http://statistics.data.gov.uk/doc/local-authority/00DA,Environment & Neighbourhoods,Environmental Health,Capital,CONSTRUCTION,3,03/12/2010,1012-00646,4400.00 ,C,B & K PASSMORE
Leeds City Council,http://statistics.data.gov.uk/doc/local-authority/00DA,Environment & Neighbourhoods,Environmental Health,Capital,CONSTRUCTION,3,03/12/2010,1012-00647,4545.00 ,C,B & K PASSMORE
Leeds City Council,http://statistics.data.gov.uk/doc/local-authority/00DA,Environment & Neighbourhoods,Environmental Health,Capital,CONSTRUCTION,3,03/12/2010,1012-00648,4670.00 ,C,B & K PASSMORE
Leeds City Council,http://statistics.data.gov.uk/doc/local-authority/00DA,Environment & Neighbourhoods,Environmental Health,Capital,CONSTRUCTION,3,03/12/2010,1012-00649,4376.25 ,C,B & K PASSMORE
Leeds City Council,http://statistics.data.gov.uk/doc/local-authority/00DA,Environment & Neighbourhoods,Environmental Health,Capital,CONSTRUCTION,3,03/12/2010,1012-00650,4700.00 ,C,B & K PASSMORE
Leeds City Council,http://statistics.data.gov.uk/doc/local-authority/00DA,Environment & Neighbourhoods,Environmental Health,Capital,CONSTRUCTION,3,03/12/2010,1012-00651,4400.00 ,C,B & K PASSMORE
Leeds City Council,http://statistics.data.gov.uk/doc/local-authority/00DA,Environment & Neighbourhoods,Environmental Health,Capital,CONSTRUCTION,3,03/12/2010,1012-00652,4588.33 ,C,B & K PASSMORE
Leeds City Council,http://statistics.data.gov.uk/doc/local-authority/00DA,Environment & Neighbourhoods,Environmental Health,Capital,CONSTRUCTION,3,03/12/2010,1012-00653,4400.00 ,C,B & K PASSMORE
Leeds City Council,http://statistics.data.gov.uk/doc/local-authority/00DA,Environment & Neighbourhoods,Environmental Health,Capital,CONSTRUCTION,3,10/12/2010,1012-00654,4400.00 ,C,B & K PASSMORE
Leeds City Council,http://statistics.data.gov.uk/doc/local-authority/00DA,Environment & Neighbourhoods,Environmental Health,Capital,CONSTRUCTION,3,10/12/2010,1012-00655,4970.00 ,C,B & K PASSMORE
Leeds City Council,http://statistics.data.gov.uk/doc/local-authority/00DA,Environment & Neighbourhoods,Environmental Health,Capital,CONSTRUCTION,3,10/12/2010,1012-00656,4400.00 ,C,B & K PASSMORE
Leeds City Council,http://statistics.data.gov.uk/doc/local-authority/00DA,Environment & Neighbourhoods,Environmental Health,Capital,CONSTRUCTION,3,10/12/2010,1012-00657,4400.00 ,C,B & K PASSMORE
Leeds City Council,http://statistics.data.gov.uk/doc/local-authority/00DA,Environment & Neighbourhoods,Environmental Health,Capital,CONSTRUCTION,3,10/12/2010,1012-00658,4400.00 ,C,B & K PASSMORE
Leeds City Council,http://statistics.data.gov.uk/doc/local-authority/00DA,Environment & Neighbourhoods,Environmental Health,Capital,CONSTRUCTION,3,10/12/2010,1012-00659,4400.00 ,C,B & K PASSMORE
Leeds City Council,http://statistics.data.gov.uk/doc/local-authority/00DA,Environment & Neighbourhoods,Environmental Health,Capital,CONSTRUCTION,3,10/12/2010,1012-00660,4400.00 ,C,B & K PASSMORE
Leeds City Council,http://statistics.data.gov.uk/doc/local-authority/00DA,Environment & Neighbourhoods,Environmental Health,Capital,CONSTRUCTION,3,10/12/2010,1012-00661,4400.00 ,C,B & K PASSMORE
Leeds City Council,http://statistics.data.gov.uk/doc/local-authority/00DA,Environment & Neighbourhoods,Environmental Health,Capital,CONSTRUCTION,3,10/12/2010,1012-00662,4400.00 ,C,B & K PASSMORE
Leeds City Council,http://statistics.data.gov.uk/doc/local-authority/00DA,Environment & Neighbourhoods,Environmental Health,Capital,CONSTRUCTION,3,10/12/2010,1012-00663,4400.00 ,C,B & K PASSMORE
Leeds City Council,http://statistics.data.gov.uk/doc/local-authority/00DA,Environment & Neighbourhoods,Environmental Health,Capital,CONSTRUCTION,3,10/12/2010,1012-00664,4400.00 ,C,B & K PASSMORE
Leeds City Council,http://statistics.data.gov.uk/doc/local-authority/00DA,Environment & Neighbourhoods,Environmental Health,Capital,CONSTRUCTION,3,20/12/2010,1012-00665,4400.00 ,C,B & K PASSMORE
Leeds City Council,http://statistics.data.gov.uk/doc/local-authority/00DA,Environment & Neighbourhoods,Environmental Health,Capital,CONSTRUCTION,3,20/12/2010,1012-00666,4400.00 ,C,B & K PASSMORE
Leeds City Council,http://statistics.data.gov.uk/doc/local-authority/00DA,Environment & Neighbourhoods,Environmental Health,Capital,CONSTRUCTION,3,20/12/2010,1012-00667,4400.00 ,C,B & K PASSMORE
Leeds City Council,http://statistics.data.gov.uk/doc/local-authority/00DA,Environment & Neighbourhoods,Environmental Health,Capital,CONSTRUCTION,3,20/12/2010,1012-00668,4400.00 ,C,B & K PASSMORE
Leeds City Council,http://statistics.data.gov.uk/doc/local-authority/00DA,Environment & Neighbourhoods,Environmental Health,Capital,CONSTRUCTION,3,20/12/2010,1012-00669,4400.00 ,C,B & K PASSMORE
Leeds City Council,http://statistics.data.gov.uk/doc/local-authority/00DA,Environment & Neighbourhoods,Environmental Health,Capital,CONSTRUCTION,3,20/12/2010,1012-00670,4450.00 ,C,B & K PASSMORE
Leeds City Council,http://statistics.data.gov.uk/doc/local-authority/00DA,Environment & Neighbourhoods,Environmental Health,Capital,CONSTRUCTION,3,20/12/2010,1012-00671,4400.00 ,C,B & K PASSMORE
Leeds City Council,http://statistics.data.gov.uk/doc/local-authority/00DA,Environment & Neighbourhoods,Environmental Health,Capital,CONSTRUCTION,3,20/12/2010,1012-00672,1500.00 ,C,B & K PASSMORE
Leeds City Council,http://statistics.data.gov.uk/doc/local-authority/00DA,Environment & Neighbourhoods,Environmental Health,Capital,CONSTRUCTION,3,20/12/2010,1012-00673,1500.00 ,C,B & K PASSMORE
Leeds City Council,http://statistics.data.gov.uk/doc/local-authority/00DA,Environment & Neighbourhoods,Environmental Health,Capital,CONSTRUCTION,3,20/12/2010,1012-00674,4400.00 ,C,B & K PASSMORE
Leeds City Council,http://statistics.data.gov.uk/doc/local-authority/00DA,Environment & Neighbourhoods,Environmental Health,Capital,CONSTRUCTION,3,24/12/2010,1012-00675,4970.00 ,C,B & K PASSMORE
Leeds City Council,http://statistics.data.gov.uk/doc/local-authority/00DA,Environment & Neighbourhoods,Environmental Health,Capital,CONSTRUCTION,3,24/12/2010,1012-00676,1500.00 ,C,B & K PASSMORE
Leeds City Council,http://statistics.data.gov.uk/doc/local-authority/00DA,Environment & Neighbourhoods,Environmental Health,Capital,CONSTRUCTION,3,24/12/2010,1012-00677,4400.00 ,C,B & K PASSMORE
Leeds City Council,http://statistics.data.gov.uk/doc/local-authority/00DA,Environment & Neighbourhoods,Health and Environmental Action,Premises,Maintenance Of Buildings,101,02/12/2010,1012-00678,1250.00 ,R,B Brook
Leeds City Council,http://statistics.data.gov.uk/doc/local-authority/00DA,Children's Services,Children Looked After,Supplies and services,Office Furniture & Equipment,201,03/12/2010,1012-00679,541.00 ,R,BACK CARE SOLUTIONS LTD
Leeds City Council,http://statistics.data.gov.uk/doc/local-authority/00DA,Adult Social Care,Social Services Support Services,Supplies and services,Operational Furniture And Equipment,203,08/12/2010,1012-00680,1064.95 ,R,BACK CARE SOLUTIONS LTD
Leeds City Council,http://statistics.data.gov.uk/doc/local-authority/00DA,Adult Social Care,Social Services Support Services,Supplies and services,Operational Furniture And Equipment,203,23/12/2010,1012-00681,562.00 ,R,BACK CARE SOLUTIONS LTD
Leeds City Council,http://statistics.data.gov.uk/doc/local-authority/00DA,Central & Corporate Functions,Corporate Governance,Supplies and services,Office Furniture & Equipment,201,29/12/2010,1012-00682,514.00 ,R,BACK CARE SOLUTIONS LTD
Aire Valley Homes Leeds ,http://statistics.data.gov.uk/doc/local-authority/00DA,Aire Valley Homes Leeds,Housing,Employees,Temporary Staff-Basic,009,01/12/2010,1012-00683,578.79 ,R,BADENOCH & CLARK LTD
West North West Homes Leeds,http://statistics.data.gov.uk/doc/local-authority/00DA,West - North West,Customer and Tenancy,Employees,Temporary Staff-Basic,009,06/12/2010,1012-00684,562.50 ,R,BADENOCH & CLARK LTD
West North West Homes Leeds,http://statistics.data.gov.uk/doc/local-authority/00DA,West - North West,Customer and Tenancy,Employees,Temporary Staff-Basic,009,06/12/2010,1012-00685,522.07 ,R,BADENOCH & CLARK LTD
West North West Homes Leeds,http://statistics.data.gov.uk/doc/local-authority/00DA,West - North West,Customer and Tenancy,Employees,Temporary Staff-Basic,009,06/12/2010,1012-00686,522.07 ,R,BADENOCH & CLARK LTD
West North West Homes Leeds,http://statistics.data.gov.uk/doc/local-authority/00DA,West - North West,Customer and Tenancy,Employees,Temporary Staff-Basic,009,06/12/2010,1012-00687,522.07 ,R,BADENOCH & CLARK LTD
West North West Homes Leeds,http://statistics.data.gov.uk/doc/local-authority/00DA,West - North West,Customer and Tenancy,Employees,Temporary Staff-Basic,009,06/12/2010,1012-00688,522.07 ,R,BADENOCH & CLARK LTD
West North West Homes Leeds,http://statistics.data.gov.uk/doc/local-authority/00DA,West - North West,Customer and Tenancy,Employees,Temporary Staff-Basic,009,10/12/2010,1012-00689,562.50 ,R,BADENOCH & CLARK LTD
West North West Homes Leeds,http://statistics.data.gov.uk/doc/local-authority/00DA,West - North West,Customer and Tenancy,Employees,Temporary Staff-Basic,009,10/12/2010,1012-00690,909.56 ,R,BADENOCH & CLARK LTD
West North West Homes Leeds,http://statistics.data.gov.uk/doc/local-authority/00DA,West - North West,Customer and Tenancy,Employees,Temporary Staff-Basic,009,10/12/2010,1012-00691,973.86 ,R,BADENOCH & CLARK LTD
West North West Homes Leeds,http://statistics.data.gov.uk/doc/local-authority/00DA,West - North West,Customer and Tenancy,Employees,Temporary Staff-Basic,009,15/12/2010,1012-00692,545.75 ,R,BADENOCH & CLARK LTD
West North West Homes Leeds,http://statistics.data.gov.uk/doc/local-authority/00DA,West - North West,Customer and Tenancy,Employees,Temporary Staff-Basic,009,15/12/2010,1012-00693,479.74 ,R,BADENOCH & CLARK LTD
West North West Homes Leeds,http://statistics.data.gov.uk/doc/local-authority/00DA,West - North West,Customer and Tenancy,Employees,Temporary Staff-Basic,009,15/12/2010,1012-00694,522.07 ,R,BADENOCH & CLARK LTD
West North West Homes Leeds,http://statistics.data.gov.uk/doc/local-authority/00DA,West - North West,Customer and Tenancy,Employees,Temporary Staff-Basic,009,15/12/2010,1012-00695,545.75 ,R,BADENOCH & CLARK LTD
West North West Homes Leeds,http://statistics.data.gov.uk/doc/local-authority/00DA,West - North West,Customer and Tenancy,Employees,Temporary Staff-Basic,009,17/12/2010,1012-00696,789.46 ,R,BADENOCH & CLARK LTD
West North West Homes Leeds,http://statistics.data.gov.uk/doc/local-authority/00DA,West - North West,Customer and Tenancy,Employees,Temporary Staff-Basic,009,17/12/2010,1012-00697,799.31 ,R,BADENOCH & CLARK LTD
West North West Homes Leeds,http://statistics.data.gov.uk/doc/local-authority/00DA,West - North West,Customer and Tenancy,Employees,Temporary Staff-Basic,009,17/12/2010,1012-00698,847.09 ,R,BADENOCH & CLARK LTD
West North West Homes Leeds,http://statistics.data.gov.uk/doc/local-authority/00DA,West - North West,Customer and Tenancy,Employees,Temporary Staff-Basic,009,17/12/2010,1012-00699,511.49 ,R,BADENOCH & CLARK LTD
West North West Homes Leeds,http://statistics.data.gov.uk/doc/local-authority/00DA,West - North West,Customer and Tenancy,Employees,Temporary Staff-Basic,009,17/12/2010,1012-00700,529.13 ,R,BADENOCH & CLARK LTD
West North West Homes Leeds,http://statistics.data.gov.uk/doc/local-authority/00DA,West - North West,Customer and Tenancy,Employees,Temporary Staff-Basic,009,21/12/2010,1012-00701,507.96 ,R,BADENOCH & CLARK LTD
West North West Homes Leeds,http://statistics.data.gov.uk/doc/local-authority/00DA,West - North West,Customer and Tenancy,Employees,Temporary Staff-Basic,009,21/12/2010,1012-00702,522.07 ,R,BADENOCH & CLARK LTD
West North West Homes Leeds,http://statistics.data.gov.uk/doc/local-authority/00DA,West - North West,Customer and Tenancy,Employees,Temporary Staff-Basic,009,21/12/2010,1012-00703,545.75 ,R,BADENOCH & CLARK LTD
West North West Homes Leeds,http://statistics.data.gov.uk/doc/local-authority/00DA,West - North West,Customer and Tenancy,Employees,Temporary Staff-Basic,009,21/12/2010,1012-00704,545.75 ,R,BADENOCH & CLARK LTD
West North West Homes Leeds,http://statistics.data.gov.uk/doc/local-authority/00DA,West - North West,Customer and Tenancy,Employees,Temporary Staff-Basic,009,22/12/2010,1012-00705,511.49 ,R,BADENOCH & CLARK LTD
West North West Homes Leeds,http://statistics.data.gov.uk/doc/local-authority/00DA,West - North West,Customer and Tenancy,Employees,Temporary Staff-Basic,009,22/12/2010,1012-00706,522.07 ,R,BADENOCH & CLARK LTD
West North West Homes Leeds,http://statistics.data.gov.uk/doc/local-authority/00DA,West - North West,Customer and Tenancy,Employees,Temporary Staff-Basic,009,22/12/2010,1012-00707,476.21 ,R,BADENOCH & CLARK LTD
West North West Homes Leeds,http://statistics.data.gov.uk/doc/local-authority/00DA,West - North West,Customer and Tenancy,Employees,Temporary Staff-Basic,009,24/12/2010,1012-00708,437.41 ,R,BADENOCH & CLARK LTD
West North West Homes Leeds,http://statistics.data.gov.uk/doc/local-authority/00DA,West - North West,Customer and Tenancy,Employees,Temporary Staff-Basic,009,24/12/2010,1012-00709,469.16 ,R,BADENOCH & CLARK LTD
West North West Homes Leeds,http://statistics.data.gov.uk/doc/local-authority/00DA,West - North West,Customer and Tenancy,Employees,Temporary Staff-Basic,009,24/12/2010,1012-00710,545.75 ,R,BADENOCH & CLARK LTD
West North West Homes Leeds,http://statistics.data.gov.uk/doc/local-authority/00DA,West - North West,Customer and Tenancy,Employees,Temporary Staff-Basic,009,24/12/2010,1012-00711,655.50 ,R,BADENOCH & CLARK LTD
West North West Homes Leeds,http://statistics.data.gov.uk/doc/local-authority/00DA,West - North West,Customer and Tenancy,Employees,Temporary Staff-Basic,009,29/12/2010,1012-00712,562.50 ,R,BADENOCH & CLARK LTD
West North West Homes Leeds,http://statistics.data.gov.uk/doc/local-authority/00DA,West - North West,Customer and Tenancy,Employees,Temporary Staff-Basic,009,29/12/2010,1012-00713,562.50 ,R,BADENOCH & CLARK LTD
West North West Homes Leeds,http://statistics.data.gov.uk/doc/local-authority/00DA,West - North West,Customer and Tenancy,Supplies and services,Project Management Group,260,31/12/2010,1012-00714,915.08 ,R,BADENOCH & CLARK LTD
West North West Homes Leeds,http://statistics.data.gov.uk/doc/local-authority/00DA,West - North West,Customer and Tenancy,Supplies and services,Project Management Group,260,31/12/2010,1012-00715,841.33 ,R,BADENOCH & CLARK LTD
West North West Homes Leeds,http://statistics.data.gov.uk/doc/local-authority/00DA,West - North West,Customer and Tenancy,Employees,Temporary Staff-Basic,009,31/12/2010,1012-00716,920.59 ,R,BADENOCH & CLARK LTD
West North West Homes Leeds,http://statistics.data.gov.uk/doc/local-authority/00DA,West - North West,Customer and Tenancy,Employees,Temporary Staff-Basic,009,31/12/2010,1012-00717,1019.96 ,R,BADENOCH & CLARK LTD
West North West Homes Leeds,http://statistics.data.gov.uk/doc/local-authority/00DA,West - North West,Customer and Tenancy,Employees,Temporary Staff-Basic,009,31/12/2010,1012-00718,818.28 ,R,BADENOCH & CLARK LTD
West North West Homes Leeds,http://statistics.data.gov.uk/doc/local-authority/00DA,West - North West,Customer and Tenancy,Supplies and services,Project Management Group,260,31/12/2010,1012-00719,904.05 ,R,BADENOCH & CLARK LTD
West North West Homes Leeds,http://statistics.data.gov.uk/doc/local-authority/00DA,West - North West,Customer and Tenancy,Supplies and services,Project Management Group,260,31/12/2010,1012-00720,962.34 ,R,BADENOCH & CLARK LTD
West North West Homes Leeds,http://statistics.data.gov.uk/doc/local-authority/00DA,West - North West,Customer and Tenancy,Employees,Temporary Staff-Basic,009,31/12/2010,1012-00721,458.58 ,R,BADENOCH & CLARK LTD
West North West Homes Leeds,http://statistics.data.gov.uk/doc/local-authority/00DA,West - North West,Customer and Tenancy,Employees,Temporary Staff-Basic,009,31/12/2010,1012-00722,508.88 ,R,BADENOCH & CLARK LTD
Leeds City Council,http://statistics.data.gov.uk/doc/local-authority/00DA,City Development,Recreation,Transport,Plant Machinery Hire,315,11/11/2010,1012-00723,2091.50 ,R,balmers garden
Leeds City Council,http://statistics.data.gov.uk/doc/local-authority/00DA,City Development,Recreation,Transport,Plant Spares,346,01/12/2010,1012-00724,442.89 ,R,BALMERS GARDEN MACHINERY
Leeds City Council,http://statistics.data.gov.uk/doc/local-authority/00DA,City Development,Recreation,Transport,Plant Spares,346,13/12/2010,1012-00725,2055.31 ,R,BALMERS GARDEN MACHINERY
Leeds City Council,http://statistics.data.gov.uk/doc/local-authority/00DA,City Development,Recreation,Transport,Plant Spares,346,15/12/2010,1012-00726,890.01 ,R,BALMERS GARDEN MACHINERY
Leeds City Council,http://statistics.data.gov.uk/doc/local-authority/00DA,City Development,Recreation,Transport,Plant Spares,346,20/12/2010,1012-00727,1021.87 ,R,BALMERS GARDEN MACHINERY
Leeds City Council,http://statistics.data.gov.uk/doc/local-authority/00DA,City Development,Highways,Capital,CONSTRUCTION,3,23/12/2010,1012-00728,19264.83 ,C,BALVAC LTD
Leeds City Council,http://statistics.data.gov.uk/doc/local-authority/00DA,City Development,Libraries Arts and Heritage,Capital,CONSTRUCTION,3,23/12/2010,1012-00729,551933.40 ,C,Bam Construction Ltd
Leeds City Council,http://statistics.data.gov.uk/doc/local-authority/00DA,City Development,Economic Development,Supplies and services,Other Hired And Contracted Services,265,17/12/2010,1012-00730,1615.62 ,R,BARCA LEEDS
Leeds City Council,http://statistics.data.gov.uk/doc/local-authority/00DA,City Development,Economic Development,Supplies and services,Other Hired And Contracted Services,265,23/12/2010,1012-00731,5765.33 ,R,BARCA LEEDS
Leeds City Council,http://statistics.data.gov.uk/doc/local-authority/00DA,Children's Services,Intergrated Youth Support Service,Third party payments,Services Rendered By Voluntary Sector,505,24/12/2010,1012-00732,2130.25 ,R,BARCA LEEDS
Leeds City Council,http://statistics.data.gov.uk/doc/local-authority/00DA,Other Education Services Managed By E.L.,Refurbishment Works,Capital,CONSTRUCTION,3,06/12/2010,1012-00733,8920.76 ,C,BARDSEY BUILDING CONTRACTORS LTD
Leeds City Council,http://statistics.data.gov.uk/doc/local-authority/00DA,Adult Social Care,Services For Adults under 65 Mental/Dis,Third party payments,Payments To Voluntary Organisations,561,15/12/2010,1012-00734,29759.25 ,R,BARNARDO SERVICES LTD
Leeds City Council,http://statistics.data.gov.uk/doc/local-authority/00DA,Central & Corporate Functions,Corporate Property Management,Premises,Rents,141,29/12/2010,1012-00735,4250.00 ,R,BARNARDOS
Leeds City Council,http://statistics.data.gov.uk/doc/local-authority/00DA,Children's Services,Early Years Service,Third party payments,Services Rendered By Voluntary Sector,505,02/12/2010,1012-00736,13057.50 ,R,BARNARDOS YORKSHIRE
Leeds City Council,http://statistics.data.gov.uk/doc/local-authority/00DA,Children's Services,Early Years Service,Third party payments,Services Rendered By Voluntary Sector,505,10/12/2010,1012-00737,84375.00 ,R,BARNARDOS YORKSHIRE
Leeds City Council,http://statistics.data.gov.uk/doc/local-authority/00DA,Children's Services,Early Years Service,Third party payments,Services Rendered By Voluntary Sector,505,10/12/2010,1012-00738,76304.00 ,R,BARNARDOS YORKSHIRE
Leeds City Council,http://statistics.data.gov.uk/doc/local-authority/00DA,Children's Services,Early Years Service,Third party payments,Services Rendered By Voluntary Sector,505,10/12/2010,1012-00739,50756.31 ,R,BARNARDOS YORKSHIRE
Leeds City Council,http://statistics.data.gov.uk/doc/local-authority/00DA,Children's Services,Early Years Service,Third party payments,Services Rendered By Voluntary Sector,505,10/12/2010,1012-00740,50553.69 ,R,BARNARDOS YORKSHIRE
Leeds City Council,http://statistics.data.gov.uk/doc/local-authority/00DA,Environment & Neighbourhoods,Health and Environmental Action,Supplies and services,Operational Furniture And Equipment,203,01/12/2010,1012-00741,606.52 ,R,BARRETTINE ENVIRONMENTAL HEALTH
Leeds City Council,http://statistics.data.gov.uk/doc/local-authority/00DA,City Development,Highways,Income,Work Done / Services Provided,931,23/12/2010,1012-00742,870.10 ,R,Barwick Developments (Leeds) Ltd
Leeds City Council,http://statistics.data.gov.uk/doc/local-authority/00DA,Adult Social Care,Social Services Support Services,Employees,Professionally Linked Training,076,03/12/2010,1012-00743,600.00 ,R,BASPCAN
Education Leeds,http://statistics.data.gov.uk/doc/local-authority/00DA,Education Leeds,Education Leeds,Supplies and services,Advertising,211,08/12/2010,1012-00744,10000.00 ,R,Bauer Radio Ltd
Leeds City Council,http://statistics.data.gov.uk/doc/local-authority/00DA,City Development,Recreation,Transport,Fuel (Non LCC Supplies),321,01/12/2010,1012-00745,1776.60 ,R,Bayford Oil
Leeds City Council,http://statistics.data.gov.uk/doc/local-authority/00DA,Central & Corporate Functions,Commercial Services Trading Services,Transport,Fuel (Non LCC Supplies),321,01/12/2010,1012-00746,18099.00 ,R,Bayford Oil
Leeds City Council,http://statistics.data.gov.uk/doc/local-authority/00DA,Central & Corporate Functions,Commercial Services Trading Services,Transport,Fuel (Non LCC Supplies),321,01/12/2010,1012-00747,2291.85 ,R,Bayford Oil
Leeds City Council,http://statistics.data.gov.uk/doc/local-authority/00DA,Central & Corporate Functions,Commercial Services Trading Services,Transport,Fuel (Non LCC Supplies),321,01/12/2010,1012-00748,15162.00 ,R,Bayford Oil
Leeds City Council,http://statistics.data.gov.uk/doc/local-authority/00DA,Central & Corporate Functions,Commercial Services Trading Services,Transport,Fuel (Non LCC Supplies),321,01/12/2010,1012-00749,35308.00 ,R,Bayford Oil
Leeds City Council,http://statistics.data.gov.uk/doc/local-authority/00DA,Central & Corporate Functions,Commercial Services Trading Services,Transport,Fuel (Non LCC Supplies),321,02/12/2010,1012-00750,15127.50 ,R,Bayford Oil
Leeds City Council,http://statistics.data.gov.uk/doc/local-authority/00DA,City Development,Recreation,Transport,Fuel (Non LCC Supplies),321,03/12/2010,1012-00751,1023.20 ,R,Bayford Oil
Leeds City Council,http://statistics.data.gov.uk/doc/local-authority/00DA,Central & Corporate Functions,Commercial Services Trading Services,Transport,Fuel (Non LCC Supplies),321,03/12/2010,1012-00752,35186.47 ,R,Bayford Oil
Leeds City Council,http://statistics.data.gov.uk/doc/local-authority/00DA,Central & Corporate Functions,Commercial Services Trading Services,Transport,Fuel (Non LCC Supplies),321,03/12/2010,1012-00753,2037.20 ,R,Bayford Oil
Leeds City Council,http://statistics.data.gov.uk/doc/local-authority/00DA,Environment & Neighbourhoods,Streetscene Environmental Services,Transport,Fuel (Non LCC Supplies),321,08/12/2010,1012-00754,2037.00 ,R,Bayford Oil
Leeds City Council,http://statistics.data.gov.uk/doc/local-authority/00DA,City Development,Recreation,Transport,Fuel (Non LCC Supplies),321,08/12/2010,1012-00755,3944.80 ,R,Bayford Oil
Leeds City Council,http://statistics.data.gov.uk/doc/local-authority/00DA,City Development,Recreation,Transport,Fuel (Non LCC Supplies),321,10/12/2010,1012-00756,1017.20 ,R,Bayford Oil
Leeds City Council,http://statistics.data.gov.uk/doc/local-authority/00DA,City Development,Recreation,Transport,Fuel (Non LCC Supplies),321,14/12/2010,1012-00757,762.90 ,R,Bayford Oil
Leeds City Council,http://statistics.data.gov.uk/doc/local-authority/00DA,Central & Corporate Functions,Commercial Services Trading Services,Premises,Plant and Machinery,102,14/12/2010,1012-00758,513.30 ,R,Bayford Oil
Leeds City Council,http://statistics.data.gov.uk/doc/local-authority/00DA,Central & Corporate Functions,Commercial Services Trading Services,Transport,Fuel (Non LCC Supplies),321,16/12/2010,1012-00759,18321.02 ,R,Bayford Oil
Leeds City Council,http://statistics.data.gov.uk/doc/local-authority/00DA,City Development,Recreation,Transport,Fuel (Non LCC Supplies),321,17/12/2010,1012-00760,19104.50 ,R,Bayford Oil
Leeds City Council,http://statistics.data.gov.uk/doc/local-authority/00DA,Central & Corporate Functions,Commercial Services Trading Services,Transport,Fuel (Non LCC Supplies),321,17/12/2010,1012-00761,15306.00 ,R,Bayford Oil
Leeds City Council,http://statistics.data.gov.uk/doc/local-authority/00DA,Central & Corporate Functions,Commercial Services Trading Services,Transport,Fuel (Non LCC Supplies),321,17/12/2010,1012-00762,994.36 ,R,Bayford Oil
Leeds City Council,http://statistics.data.gov.uk/doc/local-authority/00DA,Central & Corporate Functions,Commercial Services Trading Services,Transport,Fuel (Non LCC Supplies),321,20/12/2010,1012-00763,10149.54 ,R,Bayford Oil
Leeds City Council,http://statistics.data.gov.uk/doc/local-authority/00DA,Central & Corporate Functions,Commercial Services Trading Services,Transport,Fuel (Non LCC Supplies),321,20/12/2010,1012-00764,20110.00 ,R,Bayford Oil
Leeds City Council,http://statistics.data.gov.uk/doc/local-authority/00DA,City Development,Libraries Arts and Heritage,Premises,Oil,122,20/12/2010,1012-00765,1211.04 ,R,Bayford Oil
Leeds City Council,http://statistics.data.gov.uk/doc/local-authority/00DA,Central & Corporate Functions,Commercial Services Trading Services,Transport,Fuel (Non LCC Supplies),321,20/12/2010,1012-00766,18145.80 ,R,Bayford Oil
Leeds City Council,http://statistics.data.gov.uk/doc/local-authority/00DA,Central & Corporate Functions,Commercial Services Trading Services,Transport,Fuel (Non LCC Supplies),321,20/12/2010,1012-00767,22178.20 ,R,Bayford Oil
Leeds City Council,http://statistics.data.gov.uk/doc/local-authority/00DA,Central & Corporate Functions,Commercial Services Trading Services,Transport,Fuel (Non LCC Supplies),321,20/12/2010,1012-00768,15151.50 ,R,Bayford Oil
Leeds City Council,http://statistics.data.gov.uk/doc/local-authority/00DA,Central & Corporate Functions,Commercial Services Trading Services,Transport,Fuel (Non LCC Supplies),321,23/12/2010,1012-00769,1527.90 ,R,Bayford Oil
Leeds City Council,http://statistics.data.gov.uk/doc/local-authority/00DA,Central & Corporate Functions,Commercial Services Trading Services,Transport,Fuel (Non LCC Supplies),321,23/12/2010,1012-00770,22404.80 ,R,Bayford Oil
Leeds City Council,http://statistics.data.gov.uk/doc/local-authority/00DA,Central & Corporate Functions,Commercial Services Trading Services,Transport,Fuel (Non LCC Supplies),321,23/12/2010,1012-00771,10576.60 ,R,Bayford Oil
Leeds City Council,http://statistics.data.gov.uk/doc/local-authority/00DA,Central & Corporate Functions,Support and Facilities Trading Services,Premises,Oil,122,24/12/2010,1012-00772,1027.11 ,R,Bayford Oil
Leeds City Council,http://statistics.data.gov.uk/doc/local-authority/00DA,Central & Corporate Functions,Commercial Services Trading Services,Transport,Fuel (Non LCC Supplies),321,24/12/2010,1012-00773,35644.00 ,R,Bayford Oil
Leeds City Council,http://statistics.data.gov.uk/doc/local-authority/00DA,Central & Corporate Functions,Commercial Services Trading Services,Transport,Fuel (Non LCC Supplies),321,24/12/2010,1012-00774,10278.35 ,R,Bayford Oil
Leeds City Council,http://statistics.data.gov.uk/doc/local-authority/00DA,Environment & Neighbourhoods,Streetscene Environmental Services,Transport,Fuel (Non LCC Supplies),321,29/12/2010,1012-00775,869.68 ,R,Bayford Oil
Leeds City Council,http://statistics.data.gov.uk/doc/local-authority/00DA,City Development,Recreation,Transport,Fuel (Non LCC Supplies),321,29/12/2010,1012-00776,919.36 ,R,Bayford Oil
Leeds City Council,http://statistics.data.gov.uk/doc/local-authority/00DA,City Development,Recreation,Transport,Fuel (Non LCC Supplies),321,29/12/2010,1012-00777,13265.20 ,R,Bayford Oil
Leeds City Council,http://statistics.data.gov.uk/doc/local-authority/00DA,City Development,Libraries Arts and Heritage,Premises,Oil,122,31/12/2010,1012-00778,1171.39 ,R,Bayford Oil
Leeds City Council,http://statistics.data.gov.uk/doc/local-authority/00DA,City Development,Libraries Arts and Heritage,Premises,Oil,122,31/12/2010,1012-00779,1058.60 ,R,Bayford Oil
Leeds City Council,http://statistics.data.gov.uk/doc/local-authority/00DA,Adult Social Care,Services For Older People under 65 P/Dis,Third party payments,Residential,580,22/12/2010,1012-00780,7984.00 ,R,Baylis Place
Leeds City Council,http://statistics.data.gov.uk/doc/local-authority/00DA,Central & Corporate Functions,Commercial Services Trading Services,Premises,Cleaning Maintenance & Toiletries,127,02/12/2010,1012-00781,437.92 ,R,BBN FASTNET
Leeds City Council,http://statistics.data.gov.uk/doc/local-authority/00DA,Central & Corporate Functions,Commercial Services Trading Services,Premises,Cleaning Maintenance & Toiletries,127,31/12/2010,1012-00782,437.92 ,R,BBN FASTNET
Education Leeds,http://statistics.data.gov.uk/doc/local-authority/00DA,Education Leeds,Education Leeds,Supplies and services,Information Technology (Equipment),214,24/12/2010,1012-00783,525.00 ,R,BDC MAGNETICS
Leeds City Council,http://statistics.data.gov.uk/doc/local-authority/00DA,Adult Social Care,Adult Social Care,Capital,FURNITURE AND EQUIPMENT,5,02/12/2010,1012-00784,489.00 ,C,BEACON COMMUNICATION TECHNOLOGY (NORTH)
Leeds City Council,http://statistics.data.gov.uk/doc/local-authority/00DA,Environment & Neighbourhoods,Streetscene Environmental Services,Supplies and services,Computer Software & Equipment,214,02/12/2010,1012-00785,489.00 ,R,BEACON COMMUNICATION TECHNOLOGY (NORTH)
Leeds City Council,http://statistics.data.gov.uk/doc/local-authority/00DA,Central & Corporate Functions,Information Technology,Supplies and services,NETWORKS DEPT ORDERS - EXPENDITURE,090,06/12/2010,1012-00786,3200.00 ,R,BEACON COMMUNICATION TECHNOLOGY (NORTH)
Leeds City Council,http://statistics.data.gov.uk/doc/local-authority/00DA,Central & Corporate Functions,Information Technology,Supplies and services,NETWORKS DEPT ORDERS - EXPENDITURE,090,09/12/2010,1012-00787,869.00 ,R,BEACON COMMUNICATION TECHNOLOGY (NORTH)
Leeds City Council,http://statistics.data.gov.uk/doc/local-authority/00DA,City Development,Libraries Arts and Heritage,Supplies and services,Computer Software & Equipment,214,17/12/2010,1012-00788,1375.00 ,R,BEACON COMMUNICATION TECHNOLOGY (NORTH)
Leeds City Council,http://statistics.data.gov.uk/doc/local-authority/00DA,Central & Corporate Functions,Commercial Services Trading Services,Supplies and services,Other Hired And Contracted Services,265,24/12/2010,1012-00789,4433.00 ,R,BEACON COMMUNICATION TECHNOLOGY (NORTH)
Leeds City Council,http://statistics.data.gov.uk/doc/local-authority/00DA,Central & Corporate Functions,Information Technology,Supplies and services,NETWORKS DEPT ORDERS - EXPENDITURE,090,24/12/2010,1012-00790,1440.00 ,R,BEACON COMMUNICATION TECHNOLOGY (NORTH)
Leeds City Council,http://statistics.data.gov.uk/doc/local-authority/00DA,Adult Social Care,Services For Adults under 65 Learn/Dis,Premises,Cleaning Maintenance & Toiletries,127,31/12/2010,1012-00791,597.30 ,R,BEAUCARE MEDICAL LTD
Leeds City Council,http://statistics.data.gov.uk/doc/local-authority/00DA,Children's Services,Children Looked After,Supplies and services,Operational Furniture And Equipment,203,24/12/2010,1012-00792,815.00 ,R,BEDS FOR EVERYONE
Leeds City Council,http://statistics.data.gov.uk/doc/local-authority/00DA,Adult Social Care,Services For Older People - 65 and over,Third party payments,Residential,580,22/12/2010,1012-00793,1242.80 ,R,Beech Lodge Residential Home
Leeds City Council,http://statistics.data.gov.uk/doc/local-authority/00DA,Children's Services,Early Years Service,Third party payments,Services Rendered By Other Organisations,511,21/12/2010,1012-00794,3270.24 ,R,Beechtree Headingley Kindergarten
Leeds City Council,http://statistics.data.gov.uk/doc/local-authority/00DA,Children's Services,Early Years Service,Third party payments,Services Rendered By Voluntary Sector,505,17/12/2010,1012-00795,3768.92 ,R,BEECHTREE KINDERGARTEN
Leeds City Council,http://statistics.data.gov.uk/doc/local-authority/00DA,Environment & Neighbourhoods,Housing Needs,Third party payments,Supporting Ppl - Block Gross Chargeable,514,08/12/2010,1012-00796,8786.79 ,R,Behind Closed Doors (Bcd)
Leeds City Council,http://statistics.data.gov.uk/doc/local-authority/00DA,Environment & Neighbourhoods,Streetscene Environmental Services,Supplies and services,Operational Furniture And Equipment,203,30/12/2010,1012-00797,472.50 ,R,Bell Brush
West North West Homes Leeds,http://statistics.data.gov.uk/doc/local-authority/00DA,West - North West,Property and Maintenance,Premises,H.R.A. - Repairs A To P,107,01/12/2010,1012-00798,13207.75 ,R,BELL GROUP UK
West North West Homes Leeds,http://statistics.data.gov.uk/doc/local-authority/00DA,West - North West,Property and Maintenance,Premises,H.R.A. - Repairs A To P,107,07/12/2010,1012-00799,18060.40 ,R,BELL GROUP UK
West North West Homes Leeds,http://statistics.data.gov.uk/doc/local-authority/00DA,West - North West,Property and Maintenance,Premises,H.R.A. - Repairs A To P,107,24/12/2010,1012-00800,9987.53 ,R,BELL GROUP UK
West North West Homes Leeds,http://statistics.data.gov.uk/doc/local-authority/00DA,West - North West,Property and Maintenance,Premises,H.R.A. - Repairs A To P,107,24/12/2010,1012-00801,30992.70 ,R,BELL GROUP UK
West North West Homes Leeds,http://statistics.data.gov.uk/doc/local-authority/00DA,West - North West,Property and Maintenance,Premises,H.R.A. - Repairs A To P,107,24/12/2010,1012-00802,8111.25 ,R,BELL GROUP UK
West North West Homes Leeds,http://statistics.data.gov.uk/doc/local-authority/00DA,West - North West,Property and Maintenance,Premises,H.R.A. - Repairs A To P,107,24/12/2010,1012-00803,11226.70 ,R,BELL GROUP UK
West North West Homes Leeds,http://statistics.data.gov.uk/doc/local-authority/00DA,West - North West,Property and Maintenance,Premises,H.R.A. - Repairs A To P,107,24/12/2010,1012-00804,15767.50 ,R,BELL GROUP UK
West North West Homes Leeds,http://statistics.data.gov.uk/doc/local-authority/00DA,West - North West,Property and Maintenance,Premises,H.R.A. - Repairs A To P,107,24/12/2010,1012-00805,2597.00 ,R,BELL GROUP UK
Leeds City Council,http://statistics.data.gov.uk/doc/local-authority/00DA,Adult Social Care,Services For Older People - 65 and over,Third party payments,Nursing Home,570,23/12/2010,1012-00806,1374.64 ,R,Belle Green Court Care Home
Leeds City Council,http://statistics.data.gov.uk/doc/local-authority/00DA,Adult Social Care,Services For Older People - 65 and over,Third party payments,Payments To Voluntary Organisations,561,31/12/2010,1012-00807,24054.75 ,R,BELLE ISLE ELDERLY WINTER AID
Leeds City Council,http://statistics.data.gov.uk/doc/local-authority/00DA,Adult Social Care,Services For Older People - 65 and over,Third party payments,Payments To Voluntary Organisations,561,31/12/2010,1012-00808,2000.00 ,R,BELLE ISLE ELDERLY WINTER AID
Leeds City Council,http://statistics.data.gov.uk/doc/local-authority/00DA,Environment & Neighbourhoods,Housing Needs,Third party payments,Supporting People - Block Subsidy,513,08/12/2010,1012-00809,5720.96 ,R,BELLE ISLE TENANT MANAGEMENT
Leeds City Council,http://statistics.data.gov.uk/doc/local-authority/00DA,Environment & Neighbourhoods,Housing Needs,Third party payments,Supporting Ppl - Block Gross Chargeable,514,08/12/2010,1012-00810,3188.78 ,R,BELLE ISLE TENANT MANAGEMENT
Leeds City Council,http://statistics.data.gov.uk/doc/local-authority/00DA,Environment & Neighbourhoods,Housing Needs,Third party payments,Supporting Ppl - Block Gross Chargeable,514,08/12/2010,1012-00811,2755.24 ,R,BELLE ISLE TENANT MANAGEMENT
Leeds City Council,http://statistics.data.gov.uk/doc/local-authority/00DA,Environment & Neighbourhoods,Hra,Supplies and services,ALMO ,002,10/12/2010,1012-00812,124667.84 ,R,BELLE ISLE TENANT MANAGEMENT
Leeds City Council,http://statistics.data.gov.uk/doc/local-authority/00DA,Adult Social Care,Services For Older People - 65 and over,Third party payments,Residential,580,22/12/2010,1012-00813,963.76 ,R,BELVEDERE RESIDENTIAL HOME
Leeds City Council,http://statistics.data.gov.uk/doc/local-authority/00DA,Central & Corporate Functions,Commercial Services Trading Services,Transport,Vehicle Spares,345,17/12/2010,1012-00814,942.30 ,R,Benfield Ford
Leeds City Council,http://statistics.data.gov.uk/doc/local-authority/00DA,Adult Social Care,Services For Older People - 65 and over,Third party payments,Residential Care Emi,571,22/12/2010,1012-00815,31857.39 ,R,Berkley Court
Leeds City Council,http://statistics.data.gov.uk/doc/local-authority/00DA,Adult Social Care,Services For Older People - 65 and over,Third party payments,Residential,580,22/12/2010,1012-00816,19931.13 ,R,Berkley Court
Leeds City Council,http://statistics.data.gov.uk/doc/local-authority/00DA,Environment & Neighbourhoods,Belle Isle,Capital,CONSTRUCTION,3,09/12/2010,1012-00817,193703.82 ,C,BERMAR BUILDING COMPANY LTD
Leeds City Council,http://statistics.data.gov.uk/doc/local-authority/00DA,City Development,Asset Management Services,Premises,Rents,141,13/12/2010,1012-00818,13130.00 ,R,BERNARD FABER
Leeds City Council,http://statistics.data.gov.uk/doc/local-authority/00DA,Children's Services,Children - Commissioning and Social Work,Supplies and services,Consultancy Services,259,03/12/2010,1012-00819,930.00 ,R,Berrybrown Ltd
Leeds City Council,http://statistics.data.gov.uk/doc/local-authority/00DA,Children's Services,Children - Commissioning and Social Work,Supplies and services,Consultancy Services,259,09/12/2010,1012-00820,1550.00 ,R,Berrybrown Ltd
Leeds City Council,http://statistics.data.gov.uk/doc/local-authority/00DA,Children's Services,Children - Commissioning and Social Work,Supplies and services,Consultancy Services,259,16/12/2010,1012-00821,1550.00 ,R,Berrybrown Ltd
Leeds City Council,http://statistics.data.gov.uk/doc/local-authority/00DA,Children's Services,Children - Commissioning and Social Work,Supplies and services,Consultancy Services,259,21/12/2010,1012-00822,1550.00 ,R,Berrybrown Ltd
Leeds City Council,http://statistics.data.gov.uk/doc/local-authority/00DA,Children's Services,Children - Commissioning and Social Work,Supplies and services,Consultancy Services,259,24/12/2010,1012-00823,1550.00 ,R,Berrybrown Ltd
Leeds City Council,http://statistics.data.gov.uk/doc/local-authority/00DA,Environment & Neighbourhoods,Streetscene Environmental Services,Transport,Repair & Maintenance of Plant,342,02/12/2010,1012-00824,4894.62 ,R,Berryman
Leeds City Council,http://statistics.data.gov.uk/doc/local-authority/00DA,Central & Corporate Functions,Corporate Governance,Support services,EXTERNAL SOLICITOR - RESOURCE,752,03/12/2010,1012-00825,10305.80 ,R,BERRYMANS LACE MAWER
Leeds City Council,http://statistics.data.gov.uk/doc/local-authority/00DA,Central & Corporate Functions,Corporate Governance,Support services,EXTERNAL SOLICITOR - RESOURCE,752,17/12/2010,1012-00826,1338.60 ,R,BERRYMANS LACE MAWER
Leeds City Council,http://statistics.data.gov.uk/doc/local-authority/00DA,Environment & Neighbourhoods,Regeneration,Supplies and services,Non-Recurring Grants,227,17/12/2010,1012-00827,2868.00 ,R,BEST LTD
Leeds City Council,http://statistics.data.gov.uk/doc/local-authority/00DA,City Development,Economic Development,Supplies and services,Grants To Businesses,243,02/12/2010,1012-00828,2539.38 ,R,Betty's
Leeds City Council,http://statistics.data.gov.uk/doc/local-authority/00DA,Central & Corporate Functions,Commercial Services Trading Services,Supplies and services,Crockery  Cutlery & Utensils,221,03/12/2010,1012-00829,648.84 ,R,Beverages Direct Ltd
Leeds City Council,http://statistics.data.gov.uk/doc/local-authority/00DA,Central & Corporate Functions,Commercial Services Trading Services,Supplies and services,Crockery  Cutlery & Utensils,221,31/12/2010,1012-00830,563.64 ,R,Beverages Direct Ltd
Leeds City Council,http://statistics.data.gov.uk/doc/local-authority/00DA,Adult Social Care,Services For Older People - 65 and over,Third party payments,Nursing Care Emi,574,22/12/2010,1012-00831,1728.00 ,R,BEWICK LODGE
Leeds City Council,http://statistics.data.gov.uk/doc/local-authority/00DA,Environment & Neighbourhoods,Streetscene Environmental Services,Supplies and services,Waste Disposal Charges,236,01/12/2010,1012-00832,7578.01 ,R,BIFFA WASTE SERVICES LTD
Leeds City Council,http://statistics.data.gov.uk/doc/local-authority/00DA,Environment & Neighbourhoods,Streetscene Environmental Services,Supplies and services,Landfill Tax,237,01/12/2010,1012-00833,12839.52 ,R,BIFFA WASTE SERVICES LTD
Leeds City Council,http://statistics.data.gov.uk/doc/local-authority/00DA,Environment & Neighbourhoods,Streetscene Environmental Services,Supplies and services,Recycling & Reuse Charges,234,01/12/2010,1012-00834,1565.06 ,R,BIFFA WASTE SERVICES LTD
Leeds City Council,http://statistics.data.gov.uk/doc/local-authority/00DA,Environment & Neighbourhoods,Streetscene Environmental Services,Supplies and services,Waste Disposal Charges,236,01/12/2010,1012-00835,45959.13 ,R,BIFFA WASTE SERVICES LTD
Leeds City Council,http://statistics.data.gov.uk/doc/local-authority/00DA,Environment & Neighbourhoods,Streetscene Environmental Services,Supplies and services,Landfill Tax,237,01/12/2010,1012-00836,131596.32 ,R,BIFFA WASTE SERVICES LTD
Leeds City Council,http://statistics.data.gov.uk/doc/local-authority/00DA,Environment & Neighbourhoods,Streetscene Environmental Services,Supplies and services,Waste Disposal Charges,236,09/12/2010,1012-00837,13562.69 ,R,BIFFA WASTE SERVICES LTD
Leeds City Council,http://statistics.data.gov.uk/doc/local-authority/00DA,Environment & Neighbourhoods,Streetscene Environmental Services,Supplies and services,Landfill Tax,237,09/12/2010,1012-00838,22979.52 ,R,BIFFA WASTE SERVICES LTD
Leeds City Council,http://statistics.data.gov.uk/doc/local-authority/00DA,Environment & Neighbourhoods,Streetscene Environmental Services,Supplies and services,Recycling & Reuse Charges,234,09/12/2010,1012-00839,1043.06 ,R,BIFFA WASTE SERVICES LTD
Leeds City Council,http://statistics.data.gov.uk/doc/local-authority/00DA,Environment & Neighbourhoods,Streetscene Environmental Services,Supplies and services,Waste Disposal Charges,236,09/12/2010,1012-00840,56602.18 ,R,BIFFA WASTE SERVICES LTD
Leeds City Council,http://statistics.data.gov.uk/doc/local-authority/00DA,Environment & Neighbourhoods,Streetscene Environmental Services,Supplies and services,Landfill Tax,237,09/12/2010,1012-00841,159734.04 ,R,BIFFA WASTE SERVICES LTD
Leeds City Council,http://statistics.data.gov.uk/doc/local-authority/00DA,Environment & Neighbourhoods,Streetscene Environmental Services,Supplies and services,Waste Disposal Charges,236,13/12/2010,1012-00842,14177.47 ,R,BIFFA WASTE SERVICES LTD
Leeds City Council,http://statistics.data.gov.uk/doc/local-authority/00DA,Environment & Neighbourhoods,Streetscene Environmental Services,Supplies and services,Landfill Tax,237,13/12/2010,1012-00843,24021.12 ,R,BIFFA WASTE SERVICES LTD
Leeds City Council,http://statistics.data.gov.uk/doc/local-authority/00DA,Environment & Neighbourhoods,Streetscene Environmental Services,Supplies and services,Waste Disposal Charges,236,15/12/2010,1012-00844,62188.00 ,R,BIFFA WASTE SERVICES LTD
Leeds City Council,http://statistics.data.gov.uk/doc/local-authority/00DA,Environment & Neighbourhoods,Streetscene Environmental Services,Supplies and services,Landfill Tax,237,15/12/2010,1012-00845,170896.51 ,R,BIFFA WASTE SERVICES LTD
Leeds City Council,http://statistics.data.gov.uk/doc/local-authority/00DA,Environment & Neighbourhoods,Streetscene Environmental Services,Supplies and services,Waste Disposal Charges,236,23/12/2010,1012-00846,13788.35 ,R,BIFFA WASTE SERVICES LTD
Leeds City Council,http://statistics.data.gov.uk/doc/local-authority/00DA,Environment & Neighbourhoods,Streetscene Environmental Services,Supplies and services,Landfill Tax,237,23/12/2010,1012-00847,23363.00 ,R,BIFFA WASTE SERVICES LTD
Leeds City Council,http://statistics.data.gov.uk/doc/local-authority/00DA,Environment & Neighbourhoods,Streetscene Environmental Services,Supplies and services,Recycling & Reuse Charges,234,23/12/2010,1012-00848,992.38 ,R,BIFFA WASTE SERVICES LTD
Leeds City Council,http://statistics.data.gov.uk/doc/local-authority/00DA,Environment & Neighbourhoods,Streetscene Environmental Services,Supplies and services,Waste Disposal Charges,236,23/12/2010,1012-00849,57310.72 ,R,BIFFA WASTE SERVICES LTD
Leeds City Council,http://statistics.data.gov.uk/doc/local-authority/00DA,Environment & Neighbourhoods,Streetscene Environmental Services,Supplies and services,Landfill Tax,237,23/12/2010,1012-00850,162868.61 ,R,BIFFA WASTE SERVICES LTD
Leeds City Council,http://statistics.data.gov.uk/doc/local-authority/00DA,Environment & Neighbourhoods,Streetscene Environmental Services,Supplies and services,Waste Disposal Charges,236,29/12/2010,1012-00851,12415.87 ,R,BIFFA WASTE SERVICES LTD
Leeds City Council,http://statistics.data.gov.uk/doc/local-authority/00DA,Environment & Neighbourhoods,Streetscene Environmental Services,Supplies and services,Landfill Tax,237,29/12/2010,1012-00852,21036.48 ,R,BIFFA WASTE SERVICES LTD
East North East Homes Leeds,http://statistics.data.gov.uk/doc/local-authority/00DA,East - North East,Technical Services,Supplies and services,Other Materials,205,03/12/2010,1012-00853,1302.06 ,R,BILBECK (MERCHANTS) LTD
East North East Homes Leeds,http://statistics.data.gov.uk/doc/local-authority/00DA,East - North East,Technical Services,Supplies and services,Other Materials,205,03/12/2010,1012-00854,924.01 ,R,BILBECK (MERCHANTS) LTD
East North East Homes Leeds,http://statistics.data.gov.uk/doc/local-authority/00DA,East - North East,Technical Services,Supplies and services,Other Materials,205,03/12/2010,1012-00855,864.94 ,R,BILBECK (MERCHANTS) LTD
East North East Homes Leeds,http://statistics.data.gov.uk/doc/local-authority/00DA,East - North East,Technical Services,Supplies and services,Other Materials,205,10/12/2010,1012-00856,1842.04 ,R,BILBECK (MERCHANTS) LTD
East North East Homes Leeds,http://statistics.data.gov.uk/doc/local-authority/00DA,East - North East,Technical Services,Supplies and services,Other Materials,205,29/12/2010,1012-00857,468.58 ,R,BILBECK (MERCHANTS) LTD
Leeds City Council,http://statistics.data.gov.uk/doc/local-authority/00DA,Adult Social Care,Roseville Enterprises,Supplies and services,Operational Materials,205,16/12/2010,1012-00858,483.11 ,R,BILL BEAUMONT TEXTILES LTD
Leeds City Council,http://statistics.data.gov.uk/doc/local-authority/00DA,City Development,Recreation,Transport,Plant Spares,346,01/12/2010,1012-00859,1186.30 ,R,BINSON BEARINGS
Leeds City Council,http://statistics.data.gov.uk/doc/local-authority/00DA,City Development,Recreation,Transport,Plant Spares,346,31/12/2010,1012-00860,911.84 ,R,BINSON BEARINGS
Leeds City Council,http://statistics.data.gov.uk/doc/local-authority/00DA,Insurance,Insurance,Supplies and services,Other Hired And Contracted Services,265,30/12/2010,1012-00861,3500.00 ,R,Birchall Blackburn Solicitors
Leeds City Council,http://statistics.data.gov.uk/doc/local-authority/00DA,Central & Corporate Functions,Commercial Services Trading Services,Supplies and services,Operational Materials,205,08/12/2010,1012-00862,700.00 ,R,BISON BEDE LIMITED
Leeds City Council,http://statistics.data.gov.uk/doc/local-authority/00DA,Central & Corporate Functions,Commercial Services Trading Services,Supplies and services,Operational Materials,205,08/12/2010,1012-00863,920.00 ,R,BISON BEDE LIMITED
Leeds City Council,http://statistics.data.gov.uk/doc/local-authority/00DA,Central & Corporate Functions,Commercial Services Trading Services,Supplies and services,Operational Materials,205,16/12/2010,1012-00864,2700.00 ,R,BISON BEDE LIMITED
Leeds City Council,http://statistics.data.gov.uk/doc/local-authority/00DA,Central & Corporate Functions,Commercial Services Trading Services,Supplies and services,Operational Materials,205,16/12/2010,1012-00865,2700.00 ,R,BISON BEDE LIMITED
Leeds City Council,http://statistics.data.gov.uk/doc/local-authority/00DA,Central & Corporate Functions,Commercial Services Trading Services,Supplies and services,Operational Materials,205,16/12/2010,1012-00866,2525.00 ,R,BISON BEDE LIMITED
Leeds City Council,http://statistics.data.gov.uk/doc/local-authority/00DA,Central & Corporate Functions,Commercial Services Trading Services,Supplies and services,Operational Materials,205,21/12/2010,1012-00867,3275.00 ,R,BISON BEDE LIMITED
Leeds City Council,http://statistics.data.gov.uk/doc/local-authority/00DA,Central & Corporate Functions,Commercial Services Trading Services,Supplies and services,Operational Materials,205,29/12/2010,1012-00868,920.00 ,R,BISON BEDE LIMITED
Leeds City Council,http://statistics.data.gov.uk/doc/local-authority/00DA,Central & Corporate Functions,Commercial Services Trading Services,Supplies and services,Operational Materials,205,29/12/2010,1012-00869,920.00 ,R,BISON BEDE LIMITED
